Workbook

Sheet Gastos
A3: =+H18 -> 100000
A4: =+SUM(A6:A15) -> 6
C5: Rangos de Gastos de Legalizacion
A6: =+I6 -> 0 | C6: 1000 | E6: 5000 | G6: 250 | I6: =IF($A$3>=C6,IF($A$3<=E6,1,0),0) -> 0
A7: 0 | C7: 5001 | E7: 15000 | G7: 250 | I7: =IF($A$3>=C7,IF($A$3<=E7,2,0),0) -> 0
A8: 0 | C8: 15001 | E8: 30000 | G8: 250 | I8: =IF($A$3>=C8,IF($A$3<=E8,3,0),0) -> 0
A9: 0 | C9: 30001 | E9: 50000 | G9: 350 | I9: =IF($A$3>=C9,IF($A$3<=E9,4,0),0) -> 0
A10: 0 | C10: 50001 | E10: 80000 | G10: 500 | I10: =IF(AND($A$3>C10,$A$3<=E10),5,0) -> 0
A11: 6 | C11: 80001 | E11: 120000 | G11: 750 | I11: =IF(AND($A$3>C11,$A$3<=E11),6,0) -> 6
A12: 0 | C12: 120001 | E12: 180000 | G12: 1000 | I12: =IF(AND($A$3>C12,$A$3<=E12),7,0) -> 0
A13: 0 | C13: 180001 | E13: 250000 | G13: 1500 | I13: =IF(AND($A$3>C13,$A$3<=E13),7,0) -> 0
A14: 0 | C14: 250001 | E14: 400000 | G14: 2150 | I14: =IF(AND($A$3>C14,$A$3<=E14),7,0) -> 0
A15: 0 | C15: 400001 | E15: 600000 | G15: 2650 | I15: =IF(AND($A$3>C15,$A$3<=E15),7,0) -> 0
C17: Gastos Prestamo
C18: Monto Solicitado | H18: =+'Ingreso de Datos'!D5 -> 100000
C19: Comision por Desembolso | H19: =+IF($A$3=0,0,100) -> 100
C20: Gastos de Legalizacion | H20: =IF(A3=0,0,VLOOKUP($A$4,$A$6:$H$15,7,FALSE)) -> 750
C21: Intereses Anticipados | H21: =+'Proyeccion Cuotas'!J16 -> 544.6575342
C22: Seguro por Desempleo (Cubre el Ier. año) | H22: =IF($A$3<=50000,IF('Proyeccion Cuotas'!$F$3>=24,($A$3*1.25%),0),0) -> 0
C23: Total de Gastos | H23: =SUM(H19:H22) -> 1394.657534

Sheet Ingreso de Datos
L1: =+IF(OR(D5="",D7="",D13="",D17="",D19="",D21=""),1,2) -> 2
L2: Fingreso | M2: =+D17 -> 2020-12-17
C3: Completa la información que te indican las flechas | G3: FechaDesem | L3: Fhoy | M3: =+TODAY() -> 2025-01-03
M4: =+M3-M2 -> 1478
C5: Monto a solicitar | D5: 100000 | F5: =+IF(D5="","* Campo Obligatorio","") ->  | L5: Estabilidad | M5: =+M4/365 -> 4.049315068
C7: Plazo (en meses) | D7: 36 | F7: =+IF(D7="","* Campo Obligatorio","") ->  | M7: =+M5/12 -> 0.3374429224
C9: Plazo en años | D9: =+IF(D7="","",D7/12) -> 3
C11: Tasa de interes | D11: 0.071
C13: Aporte extraordinario | D13: 10000 | F13: =+IF(D13="","* Campo Obligatorio","") -> 
C15: Total de aportes | D15: =+D13*2 -> 20000
C17: Fecha de Ingreso a la corporación | D17: 2020-12-17 | F17: =+IF(D17="","* Campo Obligatorio","") -> 
C19: Estabilidad laboral | D19: =IF(D17="","",M5) -> 4.049315068
C21: Salario Actual | D21: 10000 | F21: =+IF(D21="","* Campo Obligatorio","") -> 
C23: Endeudamiento % | D23: =+IFERROR(($F$46/$D$21),"Completar Datos") -> 0.1655768645 | F23: =+IF(D23="Completar Datos","",IF(D23<=0.35,"Rango Aceptable","Endeudamiento Alto")) -> Rango Aceptable
C25: Recuerda que tu endeudamiento no debe superar el 30%
D27: =+IFERROR(ROUNDUP((F46*2.85714285714286),0),"Completar Datos") -> 4731 | F27: Salario minimo para optar al monto de su interes
C32: Completa la información que te indican las flechas
C34: Si el destino de tu préstamo será consolidar deudas ingresa el monto de cada deuda aquí
C42: Total deudas | D42: =+SUM(C36:C40,F36:F40) -> 0
C44: Al realizar el pago de las deudas ajenas a BI, debes presentar boleta de pago y finiquito
C46: Valor cuota mensual | F46: =+IFERROR(IF(OR(B61=12,B61=7),F63,'Proyeccion Cuotas'!L17),"Error, Revisar Datos") -> 1655.768645
C48: Suma total de intereses a pagar | F48: =+'Proyeccion Cuotas'!L2 -> 12177.6347
C50: Suma total de capital + interes | F50: =+'Proyeccion Cuotas'!L4 -> 112177.6347
C52: Total deducciones (gastos) | F52: =+Gastos!H23 -> 1394.657534
C55: LIQUIDO A RECIBIR | F55: =+D5-F52-D42 -> 98605.34247
B59: Parametros:
B60: =+'Proyeccion Cuotas'!H17 -> 28/2/2025 | F60: CALCULO PRIMER CUOTA
B61: =+MONTH(B60) -> 2 | C61: =+IF(OR(B61=12,B61=7),F63,'Proyeccion Cuotas'!L17) -> 1655.768645 | E61: C | F61: =+IFERROR((C62-C69)/C63,"Revisar Datos") -> 1111.111111
B62: Capital | C62: =+D5 -> 100000 | E62: I | F62: =+IFERROR(C62*C64*31/365,"Revisar Datos") -> 603.0136986
B63: Plazo | C63: =+D7 -> 36 | E63: T | F63: =+IFERROR(F61+F62,"") -> 1714.12481
B64: Interés | C64: =+D11 -> 0.071
C66: =+C63/12 -> 3
B67: Extra | C67: =+D13 -> 10000
B68: x Año | C68: =+C67*2 -> 20000
B69: Tt | C69: =+C68*C66 -> 60000

Sheet Proyeccion Cuotas
A1: Monto Solicitado: | F1: =+'Ingreso de Datos'!D5 -> 100000
I2: Interés Aprox. Por Pagar: | L2: =+SUM('Proyeccion Cuotas'!$J$16:$J$316) -> 12177.6347
A3: Plazo Solicitado: | F3: =+'Ingreso de Datos'!D7 -> 36
I4: Total Estimado a Pagar: | L4: =+F1+L2 -> 112177.6347
A5: Tasa de Interés: | F5: =+'Ingreso de Datos'!D11 -> 0.071
A7: Fecha Desembolso: | F7: =+'Ingreso de Datos'!H3 -> 00:00:00
D12: CUOTA SOBRE SALDOS
D13: NOTA: Montos pueden variar por abonos extraordinarios a capital, así mismo tasa de interes puede variar según condiciones de mercado.
D15: No. Cuota | E15: año | F15: mes | G15: dia | H15: Fecha Pago | I15: Capital | J15: Intereses | K15: Dias Interes | L15: Cuota Mensual | M15: Saldo al Dia
A16: 1 | B16: 31 | D16: 0 | E16: =IF('Proyeccion Cuotas'!$H16="","",IF('Proyeccion Cuotas'!$F16=12,(YEAR('Proyeccion Cuotas'!$H16)),YEAR('Proyeccion Cuotas'!$H16))) -> 2025 | F16: =IF('Proyeccion Cuotas'!$H16="","",MONTH('Proyeccion Cuotas'!$H16)) -> 1 | G16: =+IF('Proyeccion Cuotas'!$D16="","",VLOOKUP('Proyeccion Cuotas'!$F16,$A$16:$B$27,2,FALSE)) -> 31 | H16: =+$B$39 -> 31/1/2025 | I16: 0 | J16: =+(($F$1*$F$5)/365)*'Proyeccion Cuotas'!$K16 -> 544.6575342 | K16: ='Proyeccion Cuotas'!$H16-B29 -> 28 | L16: =+SUM(I16,J16) -> 544.6575342 | M16: =+F1 -> 100000
A17: 2 | B17: 28 | D17: 1 | E17: =IF('Proyeccion Cuotas'!$D17="","",IF(F16=12,E16+1,E16)) -> 2025 | F17: =IF('Proyeccion Cuotas'!$D17="","",IF(G16<=3,F16,IF(F16=12,1,F16+1))) -> 2 | G17: =+IF('Proyeccion Cuotas'!$D17="","",VLOOKUP('Proyeccion Cuotas'!$F17,$A$16:$B$27,2,FALSE)) -> 28 | H17: =IF('Proyeccion Cuotas'!$D17="","",$B$34) -> 28/2/2025 | I17: =IFERROR(IF('Proyeccion Cuotas'!$D17="","",IF(OR('Proyeccion Cuotas'!$F17=7,'Proyeccion Cuotas'!$F17=12),($B$45+(($F$1-$B$47)/$F$3)),(($F$1-$B$47)/$F$3))),0) -> 1111.111111 | J17: =IFERROR(IF('Proyeccion Cuotas'!$D17="","",($F$1*$F$5*'Proyeccion Cuotas'!$K17/365)),"") -> 544.6575342 | K17: =+IF('Proyeccion Cuotas'!$D17="","",'Proyeccion Cuotas'!$H17-H16) -> 28 | L17: =IFERROR('Proyeccion Cuotas'!$I17+'Proyeccion Cuotas'!$J17,"") -> 1655.768645 | M17: =+IFERROR((M16-'Proyeccion Cuotas'!$I17),"") -> 98888.88889
A18: 3 | B18: 31 | D18: =IFERROR(IF(M17<0.001,"",(D17+1)),"") -> 2 | E18: =IF('Proyeccion Cuotas'!$D18="","",IF(F17=12,E17+1,E17)) -> 2025 | F18: =IF('Proyeccion Cuotas'!$D18="","",IF(F17=12,1,F17+1)) -> 3 | G18: =+IF('Proyeccion Cuotas'!$D18="","",VLOOKUP('Proyeccion Cuotas'!$F18,$A$16:$B$27,2,FALSE)) -> 31 | H18: =IF('Proyeccion Cuotas'!$D18="","",CONCATENATE('Proyeccion Cuotas'!$G18,"/",'Proyeccion Cuotas'!$F18,"/",'Proyeccion Cuotas'!$E18)) -> 31/3/2025 | I18: =IFERROR(IF('Proyeccion Cuotas'!$D18="","",IF(OR('Proyeccion Cuotas'!$F18=7,'Proyeccion Cuotas'!$F18=12),($B$45+(($F$1-$B$47)/$F$3)),(($F$1-$B$47)/$F$3))),0) -> 1111.111111 | J18: =IFERROR(IF('Proyeccion Cuotas'!$D18="","",(M17*$F$5*'Proyeccion Cuotas'!$K18/365)),"") -> 596.3135464 | K18: =+IF('Proyeccion Cuotas'!$D18="","",'Proyeccion Cuotas'!$H18-H17) -> 31 | L18: =IFERROR('Proyeccion Cuotas'!$I18+'Proyeccion Cuotas'!$J18,"") -> 1707.424658 | M18: =+IFERROR((M17-'Proyeccion Cuotas'!$I18),"") -> 97777.77778
A19: 4 | B19: 30 | D19: 3 | E19: =IF('Proyeccion Cuotas'!$D19="","",IF(F18=12,E18+1,E18)) -> 2025 | F19: =IF('Proyeccion Cuotas'!$D19="","",IF(F18=12,1,F18+1)) -> 4 | G19: =+IF('Proyeccion Cuotas'!$D19="","",VLOOKUP('Proyeccion Cuotas'!$F19,$A$16:$B$27,2,FALSE)) -> 30 | H19: =IF('Proyeccion Cuotas'!$D19="","",CONCATENATE('Proyeccion Cuotas'!$G19,"/",'Proyeccion Cuotas'!$F19,"/",'Proyeccion Cuotas'!$E19)) -> 30/4/2025 | I19: =IFERROR(IF('Proyeccion Cuotas'!$D19="","",IF(OR('Proyeccion Cuotas'!$F19=7,'Proyeccion Cuotas'!$F19=12),($B$45+(($F$1-$B$47)/$F$3)),(($F$1-$B$47)/$F$3))),0) -> 1111.111111 | J19: =IFERROR(IF('Proyeccion Cuotas'!$D19="","",(M18*$F$5*'Proyeccion Cuotas'!$K19/365)),"") -> 570.5936073 | K19: =+IF('Proyeccion Cuotas'!$D19="","",'Proyeccion Cuotas'!$H19-H18) -> 30 | L19: =IFERROR('Proyeccion Cuotas'!$I19+'Proyeccion Cuotas'!$J19,"") -> 1681.704718 | M19: =+IFERROR((M18-'Proyeccion Cuotas'!$I19),"") -> 96666.66667
A20: 5 | B20: 31 | D20: 4 | E20: =IF('Proyeccion Cuotas'!$D20="","",IF(F19=12,E19+1,E19)) -> 2025 | F20: =IF('Proyeccion Cuotas'!$D20="","",IF(F19=12,1,F19+1)) -> 5 | G20: =+IF('Proyeccion Cuotas'!$D20="","",VLOOKUP('Proyeccion Cuotas'!$F20,$A$16:$B$27,2,FALSE)) -> 31 | H20: =IF('Proyeccion Cuotas'!$D20="","",CONCATENATE('Proyeccion Cuotas'!$G20,"/",'Proyeccion Cuotas'!$F20,"/",'Proyeccion Cuotas'!$E20)) -> 31/5/2025 | I20: =IFERROR(IF('Proyeccion Cuotas'!$D20="","",IF(OR('Proyeccion Cuotas'!$F20=7,'Proyeccion Cuotas'!$F20=12),($B$45+(($F$1-$B$47)/$F$3)),(($F$1-$B$47)/$F$3))),0) -> 1111.111111 | J20: =IFERROR(IF('Proyeccion Cuotas'!$D20="","",(M19*$F$5*'Proyeccion Cuotas'!$K20/365)),"") -> 582.913242 | K20: =+IF('Proyeccion Cuotas'!$D20="","",'Proyeccion Cuotas'!$H20-H19) -> 31 | L20: =IFERROR('Proyeccion Cuotas'!$I20+'Proyeccion Cuotas'!$J20,"") -> 1694.024353 | M20: =+IFERROR((M19-'Proyeccion Cuotas'!$I20),"") -> 95555.55556
A21: 6 | B21: 30 | D21: 5 | E21: =IF('Proyeccion Cuotas'!$D21="","",IF(F20=12,E20+1,E20)) -> 2025 | F21: =IF('Proyeccion Cuotas'!$D21="","",IF(F20=12,1,F20+1)) -> 6 | G21: =+IF('Proyeccion Cuotas'!$D21="","",VLOOKUP('Proyeccion Cuotas'!$F21,$A$16:$B$27,2,FALSE)) -> 30 | H21: =IF('Proyeccion Cuotas'!$D21="","",CONCATENATE('Proyeccion Cuotas'!$G21,"/",'Proyeccion Cuotas'!$F21,"/",'Proyeccion Cuotas'!$E21)) -> 30/6/2025 | I21: =IFERROR(IF('Proyeccion Cuotas'!$D21="","",IF(OR('Proyeccion Cuotas'!$F21=7,'Proyeccion Cuotas'!$F21=12),($B$45+(($F$1-$B$47)/$F$3)),(($F$1-$B$47)/$F$3))),0) -> 1111.111111 | J21: =IFERROR(IF('Proyeccion Cuotas'!$D21="","",(M20*$F$5*'Proyeccion Cuotas'!$K21/365)),"") -> 557.6255708 | K21: =+IF('Proyeccion Cuotas'!$D21="","",'Proyeccion Cuotas'!$H21-H20) -> 30 | L21: =IFERROR('Proyeccion Cuotas'!$I21+'Proyeccion Cuotas'!$J21,"") -> 1668.736682 | M21: =+IFERROR((M20-'Proyeccion Cuotas'!$I21),"") -> 94444.44444
A22: 7 | B22: 31 | D22: 6 | E22: =IF('Proyeccion Cuotas'!$D22="","",IF(F21=12,E21+1,E21)) -> 2025 | F22: =IF('Proyeccion Cuotas'!$D22="","",IF(F21=12,1,F21+1)) -> 7 | G22: =+IF('Proyeccion Cuotas'!$D22="","",VLOOKUP('Proyeccion Cuotas'!$F22,$A$16:$B$27,2,FALSE)) -> 31 | H22: =IF('Proyeccion Cuotas'!$D22="","",CONCATENATE('Proyeccion Cuotas'!$G22,"/",'Proyeccion Cuotas'!$F22,"/",'Proyeccion Cuotas'!$E22)) -> 31/7/2025 | I22: =IFERROR(IF('Proyeccion Cuotas'!$D22="","",IF(OR('Proyeccion Cuotas'!$F22=7,'Proyeccion Cuotas'!$F22=12),($B$45+(($F$1-$B$47)/$F$3)),(($F$1-$B$47)/$F$3))),0) -> 11111.11111 | J22: =IFERROR(IF('Proyeccion Cuotas'!$D22="","",(M21*$F$5*'Proyeccion Cuotas'!$K22/365)),"") -> 569.5129376 | K22: =+IF('Proyeccion Cuotas'!$D22="","",'Proyeccion Cuotas'!$H22-H21) -> 31 | L22: =IFERROR('Proyeccion Cuotas'!$I22+'Proyeccion Cuotas'!$J22,"") -> 11680.62405 | M22: =+IFERROR((M21-'Proyeccion Cuotas'!$I22),"") -> 83333.33333
A23: 8 | B23: 31 | D23: 7 | E23: =IF('Proyeccion Cuotas'!$D23="","",IF(F22=12,E22+1,E22)) -> 2025 | F23: =IF('Proyeccion Cuotas'!$D23="","",IF(F22=12,1,F22+1)) -> 8 | G23: =+IF('Proyeccion Cuotas'!$D23="","",VLOOKUP('Proyeccion Cuotas'!$F23,$A$16:$B$27,2,FALSE)) -> 31 | H23: =IF('Proyeccion Cuotas'!$D23="","",CONCATENATE('Proyeccion Cuotas'!$G23,"/",'Proyeccion Cuotas'!$F23,"/",'Proyeccion Cuotas'!$E23)) -> 31/8/2025 | I23: =IFERROR(IF('Proyeccion Cuotas'!$D23="","",IF(OR('Proyeccion Cuotas'!$F23=7,'Proyeccion Cuotas'!$F23=12),($B$45+(($F$1-$B$47)/$F$3)),(($F$1-$B$47)/$F$3))),0) -> 1111.111111 | J23: =IFERROR(IF('Proyeccion Cuotas'!$D23="","",(M22*$F$5*'Proyeccion Cuotas'!$K23/365)),"") -> 502.5114155 | K23: =+IF('Proyeccion Cuotas'!$D23="","",'Proyeccion Cuotas'!$H23-H22) -> 31 | L23: =IFERROR('Proyeccion Cuotas'!$I23+'Proyeccion Cuotas'!$J23,"") -> 1613.622527 | M23: =+IFERROR((M22-'Proyeccion Cuotas'!$I23),"") -> 82222.22222
A24: 9 | B24: 30 | D24: 8 | E24: =IF('Proyeccion Cuotas'!$D24="","",IF(F23=12,E23+1,E23)) -> 2025 | F24: =IF('Proyeccion Cuotas'!$D24="","",IF(F23=12,1,F23+1)) -> 9 | G24: =+IF('Proyeccion Cuotas'!$D24="","",VLOOKUP('Proyeccion Cuotas'!$F24,$A$16:$B$27,2,FALSE)) -> 30 | H24: =IF('Proyeccion Cuotas'!$D24="","",CONCATENATE('Proyeccion Cuotas'!$G24,"/",'Proyeccion Cuotas'!$F24,"/",'Proyeccion Cuotas'!$E24)) -> 30/9/2025 | I24: =IFERROR(IF('Proyeccion Cuotas'!$D24="","",IF(OR('Proyeccion Cuotas'!$F24=7,'Proyeccion Cuotas'!$F24=12),($B$45+(($F$1-$B$47)/$F$3)),(($F$1-$B$47)/$F$3))),0) -> 1111.111111 | J24: =IFERROR(IF('Proyeccion Cuotas'!$D24="","",(M23*$F$5*'Proyeccion Cuotas'!$K24/365)),"") -> 479.8173516 | K24: =+IF('Proyeccion Cuotas'!$D24="","",'Proyeccion Cuotas'!$H24-H23) -> 30 | L24: =IFERROR('Proyeccion Cuotas'!$I24+'Proyeccion Cuotas'!$J24,"") -> 1590.928463 | M24: =+IFERROR((M23-'Proyeccion Cuotas'!$I24),"") -> 81111.11111
A25: 10 | B25: 31 | D25: 9 | E25: =IF('Proyeccion Cuotas'!$D25="","",IF(F24=12,E24+1,E24)) -> 2025 | F25: =IF('Proyeccion Cuotas'!$D25="","",IF(F24=12,1,F24+1)) -> 10 | G25: =+IF('Proyeccion Cuotas'!$D25="","",VLOOKUP('Proyeccion Cuotas'!$F25,$A$16:$B$27,2,FALSE)) -> 31 | H25: =IF('Proyeccion Cuotas'!$D25="","",CONCATENATE('Proyeccion Cuotas'!$G25,"/",'Proyeccion Cuotas'!$F25,"/",'Proyeccion Cuotas'!$E25)) -> 31/10/2025 | I25: =IFERROR(IF('Proyeccion Cuotas'!$D25="","",IF(OR('Proyeccion Cuotas'!$F25=7,'Proyeccion Cuotas'!$F25=12),($B$45+(($F$1-$B$47)/$F$3)),(($F$1-$B$47)/$F$3))),0) -> 1111.111111 | J25: =IFERROR(IF('Proyeccion Cuotas'!$D25="","",(M24*$F$5*'Proyeccion Cuotas'!$K25/365)),"") -> 489.1111111 | K25: =+IF('Proyeccion Cuotas'!$D25="","",'Proyeccion Cuotas'!$H25-H24) -> 31 | L25: =IFERROR('Proyeccion Cuotas'!$I25+'Proyeccion Cuotas'!$J25,"") -> 1600.222222 | M25: =+IFERROR((M24-'Proyeccion Cuotas'!$I25),"") -> 80000
A26: 11 | B26: 30 | D26: 10 | E26: =IF('Proyeccion Cuotas'!$D26="","",IF(F25=12,E25+1,E25)) -> 2025 | F26: =IF('Proyeccion Cuotas'!$D26="","",IF(F25=12,1,F25+1)) -> 11 | G26: =+IF('Proyeccion Cuotas'!$D26="","",VLOOKUP('Proyeccion Cuotas'!$F26,$A$16:$B$27,2,FALSE)) -> 30 | H26: =IF('Proyeccion Cuotas'!$D26="","",CONCATENATE('Proyeccion Cuotas'!$G26,"/",'Proyeccion Cuotas'!$F26,"/",'Proyeccion Cuotas'!$E26)) -> 30/11/2025 | I26: =IFERROR(IF('Proyeccion Cuotas'!$D26="","",IF(OR('Proyeccion Cuotas'!$F26=7,'Proyeccion Cuotas'!$F26=12),($B$45+(($F$1-$B$47)/$F$3)),(($F$1-$B$47)/$F$3))),0) -> 1111.111111 | J26: =IFERROR(IF('Proyeccion Cuotas'!$D26="","",(M25*$F$5*'Proyeccion Cuotas'!$K26/365)),"") -> 466.8493151 | K26: =+IF('Proyeccion Cuotas'!$D26="","",'Proyeccion Cuotas'!$H26-H25) -> 30 | L26: =IFERROR('Proyeccion Cuotas'!$I26+'Proyeccion Cuotas'!$J26,"") -> 1577.960426 | M26: =+IFERROR((M25-'Proyeccion Cuotas'!$I26),"") -> 78888.88889
A27: 12 | B27: 31 | D27: 11 | E27: =IF('Proyeccion Cuotas'!$D27="","",IF(F26=12,E26+1,E26)) -> 2025 | F27: =IF('Proyeccion Cuotas'!$D27="","",IF(F26=12,1,F26+1)) -> 12 | G27: =+IF('Proyeccion Cuotas'!$D27="","",VLOOKUP('Proyeccion Cuotas'!$F27,$A$16:$B$27,2,FALSE)) -> 31 | H27: =IF('Proyeccion Cuotas'!$D27="","",CONCATENATE('Proyeccion Cuotas'!$G27,"/",'Proyeccion Cuotas'!$F27,"/",'Proyeccion Cuotas'!$E27)) -> 31/12/2025 | I27: =IFERROR(IF('Proyeccion Cuotas'!$D27="","",IF(OR('Proyeccion Cuotas'!$F27=7,'Proyeccion Cuotas'!$F27=12),($B$45+(($F$1-$B$47)/$F$3)),(($F$1-$B$47)/$F$3))),0) -> 11111.11111 | J27: =IFERROR(IF('Proyeccion Cuotas'!$D27="","",(M26*$F$5*'Proyeccion Cuotas'!$K27/365)),"") -> 475.7108067 | K27: =+IF('Proyeccion Cuotas'!$D27="","",'Proyeccion Cuotas'!$H27-H26) -> 31 | L27: =IFERROR('Proyeccion Cuotas'!$I27+'Proyeccion Cuotas'!$J27,"") -> 11586.82192 | M27: =+IFERROR((M26-'Proyeccion Cuotas'!$I27),"") -> 67777.77778
D28: 12 | E28: =IF('Proyeccion Cuotas'!$D28="","",IF(F27=12,E27+1,E27)) -> 2026 | F28: =IF('Proyeccion Cuotas'!$D28="","",IF(F27=12,1,F27+1)) -> 1 | G28: =+IF('Proyeccion Cuotas'!$D28="","",VLOOKUP('Proyeccion Cuotas'!$F28,$A$16:$B$27,2,FALSE)) -> 31 | H28: =IF('Proyeccion Cuotas'!$D28="","",CONCATENATE('Proyeccion Cuotas'!$G28,"/",'Proyeccion Cuotas'!$F28,"/",'Proyeccion Cuotas'!$E28)) -> 31/1/2026 | I28: =IFERROR(IF('Proyeccion Cuotas'!$D28="","",IF(OR('Proyeccion Cuotas'!$F28=7,'Proyeccion Cuotas'!$F28=12),($B$45+(($F$1-$B$47)/$F$3)),(($F$1-$B$47)/$F$3))),0) -> 1111.111111 | J28: =IFERROR(IF('Proyeccion Cuotas'!$D28="","",(M27*$F$5*'Proyeccion Cuotas'!$K28/365)),"") -> 408.7092846 | K28: =+IF('Proyeccion Cuotas'!$D28="","",'Proyeccion Cuotas'!$H28-H27) -> 31 | L28: =IFERROR('Proyeccion Cuotas'!$I28+'Proyeccion Cuotas'!$J28,"") -> 1519.820396 | M28: =+IFERROR((M27-'Proyeccion Cuotas'!$I28),"") -> 66666.66667
A29: fhoy | B29: =+IF(OR(F7="",F7=0),TODAY(),F7) -> 2025-01-03 | D29: 13 | E29: =IF('Proyeccion Cuotas'!$D29="","",IF(F28=12,E28+1,E28)) -> 2026 | F29: =IF('Proyeccion Cuotas'!$D29="","",IF(F28=12,1,F28+1)) -> 2 | G29: =+IF('Proyeccion Cuotas'!$D29="","",VLOOKUP('Proyeccion Cuotas'!$F29,$A$16:$B$27,2,FALSE)) -> 28 | H29: =IF('Proyeccion Cuotas'!$D29="","",CONCATENATE('Proyeccion Cuotas'!$G29,"/",'Proyeccion Cuotas'!$F29,"/",'Proyeccion Cuotas'!$E29)) -> 28/2/2026 | I29: =IFERROR(IF('Proyeccion Cuotas'!$D29="","",IF(OR('Proyeccion Cuotas'!$F29=7,'Proyeccion Cuotas'!$F29=12),($B$45+(($F$1-$B$47)/$F$3)),(($F$1-$B$47)/$F$3))),0) -> 1111.111111 | J29: =IFERROR(IF('Proyeccion Cuotas'!$D29="","",(M28*$F$5*'Proyeccion Cuotas'!$K29/365)),"") -> 363.1050228 | K29: =+IF('Proyeccion Cuotas'!$D29="","",'Proyeccion Cuotas'!$H29-H28) -> 28 | L29: =IFERROR('Proyeccion Cuotas'!$I29+'Proyeccion Cuotas'!$J29,"") -> 1474.216134 | M29: =+IFERROR((M28-'Proyeccion Cuotas'!$I29),"") -> 65555.55556
A30: mes | B30: =+MONTH(B29) -> 1 | D30: 14 | E30: =IF('Proyeccion Cuotas'!$D30="","",IF(F29=12,E29+1,E29)) -> 2026 | F30: =IF('Proyeccion Cuotas'!$D30="","",IF(F29=12,1,F29+1)) -> 3 | G30: =+IF('Proyeccion Cuotas'!$D30="","",VLOOKUP('Proyeccion Cuotas'!$F30,$A$16:$B$27,2,FALSE)) -> 31 | H30: =IF('Proyeccion Cuotas'!$D30="","",CONCATENATE('Proyeccion Cuotas'!$G30,"/",'Proyeccion Cuotas'!$F30,"/",'Proyeccion Cuotas'!$E30)) -> 31/3/2026 | I30: =IFERROR(IF('Proyeccion Cuotas'!$D30="","",IF(OR('Proyeccion Cuotas'!$F30=7,'Proyeccion Cuotas'!$F30=12),($B$45+(($F$1-$B$47)/$F$3)),(($F$1-$B$47)/$F$3))),0) -> 1111.111111 | J30: =IFERROR(IF('Proyeccion Cuotas'!$D30="","",(M29*$F$5*'Proyeccion Cuotas'!$K30/365)),"") -> 395.3089802 | K30: =+IF('Proyeccion Cuotas'!$D30="","",'Proyeccion Cuotas'!$H30-H29) -> 31 | L30: =IFERROR('Proyeccion Cuotas'!$I30+'Proyeccion Cuotas'!$J30,"") -> 1506.420091 | M30: =+IFERROR((M29-'Proyeccion Cuotas'!$I30),"") -> 64444.44444
A31: dia | B31: =+DAY(B29) -> 3 | D31: 15 | E31: =IF('Proyeccion Cuotas'!$D31="","",IF(F30=12,E30+1,E30)) -> 2026 | F31: =IF('Proyeccion Cuotas'!$D31="","",IF(F30=12,1,F30+1)) -> 4 | G31: =+IF('Proyeccion Cuotas'!$D31="","",VLOOKUP('Proyeccion Cuotas'!$F31,$A$16:$B$27,2,FALSE)) -> 30 | H31: =IF('Proyeccion Cuotas'!$D31="","",CONCATENATE('Proyeccion Cuotas'!$G31,"/",'Proyeccion Cuotas'!$F31,"/",'Proyeccion Cuotas'!$E31)) -> 30/4/2026 | I31: =IFERROR(IF('Proyeccion Cuotas'!$D31="","",IF(OR('Proyeccion Cuotas'!$F31=7,'Proyeccion Cuotas'!$F31=12),($B$45+(($F$1-$B$47)/$F$3)),(($F$1-$B$47)/$F$3))),0) -> 1111.111111 | J31: =IFERROR(IF('Proyeccion Cuotas'!$D31="","",(M30*$F$5*'Proyeccion Cuotas'!$K31/365)),"") -> 376.0730594 | K31: =+IF('Proyeccion Cuotas'!$D31="","",'Proyeccion Cuotas'!$H31-H30) -> 30 | L31: =IFERROR('Proyeccion Cuotas'!$I31+'Proyeccion Cuotas'!$J31,"") -> 1487.18417 | M31: =+IFERROR((M30-'Proyeccion Cuotas'!$I31),"") -> 63333.33333
A32: año | B32: =+YEAR(B29) -> 2025 | D32: 16 | E32: =IF('Proyeccion Cuotas'!$D32="","",IF(F31=12,E31+1,E31)) -> 2026 | F32: =IF('Proyeccion Cuotas'!$D32="","",IF(F31=12,1,F31+1)) -> 5 | G32: =+IF('Proyeccion Cuotas'!$D32="","",VLOOKUP('Proyeccion Cuotas'!$F32,$A$16:$B$27,2,FALSE)) -> 31 | H32: =IF('Proyeccion Cuotas'!$D32="","",CONCATENATE('Proyeccion Cuotas'!$G32,"/",'Proyeccion Cuotas'!$F32,"/",'Proyeccion Cuotas'!$E32)) -> 31/5/2026 | I32: =IFERROR(IF('Proyeccion Cuotas'!$D32="","",IF(OR('Proyeccion Cuotas'!$F32=7,'Proyeccion Cuotas'!$F32=12),($B$45+(($F$1-$B$47)/$F$3)),(($F$1-$B$47)/$F$3))),0) -> 1111.111111 | J32: =IFERROR(IF('Proyeccion Cuotas'!$D32="","",(M31*$F$5*'Proyeccion Cuotas'!$K32/365)),"") -> 381.9086758 | K32: =+IF('Proyeccion Cuotas'!$D32="","",'Proyeccion Cuotas'!$H32-H31) -> 31 | L32: =IFERROR('Proyeccion Cuotas'!$I32+'Proyeccion Cuotas'!$J32,"") -> 1493.019787 | M32: =+IFERROR((M31-'Proyeccion Cuotas'!$I32),"") -> 62222.22222
D33: 17 | E33: =IF('Proyeccion Cuotas'!$D33="","",IF(F32=12,E32+1,E32)) -> 2026 | F33: =IF('Proyeccion Cuotas'!$D33="","",IF(F32=12,1,F32+1)) -> 6 | G33: =+IF('Proyeccion Cuotas'!$D33="","",VLOOKUP('Proyeccion Cuotas'!$F33,$A$16:$B$27,2,FALSE)) -> 30 | H33: =IF('Proyeccion Cuotas'!$D33="","",CONCATENATE('Proyeccion Cuotas'!$G33,"/",'Proyeccion Cuotas'!$F33,"/",'Proyeccion Cuotas'!$E33)) -> 30/6/2026 | I33: =IFERROR(IF('Proyeccion Cuotas'!$D33="","",IF(OR('Proyeccion Cuotas'!$F33=7,'Proyeccion Cuotas'!$F33=12),($B$45+(($F$1-$B$47)/$F$3)),(($F$1-$B$47)/$F$3))),0) -> 1111.111111 | J33: =IFERROR(IF('Proyeccion Cuotas'!$D33="","",(M32*$F$5*'Proyeccion Cuotas'!$K33/365)),"") -> 363.1050228 | K33: =+IF('Proyeccion Cuotas'!$D33="","",'Proyeccion Cuotas'!$H33-H32) -> 30 | L33: =IFERROR('Proyeccion Cuotas'!$I33+'Proyeccion Cuotas'!$J33,"") -> 1474.216134 | M33: =+IFERROR((M32-'Proyeccion Cuotas'!$I33),"") -> 61111.11111
A34: fpago | B34: =+CONCATENATE(B36,"/",B35,"/",B37) -> 28/2/2025 | D34: 18 | E34: =IF('Proyeccion Cuotas'!$D34="","",IF(F33=12,E33+1,E33)) -> 2026 | F34: =IF('Proyeccion Cuotas'!$D34="","",IF(F33=12,1,F33+1)) -> 7 | G34: =+IF('Proyeccion Cuotas'!$D34="","",VLOOKUP('Proyeccion Cuotas'!$F34,$A$16:$B$27,2,FALSE)) -> 31 | H34: =IF('Proyeccion Cuotas'!$D34="","",CONCATENATE('Proyeccion Cuotas'!$G34,"/",'Proyeccion Cuotas'!$F34,"/",'Proyeccion Cuotas'!$E34)) -> 31/7/2026 | I34: =IFERROR(IF('Proyeccion Cuotas'!$D34="","",IF(OR('Proyeccion Cuotas'!$F34=7,'Proyeccion Cuotas'!$F34=12),($B$45+(($F$1-$B$47)/$F$3)),(($F$1-$B$47)/$F$3))),0) -> 11111.11111 | J34: =IFERROR(IF('Proyeccion Cuotas'!$D34="","",(M33*$F$5*'Proyeccion Cuotas'!$K34/365)),"") -> 368.5083714 | K34: =+IF('Proyeccion Cuotas'!$D34="","",'Proyeccion Cuotas'!$H34-H33) -> 31 | L34: =IFERROR('Proyeccion Cuotas'!$I34+'Proyeccion Cuotas'!$J34,"") -> 11479.61948 | M34: =+IFERROR((M33-'Proyeccion Cuotas'!$I34),"") -> 50000
A35: mes | B35: =+IF(B30=12,1,B30+1) -> 2 | D35: 19 | E35: =IF('Proyeccion Cuotas'!$D35="","",IF(F34=12,E34+1,E34)) -> 2026 | F35: =IF('Proyeccion Cuotas'!$D35="","",IF(F34=12,1,F34+1)) -> 8 | G35: =+IF('Proyeccion Cuotas'!$D35="","",VLOOKUP('Proyeccion Cuotas'!$F35,$A$16:$B$27,2,FALSE)) -> 31 | H35: =IF('Proyeccion Cuotas'!$D35="","",CONCATENATE('Proyeccion Cuotas'!$G35,"/",'Proyeccion Cuotas'!$F35,"/",'Proyeccion Cuotas'!$E35)) -> 31/8/2026 | I35: =IFERROR(IF('Proyeccion Cuotas'!$D35="","",IF(OR('Proyeccion Cuotas'!$F35=7,'Proyeccion Cuotas'!$F35=12),($B$45+(($F$1-$B$47)/$F$3)),(($F$1-$B$47)/$F$3))),0) -> 1111.111111 | J35: =IFERROR(IF('Proyeccion Cuotas'!$D35="","",(M34*$F$5*'Proyeccion Cuotas'!$K35/365)),"") -> 301.5068493 | K35: =+IF('Proyeccion Cuotas'!$D35="","",'Proyeccion Cuotas'!$H35-H34) -> 31 | L35: =IFERROR('Proyeccion Cuotas'!$I35+'Proyeccion Cuotas'!$J35,"") -> 1412.61796 | M35: =+IFERROR((M34-'Proyeccion Cuotas'!$I35),"") -> 48888.88889
A36: dia | B36: =+IFERROR(VLOOKUP($B$35,$A$16:$B$27,2,FALSE),"revisar") -> 28 | D36: 20 | E36: =IF('Proyeccion Cuotas'!$D36="","",IF(F35=12,E35+1,E35)) -> 2026 | F36: =IF('Proyeccion Cuotas'!$D36="","",IF(F35=12,1,F35+1)) -> 9 | G36: =+IF('Proyeccion Cuotas'!$D36="","",VLOOKUP('Proyeccion Cuotas'!$F36,$A$16:$B$27,2,FALSE)) -> 30 | H36: =IF('Proyeccion Cuotas'!$D36="","",CONCATENATE('Proyeccion Cuotas'!$G36,"/",'Proyeccion Cuotas'!$F36,"/",'Proyeccion Cuotas'!$E36)) -> 30/9/2026 | I36: =IFERROR(IF('Proyeccion Cuotas'!$D36="","",IF(OR('Proyeccion Cuotas'!$F36=7,'Proyeccion Cuotas'!$F36=12),($B$45+(($F$1-$B$47)/$F$3)),(($F$1-$B$47)/$F$3))),0) -> 1111.111111 | J36: =IFERROR(IF('Proyeccion Cuotas'!$D36="","",(M35*$F$5*'Proyeccion Cuotas'!$K36/365)),"") -> 285.2968037 | K36: =+IF('Proyeccion Cuotas'!$D36="","",'Proyeccion Cuotas'!$H36-H35) -> 30 | L36: =IFERROR('Proyeccion Cuotas'!$I36+'Proyeccion Cuotas'!$J36,"") -> 1396.407915 | M36: =+IFERROR((M35-'Proyeccion Cuotas'!$I36),"") -> 47777.77778
A37: año | B37: =+IF(B30=12,B32+1,B32) -> 2025 | D37: 21 | E37: =IF('Proyeccion Cuotas'!$D37="","",IF(F36=12,E36+1,E36)) -> 2026 | F37: =IF('Proyeccion Cuotas'!$D37="","",IF(F36=12,1,F36+1)) -> 10 | G37: =+IF('Proyeccion Cuotas'!$D37="","",VLOOKUP('Proyeccion Cuotas'!$F37,$A$16:$B$27,2,FALSE)) -> 31 | H37: =IF('Proyeccion Cuotas'!$D37="","",CONCATENATE('Proyeccion Cuotas'!$G37,"/",'Proyeccion Cuotas'!$F37,"/",'Proyeccion Cuotas'!$E37)) -> 31/10/2026 | I37: =IFERROR(IF('Proyeccion Cuotas'!$D37="","",IF(OR('Proyeccion Cuotas'!$F37=7,'Proyeccion Cuotas'!$F37=12),($B$45+(($F$1-$B$47)/$F$3)),(($F$1-$B$47)/$F$3))),0) -> 1111.111111 | J37: =IFERROR(IF('Proyeccion Cuotas'!$D37="","",(M36*$F$5*'Proyeccion Cuotas'!$K37/365)),"") -> 288.1065449 | K37: =+IF('Proyeccion Cuotas'!$D37="","",'Proyeccion Cuotas'!$H37-H36) -> 31 | L37: =IFERROR('Proyeccion Cuotas'!$I37+'Proyeccion Cuotas'!$J37,"") -> 1399.217656 | M37: =+IFERROR((M36-'Proyeccion Cuotas'!$I37),"") -> 46666.66667
D38: 22 | E38: =IF('Proyeccion Cuotas'!$D38="","",IF(F37=12,E37+1,E37)) -> 2026 | F38: =IF('Proyeccion Cuotas'!$D38="","",IF(F37=12,1,F37+1)) -> 11 | G38: =+IF('Proyeccion Cuotas'!$D38="","",VLOOKUP('Proyeccion Cuotas'!$F38,$A$16:$B$27,2,FALSE)) -> 30 | H38: =IF('Proyeccion Cuotas'!$D38="","",CONCATENATE('Proyeccion Cuotas'!$G38,"/",'Proyeccion Cuotas'!$F38,"/",'Proyeccion Cuotas'!$E38)) -> 30/11/2026 | I38: =IFERROR(IF('Proyeccion Cuotas'!$D38="","",IF(OR('Proyeccion Cuotas'!$F38=7,'Proyeccion Cuotas'!$F38=12),($B$45+(($F$1-$B$47)/$F$3)),(($F$1-$B$47)/$F$3))),0) -> 1111.111111 | J38: =IFERROR(IF('Proyeccion Cuotas'!$D38="","",(M37*$F$5*'Proyeccion Cuotas'!$K38/365)),"") -> 272.3287671 | K38: =+IF('Proyeccion Cuotas'!$D38="","",'Proyeccion Cuotas'!$H38-H37) -> 30 | L38: =IFERROR('Proyeccion Cuotas'!$I38+'Proyeccion Cuotas'!$J38,"") -> 1383.439878 | M38: =+IFERROR((M37-'Proyeccion Cuotas'!$I38),"") -> 45555.55556
A39: fpago Int | B39: =+CONCATENATE(B41,"/",B40,"/",B42) -> 31/1/2025 | D39: 23 | E39: =IF('Proyeccion Cuotas'!$D39="","",IF(F38=12,E38+1,E38)) -> 2026 | F39: =IF('Proyeccion Cuotas'!$D39="","",IF(F38=12,1,F38+1)) -> 12 | G39: =+IF('Proyeccion Cuotas'!$D39="","",VLOOKUP('Proyeccion Cuotas'!$F39,$A$16:$B$27,2,FALSE)) -> 31 | H39: =IF('Proyeccion Cuotas'!$D39="","",CONCATENATE('Proyeccion Cuotas'!$G39,"/",'Proyeccion Cuotas'!$F39,"/",'Proyeccion Cuotas'!$E39)) -> 31/12/2026 | I39: =IFERROR(IF('Proyeccion Cuotas'!$D39="","",IF(OR('Proyeccion Cuotas'!$F39=7,'Proyeccion Cuotas'!$F39=12),($B$45+(($F$1-$B$47)/$F$3)),(($F$1-$B$47)/$F$3))),0) -> 11111.11111 | J39: =IFERROR(IF('Proyeccion Cuotas'!$D39="","",(M38*$F$5*'Proyeccion Cuotas'!$K39/365)),"") -> 274.7062405 | K39: =+IF('Proyeccion Cuotas'!$D39="","",'Proyeccion Cuotas'!$H39-H38) -> 31 | L39: =IFERROR('Proyeccion Cuotas'!$I39+'Proyeccion Cuotas'!$J39,"") -> 11385.81735 | M39: =+IFERROR((M38-'Proyeccion Cuotas'!$I39),"") -> 34444.44444
A40: mes | B40: =+MONTH(B29) -> 1 | D40: 24 | E40: =IF('Proyeccion Cuotas'!$D40="","",IF(F39=12,E39+1,E39)) -> 2027 | F40: =IF('Proyeccion Cuotas'!$D40="","",IF(F39=12,1,F39+1)) -> 1 | G40: =+IF('Proyeccion Cuotas'!$D40="","",VLOOKUP('Proyeccion Cuotas'!$F40,$A$16:$B$27,2,FALSE)) -> 31 | H40: =IF('Proyeccion Cuotas'!$D40="","",CONCATENATE('Proyeccion Cuotas'!$G40,"/",'Proyeccion Cuotas'!$F40,"/",'Proyeccion Cuotas'!$E40)) -> 31/1/2027 | I40: =IFERROR(IF('Proyeccion Cuotas'!$D40="","",IF(OR('Proyeccion Cuotas'!$F40=7,'Proyeccion Cuotas'!$F40=12),($B$45+(($F$1-$B$47)/$F$3)),(($F$1-$B$47)/$F$3))),0) -> 1111.111111 | J40: =IFERROR(IF('Proyeccion Cuotas'!$D40="","",(M39*$F$5*'Proyeccion Cuotas'!$K40/365)),"") -> 207.7047184 | K40: =+IF('Proyeccion Cuotas'!$D40="","",'Proyeccion Cuotas'!$H40-H39) -> 31 | L40: =IFERROR('Proyeccion Cuotas'!$I40+'Proyeccion Cuotas'!$J40,"") -> 1318.81583 | M40: =+IFERROR((M39-'Proyeccion Cuotas'!$I40),"") -> 33333.33333
A41: dia | B41: =+VLOOKUP(B40,$A$16:$B$27,2,FALSE) -> 31 | D41: 25 | E41: =IF('Proyeccion Cuotas'!$D41="","",IF(F40=12,E40+1,E40)) -> 2027 | F41: =IF('Proyeccion Cuotas'!$D41="","",IF(F40=12,1,F40+1)) -> 2 | G41: =+IF('Proyeccion Cuotas'!$D41="","",VLOOKUP('Proyeccion Cuotas'!$F41,$A$16:$B$27,2,FALSE)) -> 28 | H41: =IF('Proyeccion Cuotas'!$D41="","",CONCATENATE('Proyeccion Cuotas'!$G41,"/",'Proyeccion Cuotas'!$F41,"/",'Proyeccion Cuotas'!$E41)) -> 28/2/2027 | I41: =IFERROR(IF('Proyeccion Cuotas'!$D41="","",IF(OR('Proyeccion Cuotas'!$F41=7,'Proyeccion Cuotas'!$F41=12),($B$45+(($F$1-$B$47)/$F$3)),(($F$1-$B$47)/$F$3))),0) -> 1111.111111 | J41: =IFERROR(IF('Proyeccion Cuotas'!$D41="","",(M40*$F$5*'Proyeccion Cuotas'!$K41/365)),"") -> 181.5525114 | K41: =+IF('Proyeccion Cuotas'!$D41="","",'Proyeccion Cuotas'!$H41-H40) -> 28 | L41: =IFERROR('Proyeccion Cuotas'!$I41+'Proyeccion Cuotas'!$J41,"") -> 1292.663623 | M41: =+IFERROR((M40-'Proyeccion Cuotas'!$I41),"") -> 32222.22222
A42: año | B42: =+B32 -> 2025 | D42: 26 | E42: =IF('Proyeccion Cuotas'!$D42="","",IF(F41=12,E41+1,E41)) -> 2027 | F42: =IF('Proyeccion Cuotas'!$D42="","",IF(F41=12,1,F41+1)) -> 3 | G42: =+IF('Proyeccion Cuotas'!$D42="","",VLOOKUP('Proyeccion Cuotas'!$F42,$A$16:$B$27,2,FALSE)) -> 31 | H42: =IF('Proyeccion Cuotas'!$D42="","",CONCATENATE('Proyeccion Cuotas'!$G42,"/",'Proyeccion Cuotas'!$F42,"/",'Proyeccion Cuotas'!$E42)) -> 31/3/2027 | I42: =IFERROR(IF('Proyeccion Cuotas'!$D42="","",IF(OR('Proyeccion Cuotas'!$F42=7,'Proyeccion Cuotas'!$F42=12),($B$45+(($F$1-$B$47)/$F$3)),(($F$1-$B$47)/$F$3))),0) -> 1111.111111 | J42: =IFERROR(IF('Proyeccion Cuotas'!$D42="","",(M41*$F$5*'Proyeccion Cuotas'!$K42/365)),"") -> 194.304414 | K42: =+IF('Proyeccion Cuotas'!$D42="","",'Proyeccion Cuotas'!$H42-H41) -> 31 | L42: =IFERROR('Proyeccion Cuotas'!$I42+'Proyeccion Cuotas'!$J42,"") -> 1305.415525 | M42: =+IFERROR((M41-'Proyeccion Cuotas'!$I42),"") -> 31111.11111
D43: 27 | E43: =IF('Proyeccion Cuotas'!$D43="","",IF(F42=12,E42+1,E42)) -> 2027 | F43: =IF('Proyeccion Cuotas'!$D43="","",IF(F42=12,1,F42+1)) -> 4 | G43: =+IF('Proyeccion Cuotas'!$D43="","",VLOOKUP('Proyeccion Cuotas'!$F43,$A$16:$B$27,2,FALSE)) -> 30 | H43: =IF('Proyeccion Cuotas'!$D43="","",CONCATENATE('Proyeccion Cuotas'!$G43,"/",'Proyeccion Cuotas'!$F43,"/",'Proyeccion Cuotas'!$E43)) -> 30/4/2027 | I43: =IFERROR(IF('Proyeccion Cuotas'!$D43="","",IF(OR('Proyeccion Cuotas'!$F43=7,'Proyeccion Cuotas'!$F43=12),($B$45+(($F$1-$B$47)/$F$3)),(($F$1-$B$47)/$F$3))),0) -> 1111.111111 | J43: =IFERROR(IF('Proyeccion Cuotas'!$D43="","",(M42*$F$5*'Proyeccion Cuotas'!$K43/365)),"") -> 181.5525114 | K43: =+IF('Proyeccion Cuotas'!$D43="","",'Proyeccion Cuotas'!$H43-H42) -> 30 | L43: =IFERROR('Proyeccion Cuotas'!$I43+'Proyeccion Cuotas'!$J43,"") -> 1292.663623 | M43: =+IFERROR((M42-'Proyeccion Cuotas'!$I43),"") -> 30000
A44: Abonos Capital | D44: 28 | E44: =IF('Proyeccion Cuotas'!$D44="","",IF(F43=12,E43+1,E43)) -> 2027 | F44: =IF('Proyeccion Cuotas'!$D44="","",IF(F43=12,1,F43+1)) -> 5 | G44: =+IF('Proyeccion Cuotas'!$D44="","",VLOOKUP('Proyeccion Cuotas'!$F44,$A$16:$B$27,2,FALSE)) -> 31 | H44: =IF('Proyeccion Cuotas'!$D44="","",CONCATENATE('Proyeccion Cuotas'!$G44,"/",'Proyeccion Cuotas'!$F44,"/",'Proyeccion Cuotas'!$E44)) -> 31/5/2027 | I44: =IFERROR(IF('Proyeccion Cuotas'!$D44="","",IF(OR('Proyeccion Cuotas'!$F44=7,'Proyeccion Cuotas'!$F44=12),($B$45+(($F$1-$B$47)/$F$3)),(($F$1-$B$47)/$F$3))),0) -> 1111.111111 | J44: =IFERROR(IF('Proyeccion Cuotas'!$D44="","",(M43*$F$5*'Proyeccion Cuotas'!$K44/365)),"") -> 180.9041096 | K44: =+IF('Proyeccion Cuotas'!$D44="","",'Proyeccion Cuotas'!$H44-H43) -> 31 | L44: =IFERROR('Proyeccion Cuotas'!$I44+'Proyeccion Cuotas'!$J44,"") -> 1292.015221 | M44: =+IFERROR((M43-'Proyeccion Cuotas'!$I44),"") -> 28888.88889
A45: =+'Ingreso de Datos'!D7/12 -> 3 | B45: =+'Ingreso de Datos'!D13 -> 10000 | D45: 29 | E45: =IF('Proyeccion Cuotas'!$D45="","",IF(F44=12,E44+1,E44)) -> 2027 | F45: =IF('Proyeccion Cuotas'!$D45="","",IF(F44=12,1,F44+1)) -> 6 | G45: =+IF('Proyeccion Cuotas'!$D45="","",VLOOKUP('Proyeccion Cuotas'!$F45,$A$16:$B$27,2,FALSE)) -> 30 | H45: =IF('Proyeccion Cuotas'!$D45="","",CONCATENATE('Proyeccion Cuotas'!$G45,"/",'Proyeccion Cuotas'!$F45,"/",'Proyeccion Cuotas'!$E45)) -> 30/6/2027 | I45: =IFERROR(IF('Proyeccion Cuotas'!$D45="","",IF(OR('Proyeccion Cuotas'!$F45=7,'Proyeccion Cuotas'!$F45=12),($B$45+(($F$1-$B$47)/$F$3)),(($F$1-$B$47)/$F$3))),0) -> 1111.111111 | J45: =IFERROR(IF('Proyeccion Cuotas'!$D45="","",(M44*$F$5*'Proyeccion Cuotas'!$K45/365)),"") -> 168.5844749 | K45: =+IF('Proyeccion Cuotas'!$D45="","",'Proyeccion Cuotas'!$H45-H44) -> 30 | L45: =IFERROR('Proyeccion Cuotas'!$I45+'Proyeccion Cuotas'!$J45,"") -> 1279.695586 | M45: =+IFERROR((M44-'Proyeccion Cuotas'!$I45),"") -> 27777.77778
A46: Anual | B46: =+B45*2 -> 20000 | D46: 30 | E46: =IF('Proyeccion Cuotas'!$D46="","",IF(F45=12,E45+1,E45)) -> 2027 | F46: =IF('Proyeccion Cuotas'!$D46="","",IF(F45=12,1,F45+1)) -> 7 | G46: =+IF('Proyeccion Cuotas'!$D46="","",VLOOKUP('Proyeccion Cuotas'!$F46,$A$16:$B$27,2,FALSE)) -> 31 | H46: =IF('Proyeccion Cuotas'!$D46="","",CONCATENATE('Proyeccion Cuotas'!$G46,"/",'Proyeccion Cuotas'!$F46,"/",'Proyeccion Cuotas'!$E46)) -> 31/7/2027 | I46: =IFERROR(IF('Proyeccion Cuotas'!$D46="","",IF(OR('Proyeccion Cuotas'!$F46=7,'Proyeccion Cuotas'!$F46=12),($B$45+(($F$1-$B$47)/$F$3)),(($F$1-$B$47)/$F$3))),0) -> 11111.11111 | J46: =IFERROR(IF('Proyeccion Cuotas'!$D46="","",(M45*$F$5*'Proyeccion Cuotas'!$K46/365)),"") -> 167.5038052 | K46: =+IF('Proyeccion Cuotas'!$D46="","",'Proyeccion Cuotas'!$H46-H45) -> 31 | L46: =IFERROR('Proyeccion Cuotas'!$I46+'Proyeccion Cuotas'!$J46,"") -> 11278.61492 | M46: =+IFERROR((M45-'Proyeccion Cuotas'!$I46),"") -> 16666.66667
A47: Total Plazo | B47: =+B46*A45 -> 60000 | D47: 31 | E47: =IF('Proyeccion Cuotas'!$D47="","",IF(F46=12,E46+1,E46)) -> 2027 | F47: =IF('Proyeccion Cuotas'!$D47="","",IF(F46=12,1,F46+1)) -> 8 | G47: =+IF('Proyeccion Cuotas'!$D47="","",VLOOKUP('Proyeccion Cuotas'!$F47,$A$16:$B$27,2,FALSE)) -> 31 | H47: =IF('Proyeccion Cuotas'!$D47="","",CONCATENATE('Proyeccion Cuotas'!$G47,"/",'Proyeccion Cuotas'!$F47,"/",'Proyeccion Cuotas'!$E47)) -> 31/8/2027 | I47: =IFERROR(IF('Proyeccion Cuotas'!$D47="","",IF(OR('Proyeccion Cuotas'!$F47=7,'Proyeccion Cuotas'!$F47=12),($B$45+(($F$1-$B$47)/$F$3)),(($F$1-$B$47)/$F$3))),0) -> 1111.111111 | J47: =IFERROR(IF('Proyeccion Cuotas'!$D47="","",(M46*$F$5*'Proyeccion Cuotas'!$K47/365)),"") -> 100.5022831 | K47: =+IF('Proyeccion Cuotas'!$D47="","",'Proyeccion Cuotas'!$H47-H46) -> 31 | L47: =IFERROR('Proyeccion Cuotas'!$I47+'Proyeccion Cuotas'!$J47,"") -> 1211.613394 | M47: =+IFERROR((M46-'Proyeccion Cuotas'!$I47),"") -> 15555.55556
D48: 32 | E48: =IF('Proyeccion Cuotas'!$D48="","",IF(F47=12,E47+1,E47)) -> 2027 | F48: =IF('Proyeccion Cuotas'!$D48="","",IF(F47=12,1,F47+1)) -> 9 | G48: =+IF('Proyeccion Cuotas'!$D48="","",VLOOKUP('Proyeccion Cuotas'!$F48,$A$16:$B$27,2,FALSE)) -> 30 | H48: =IF('Proyeccion Cuotas'!$D48="","",CONCATENATE('Proyeccion Cuotas'!$G48,"/",'Proyeccion Cuotas'!$F48,"/",'Proyeccion Cuotas'!$E48)) -> 30/9/2027 | I48: =IFERROR(IF('Proyeccion Cuotas'!$D48="","",IF(OR('Proyeccion Cuotas'!$F48=7,'Proyeccion Cuotas'!$F48=12),($B$45+(($F$1-$B$47)/$F$3)),(($F$1-$B$47)/$F$3))),0) -> 1111.111111 | J48: =IFERROR(IF('Proyeccion Cuotas'!$D48="","",(M47*$F$5*'Proyeccion Cuotas'!$K48/365)),"") -> 90.77625571 | K48: =+IF('Proyeccion Cuotas'!$D48="","",'Proyeccion Cuotas'!$H48-H47) -> 30 | L48: =IFERROR('Proyeccion Cuotas'!$I48+'Proyeccion Cuotas'!$J48,"") -> 1201.887367 | M48: =+IFERROR((M47-'Proyeccion Cuotas'!$I48),"") -> 14444.44444
A49: =+M16 -> 100000 | B49: =+A49-B47 -> 40000 | D49: 33 | E49: =IF('Proyeccion Cuotas'!$D49="","",IF(F48=12,E48+1,E48)) -> 2027 | F49: =IF('Proyeccion Cuotas'!$D49="","",IF(F48=12,1,F48+1)) -> 10 | G49: =+IF('Proyeccion Cuotas'!$D49="","",VLOOKUP('Proyeccion Cuotas'!$F49,$A$16:$B$27,2,FALSE)) -> 31 | H49: =IF('Proyeccion Cuotas'!$D49="","",CONCATENATE('Proyeccion Cuotas'!$G49,"/",'Proyeccion Cuotas'!$F49,"/",'Proyeccion Cuotas'!$E49)) -> 31/10/2027 | I49: =IFERROR(IF('Proyeccion Cuotas'!$D49="","",IF(OR('Proyeccion Cuotas'!$F49=7,'Proyeccion Cuotas'!$F49=12),($B$45+(($F$1-$B$47)/$F$3)),(($F$1-$B$47)/$F$3))),0) -> 1111.111111 | J49: =IFERROR(IF('Proyeccion Cuotas'!$D49="","",(M48*$F$5*'Proyeccion Cuotas'!$K49/365)),"") -> 87.10197869 | K49: =+IF('Proyeccion Cuotas'!$D49="","",'Proyeccion Cuotas'!$H49-H48) -> 31 | L49: =IFERROR('Proyeccion Cuotas'!$I49+'Proyeccion Cuotas'!$J49,"") -> 1198.21309 | M49: =+IFERROR((M48-'Proyeccion Cuotas'!$I49),"") -> 13333.33333
D50: 34 | E50: =IF('Proyeccion Cuotas'!$D50="","",IF(F49=12,E49+1,E49)) -> 2027 | F50: =IF('Proyeccion Cuotas'!$D50="","",IF(F49=12,1,F49+1)) -> 11 | G50: =+IF('Proyeccion Cuotas'!$D50="","",VLOOKUP('Proyeccion Cuotas'!$F50,$A$16:$B$27,2,FALSE)) -> 30 | H50: =IF('Proyeccion Cuotas'!$D50="","",CONCATENATE('Proyeccion Cuotas'!$G50,"/",'Proyeccion Cuotas'!$F50,"/",'Proyeccion Cuotas'!$E50)) -> 30/11/2027 | I50: =IFERROR(IF('Proyeccion Cuotas'!$D50="","",IF(OR('Proyeccion Cuotas'!$F50=7,'Proyeccion Cuotas'!$F50=12),($B$45+(($F$1-$B$47)/$F$3)),(($F$1-$B$47)/$F$3))),0) -> 1111.111111 | J50: =IFERROR(IF('Proyeccion Cuotas'!$D50="","",(M49*$F$5*'Proyeccion Cuotas'!$K50/365)),"") -> 77.80821918 | K50: =+IF('Proyeccion Cuotas'!$D50="","",'Proyeccion Cuotas'!$H50-H49) -> 30 | L50: =IFERROR('Proyeccion Cuotas'!$I50+'Proyeccion Cuotas'!$J50,"") -> 1188.91933 | M50: =+IFERROR((M49-'Proyeccion Cuotas'!$I50),"") -> 12222.22222
D51: 35 | E51: =IF('Proyeccion Cuotas'!$D51="","",IF(F50=12,E50+1,E50)) -> 2027 | F51: =IF('Proyeccion Cuotas'!$D51="","",IF(F50=12,1,F50+1)) -> 12 | G51: =+IF('Proyeccion Cuotas'!$D51="","",VLOOKUP('Proyeccion Cuotas'!$F51,$A$16:$B$27,2,FALSE)) -> 31 | H51: =IF('Proyeccion Cuotas'!$D51="","",CONCATENATE('Proyeccion Cuotas'!$G51,"/",'Proyeccion Cuotas'!$F51,"/",'Proyeccion Cuotas'!$E51)) -> 31/12/2027 | I51: =IFERROR(IF('Proyeccion Cuotas'!$D51="","",IF(OR('Proyeccion Cuotas'!$F51=7,'Proyeccion Cuotas'!$F51=12),($B$45+(($F$1-$B$47)/$F$3)),(($F$1-$B$47)/$F$3))),0) -> 11111.11111 | J51: =IFERROR(IF('Proyeccion Cuotas'!$D51="","",(M50*$F$5*'Proyeccion Cuotas'!$K51/365)),"") -> 73.70167428 | K51: =+IF('Proyeccion Cuotas'!$D51="","",'Proyeccion Cuotas'!$H51-H50) -> 31 | L51: =IFERROR('Proyeccion Cuotas'!$I51+'Proyeccion Cuotas'!$J51,"") -> 11184.81279 | M51: =+IFERROR((M50-'Proyeccion Cuotas'!$I51),"") -> 1111.111111
D52: 36 | E52: =IF('Proyeccion Cuotas'!$D52="","",IF(F51=12,E51+1,E51)) -> 2028 | F52: =IF('Proyeccion Cuotas'!$D52="","",IF(F51=12,1,F51+1)) -> 1 | G52: =+IF('Proyeccion Cuotas'!$D52="","",VLOOKUP('Proyeccion Cuotas'!$F52,$A$16:$B$27,2,FALSE)) -> 31 | H52: =IF('Proyeccion Cuotas'!$D52="","",CONCATENATE('Proyeccion Cuotas'!$G52,"/",'Proyeccion Cuotas'!$F52,"/",'Proyeccion Cuotas'!$E52)) -> 31/1/2028 | I52: =IFERROR(IF('Proyeccion Cuotas'!$D52="","",IF(OR('Proyeccion Cuotas'!$F52=7,'Proyeccion Cuotas'!$F52=12),($B$45+(($F$1-$B$47)/$F$3)),(($F$1-$B$47)/$F$3))),0) -> 1111.111111 | J52: =IFERROR(IF('Proyeccion Cuotas'!$D52="","",(M51*$F$5*'Proyeccion Cuotas'!$K52/365)),"") -> 6.700152207 | K52: =+IF('Proyeccion Cuotas'!$D52="","",'Proyeccion Cuotas'!$H52-H51) -> 31 | L52: =IFERROR('Proyeccion Cuotas'!$I52+'Proyeccion Cuotas'!$J52,"") -> 1117.811263 | M52: =+IFERROR((M51-'Proyeccion Cuotas'!$I52),"") -> 4.752109817e-11
E53: =IF('Proyeccion Cuotas'!$D53="","",IF(F52=12,E52+1,E52)) ->  | F53: =IF('Proyeccion Cuotas'!$D53="","",IF(F52=12,1,F52+1)) ->  | G53: =+IF('Proyeccion Cuotas'!$D53="","",VLOOKUP('Proyeccion Cuotas'!$F53,$A$16:$B$27,2,FALSE)) ->  | H53: =IF('Proyeccion Cuotas'!$D53="","",CONCATENATE('Proyeccion Cuotas'!$G53,"/",'Proyeccion Cuotas'!$F53,"/",'Proyeccion Cuotas'!$E53)) ->  | I53: =IFERROR(IF('Proyeccion Cuotas'!$D53="","",IF(OR('Proyeccion Cuotas'!$F53=7,'Proyeccion Cuotas'!$F53=12),($B$45+(($F$1-$B$47)/$F$3)),(($F$1-$B$47)/$F$3))),0) ->  | J53: =IFERROR(IF('Proyeccion Cuotas'!$D53="","",(M52*$F$5*'Proyeccion Cuotas'!$K53/365)),"") ->  | K53: =+IF('Proyeccion Cuotas'!$D53="","",'Proyeccion Cuotas'!$H53-H52) ->  | L53: =IFERROR('Proyeccion Cuotas'!$I53+'Proyeccion Cuotas'!$J53,"") ->  | M53: =+IFERROR((M52-'Proyeccion Cuotas'!$I53),"") -> 
E54: =IF('Proyeccion Cuotas'!$D54="","",IF(F53=12,E53+1,E53)) ->  | F54: =IF('Proyeccion Cuotas'!$D54="","",IF(F53=12,1,F53+1)) ->  | G54: =+IF('Proyeccion Cuotas'!$D54="","",VLOOKUP('Proyeccion Cuotas'!$F54,$A$16:$B$27,2,FALSE)) ->  | H54: =IF('Proyeccion Cuotas'!$D54="","",CONCATENATE('Proyeccion Cuotas'!$G54,"/",'Proyeccion Cuotas'!$F54,"/",'Proyeccion Cuotas'!$E54)) ->  | I54: =IFERROR(IF('Proyeccion Cuotas'!$D54="","",IF(OR('Proyeccion Cuotas'!$F54=7,'Proyeccion Cuotas'!$F54=12),($B$45+(($F$1-$B$47)/$F$3)),(($F$1-$B$47)/$F$3))),0) ->  | J54: =IFERROR(IF('Proyeccion Cuotas'!$D54="","",(M53*$F$5*'Proyeccion Cuotas'!$K54/365)),"") ->  | K54: =+IF('Proyeccion Cuotas'!$D54="","",'Proyeccion Cuotas'!$H54-H53) ->  | L54: =IFERROR('Proyeccion Cuotas'!$I54+'Proyeccion Cuotas'!$J54,"") ->  | M54: =+IFERROR((M53-'Proyeccion Cuotas'!$I54),"") -> 
E55: =IF('Proyeccion Cuotas'!$D55="","",IF(F54=12,E54+1,E54)) ->  | F55: =IF('Proyeccion Cuotas'!$D55="","",IF(F54=12,1,F54+1)) ->  | G55: =+IF('Proyeccion Cuotas'!$D55="","",VLOOKUP('Proyeccion Cuotas'!$F55,$A$16:$B$27,2,FALSE)) ->  | H55: =IF('Proyeccion Cuotas'!$D55="","",CONCATENATE('Proyeccion Cuotas'!$G55,"/",'Proyeccion Cuotas'!$F55,"/",'Proyeccion Cuotas'!$E55)) ->  | I55: =IFERROR(IF('Proyeccion Cuotas'!$D55="","",IF(OR('Proyeccion Cuotas'!$F55=7,'Proyeccion Cuotas'!$F55=12),($B$45+(($F$1-$B$47)/$F$3)),(($F$1-$B$47)/$F$3))),0) ->  | J55: =IFERROR(IF('Proyeccion Cuotas'!$D55="","",(M54*$F$5*'Proyeccion Cuotas'!$K55/365)),"") ->  | K55: =+IF('Proyeccion Cuotas'!$D55="","",'Proyeccion Cuotas'!$H55-H54) ->  | L55: =IFERROR('Proyeccion Cuotas'!$I55+'Proyeccion Cuotas'!$J55,"") ->  | M55: =+IFERROR((M54-'Proyeccion Cuotas'!$I55),"") -> 
E56: =IF('Proyeccion Cuotas'!$D56="","",IF(F55=12,E55+1,E55)) ->  | F56: =IF('Proyeccion Cuotas'!$D56="","",IF(F55=12,1,F55+1)) ->  | G56: =+IF('Proyeccion Cuotas'!$D56="","",VLOOKUP('Proyeccion Cuotas'!$F56,$A$16:$B$27,2,FALSE)) ->  | H56: =IF('Proyeccion Cuotas'!$D56="","",CONCATENATE('Proyeccion Cuotas'!$G56,"/",'Proyeccion Cuotas'!$F56,"/",'Proyeccion Cuotas'!$E56)) ->  | I56: =IFERROR(IF('Proyeccion Cuotas'!$D56="","",IF(OR('Proyeccion Cuotas'!$F56=7,'Proyeccion Cuotas'!$F56=12),($B$45+(($F$1-$B$47)/$F$3)),(($F$1-$B$47)/$F$3))),0) ->  | J56: =IFERROR(IF('Proyeccion Cuotas'!$D56="","",(M55*$F$5*'Proyeccion Cuotas'!$K56/365)),"") ->  | K56: =+IF('Proyeccion Cuotas'!$D56="","",'Proyeccion Cuotas'!$H56-H55) ->  | L56: =IFERROR('Proyeccion Cuotas'!$I56+'Proyeccion Cuotas'!$J56,"") ->  | M56: =+IFERROR((M55-'Proyeccion Cuotas'!$I56),"") -> 
E57: =IF('Proyeccion Cuotas'!$D57="","",IF(F56=12,E56+1,E56)) ->  | F57: =IF('Proyeccion Cuotas'!$D57="","",IF(F56=12,1,F56+1)) ->  | G57: =+IF('Proyeccion Cuotas'!$D57="","",VLOOKUP('Proyeccion Cuotas'!$F57,$A$16:$B$27,2,FALSE)) ->  | H57: =IF('Proyeccion Cuotas'!$D57="","",CONCATENATE('Proyeccion Cuotas'!$G57,"/",'Proyeccion Cuotas'!$F57,"/",'Proyeccion Cuotas'!$E57)) ->  | I57: =IFERROR(IF('Proyeccion Cuotas'!$D57="","",IF(OR('Proyeccion Cuotas'!$F57=7,'Proyeccion Cuotas'!$F57=12),($B$45+(($F$1-$B$47)/$F$3)),(($F$1-$B$47)/$F$3))),0) ->  | J57: =IFERROR(IF('Proyeccion Cuotas'!$D57="","",(M56*$F$5*'Proyeccion Cuotas'!$K57/365)),"") ->  | K57: =+IF('Proyeccion Cuotas'!$D57="","",'Proyeccion Cuotas'!$H57-H56) ->  | L57: =IFERROR('Proyeccion Cuotas'!$I57+'Proyeccion Cuotas'!$J57,"") ->  | M57: =+IFERROR((M56-'Proyeccion Cuotas'!$I57),"") -> 
E58: =IF('Proyeccion Cuotas'!$D58="","",IF(F57=12,E57+1,E57)) ->  | F58: =IF('Proyeccion Cuotas'!$D58="","",IF(F57=12,1,F57+1)) ->  | G58: =+IF('Proyeccion Cuotas'!$D58="","",VLOOKUP('Proyeccion Cuotas'!$F58,$A$16:$B$27,2,FALSE)) ->  | H58: =IF('Proyeccion Cuotas'!$D58="","",CONCATENATE('Proyeccion Cuotas'!$G58,"/",'Proyeccion Cuotas'!$F58,"/",'Proyeccion Cuotas'!$E58)) ->  | I58: =IFERROR(IF('Proyeccion Cuotas'!$D58="","",IF(OR('Proyeccion Cuotas'!$F58=7,'Proyeccion Cuotas'!$F58=12),($B$45+(($F$1-$B$47)/$F$3)),(($F$1-$B$47)/$F$3))),0) ->  | J58: =IFERROR(IF('Proyeccion Cuotas'!$D58="","",(M57*$F$5*'Proyeccion Cuotas'!$K58/365)),"") ->  | K58: =+IF('Proyeccion Cuotas'!$D58="","",'Proyeccion Cuotas'!$H58-H57) ->  | L58: =IFERROR('Proyeccion Cuotas'!$I58+'Proyeccion Cuotas'!$J58,"") ->  | M58: =+IFERROR((M57-'Proyeccion Cuotas'!$I58),"") -> 
E59: =IF('Proyeccion Cuotas'!$D59="","",IF(F58=12,E58+1,E58)) ->  | F59: =IF('Proyeccion Cuotas'!$D59="","",IF(F58=12,1,F58+1)) ->  | G59: =+IF('Proyeccion Cuotas'!$D59="","",VLOOKUP('Proyeccion Cuotas'!$F59,$A$16:$B$27,2,FALSE)) ->  | H59: =IF('Proyeccion Cuotas'!$D59="","",CONCATENATE('Proyeccion Cuotas'!$G59,"/",'Proyeccion Cuotas'!$F59,"/",'Proyeccion Cuotas'!$E59)) ->  | I59: =IFERROR(IF('Proyeccion Cuotas'!$D59="","",IF(OR('Proyeccion Cuotas'!$F59=7,'Proyeccion Cuotas'!$F59=12),($B$45+(($F$1-$B$47)/$F$3)),(($F$1-$B$47)/$F$3))),0) ->  | J59: =IFERROR(IF('Proyeccion Cuotas'!$D59="","",(M58*$F$5*'Proyeccion Cuotas'!$K59/365)),"") ->  | K59: =+IF('Proyeccion Cuotas'!$D59="","",'Proyeccion Cuotas'!$H59-H58) ->  | L59: =IFERROR('Proyeccion Cuotas'!$I59+'Proyeccion Cuotas'!$J59,"") ->  | M59: =+IFERROR((M58-'Proyeccion Cuotas'!$I59),"") -> 
E60: =IF('Proyeccion Cuotas'!$D60="","",IF(F59=12,E59+1,E59)) ->  | F60: =IF('Proyeccion Cuotas'!$D60="","",IF(F59=12,1,F59+1)) ->  | G60: =+IF('Proyeccion Cuotas'!$D60="","",VLOOKUP('Proyeccion Cuotas'!$F60,$A$16:$B$27,2,FALSE)) ->  | H60: =IF('Proyeccion Cuotas'!$D60="","",CONCATENATE('Proyeccion Cuotas'!$G60,"/",'Proyeccion Cuotas'!$F60,"/",'Proyeccion Cuotas'!$E60)) ->  | I60: =IFERROR(IF('Proyeccion Cuotas'!$D60="","",IF(OR('Proyeccion Cuotas'!$F60=7,'Proyeccion Cuotas'!$F60=12),($B$45+(($F$1-$B$47)/$F$3)),(($F$1-$B$47)/$F$3))),0) ->  | J60: =IFERROR(IF('Proyeccion Cuotas'!$D60="","",(M59*$F$5*'Proyeccion Cuotas'!$K60/365)),"") ->  | K60: =+IF('Proyeccion Cuotas'!$D60="","",'Proyeccion Cuotas'!$H60-H59) ->  | L60: =IFERROR('Proyeccion Cuotas'!$I60+'Proyeccion Cuotas'!$J60,"") ->  | M60: =+IFERROR((M59-'Proyeccion Cuotas'!$I60),"") -> 
E61: =IF('Proyeccion Cuotas'!$D61="","",IF(F60=12,E60+1,E60)) ->  | F61: =IF('Proyeccion Cuotas'!$D61="","",IF(F60=12,1,F60+1)) ->  | G61: =+IF('Proyeccion Cuotas'!$D61="","",VLOOKUP('Proyeccion Cuotas'!$F61,$A$16:$B$27,2,FALSE)) ->  | H61: =IF('Proyeccion Cuotas'!$D61="","",CONCATENATE('Proyeccion Cuotas'!$G61,"/",'Proyeccion Cuotas'!$F61,"/",'Proyeccion Cuotas'!$E61)) ->  | I61: =IFERROR(IF('Proyeccion Cuotas'!$D61="","",IF(OR('Proyeccion Cuotas'!$F61=7,'Proyeccion Cuotas'!$F61=12),($B$45+(($F$1-$B$47)/$F$3)),(($F$1-$B$47)/$F$3))),0) ->  | J61: =IFERROR(IF('Proyeccion Cuotas'!$D61="","",(M60*$F$5*'Proyeccion Cuotas'!$K61/365)),"") ->  | K61: =+IF('Proyeccion Cuotas'!$D61="","",'Proyeccion Cuotas'!$H61-H60) ->  | L61: =IFERROR('Proyeccion Cuotas'!$I61+'Proyeccion Cuotas'!$J61,"") ->  | M61: =+IFERROR((M60-'Proyeccion Cuotas'!$I61),"") -> 
E62: =IF('Proyeccion Cuotas'!$D62="","",IF(F61=12,E61+1,E61)) ->  | F62: =IF('Proyeccion Cuotas'!$D62="","",IF(F61=12,1,F61+1)) ->  | G62: =+IF('Proyeccion Cuotas'!$D62="","",VLOOKUP('Proyeccion Cuotas'!$F62,$A$16:$B$27,2,FALSE)) ->  | H62: =IF('Proyeccion Cuotas'!$D62="","",CONCATENATE('Proyeccion Cuotas'!$G62,"/",'Proyeccion Cuotas'!$F62,"/",'Proyeccion Cuotas'!$E62)) ->  | I62: =IFERROR(IF('Proyeccion Cuotas'!$D62="","",IF(OR('Proyeccion Cuotas'!$F62=7,'Proyeccion Cuotas'!$F62=12),($B$45+(($F$1-$B$47)/$F$3)),(($F$1-$B$47)/$F$3))),0) ->  | J62: =IFERROR(IF('Proyeccion Cuotas'!$D62="","",(M61*$F$5*'Proyeccion Cuotas'!$K62/365)),"") ->  | K62: =+IF('Proyeccion Cuotas'!$D62="","",'Proyeccion Cuotas'!$H62-H61) ->  | L62: =IFERROR('Proyeccion Cuotas'!$I62+'Proyeccion Cuotas'!$J62,"") ->  | M62: =+IFERROR((M61-'Proyeccion Cuotas'!$I62),"") -> 
E63: =IF('Proyeccion Cuotas'!$D63="","",IF(F62=12,E62+1,E62)) ->  | F63: =IF('Proyeccion Cuotas'!$D63="","",IF(F62=12,1,F62+1)) ->  | G63: =+IF('Proyeccion Cuotas'!$D63="","",VLOOKUP('Proyeccion Cuotas'!$F63,$A$16:$B$27,2,FALSE)) ->  | H63: =IF('Proyeccion Cuotas'!$D63="","",CONCATENATE('Proyeccion Cuotas'!$G63,"/",'Proyeccion Cuotas'!$F63,"/",'Proyeccion Cuotas'!$E63)) ->  | I63: =IFERROR(IF('Proyeccion Cuotas'!$D63="","",IF(OR('Proyeccion Cuotas'!$F63=7,'Proyeccion Cuotas'!$F63=12),($B$45+(($F$1-$B$47)/$F$3)),(($F$1-$B$47)/$F$3))),0) ->  | J63: =IFERROR(IF('Proyeccion Cuotas'!$D63="","",(M62*$F$5*'Proyeccion Cuotas'!$K63/365)),"") ->  | K63: =+IF('Proyeccion Cuotas'!$D63="","",'Proyeccion Cuotas'!$H63-H62) ->  | L63: =IFERROR('Proyeccion Cuotas'!$I63+'Proyeccion Cuotas'!$J63,"") ->  | M63: =+IFERROR((M62-'Proyeccion Cuotas'!$I63),"") -> 
E64: =IF('Proyeccion Cuotas'!$D64="","",IF(F63=12,E63+1,E63)) ->  | F64: =IF('Proyeccion Cuotas'!$D64="","",IF(F63=12,1,F63+1)) ->  | G64: =+IF('Proyeccion Cuotas'!$D64="","",VLOOKUP('Proyeccion Cuotas'!$F64,$A$16:$B$27,2,FALSE)) ->  | H64: =IF('Proyeccion Cuotas'!$D64="","",CONCATENATE('Proyeccion Cuotas'!$G64,"/",'Proyeccion Cuotas'!$F64,"/",'Proyeccion Cuotas'!$E64)) ->  | I64: =IFERROR(IF('Proyeccion Cuotas'!$D64="","",IF(OR('Proyeccion Cuotas'!$F64=7,'Proyeccion Cuotas'!$F64=12),($B$45+(($F$1-$B$47)/$F$3)),(($F$1-$B$47)/$F$3))),0) ->  | J64: =IFERROR(IF('Proyeccion Cuotas'!$D64="","",(M63*$F$5*'Proyeccion Cuotas'!$K64/365)),"") ->  | K64: =+IF('Proyeccion Cuotas'!$D64="","",'Proyeccion Cuotas'!$H64-H63) ->  | L64: =IFERROR('Proyeccion Cuotas'!$I64+'Proyeccion Cuotas'!$J64,"") ->  | M64: =+IFERROR((M63-'Proyeccion Cuotas'!$I64),"") -> 
E65: =IF('Proyeccion Cuotas'!$D65="","",IF(F64=12,E64+1,E64)) ->  | F65: =IF('Proyeccion Cuotas'!$D65="","",IF(F64=12,1,F64+1)) ->  | G65: =+IF('Proyeccion Cuotas'!$D65="","",VLOOKUP('Proyeccion Cuotas'!$F65,$A$16:$B$27,2,FALSE)) ->  | H65: =IF('Proyeccion Cuotas'!$D65="","",CONCATENATE('Proyeccion Cuotas'!$G65,"/",'Proyeccion Cuotas'!$F65,"/",'Proyeccion Cuotas'!$E65)) ->  | I65: =IFERROR(IF('Proyeccion Cuotas'!$D65="","",IF(OR('Proyeccion Cuotas'!$F65=7,'Proyeccion Cuotas'!$F65=12),($B$45+(($F$1-$B$47)/$F$3)),(($F$1-$B$47)/$F$3))),0) ->  | J65: =IFERROR(IF('Proyeccion Cuotas'!$D65="","",(M64*$F$5*'Proyeccion Cuotas'!$K65/365)),"") ->  | K65: =+IF('Proyeccion Cuotas'!$D65="","",'Proyeccion Cuotas'!$H65-H64) ->  | L65: =IFERROR('Proyeccion Cuotas'!$I65+'Proyeccion Cuotas'!$J65,"") ->  | M65: =+IFERROR((M64-'Proyeccion Cuotas'!$I65),"") -> 
E66: =IF('Proyeccion Cuotas'!$D66="","",IF(F65=12,E65+1,E65)) ->  | F66: =IF('Proyeccion Cuotas'!$D66="","",IF(F65=12,1,F65+1)) ->  | G66: =+IF('Proyeccion Cuotas'!$D66="","",VLOOKUP('Proyeccion Cuotas'!$F66,$A$16:$B$27,2,FALSE)) ->  | H66: =IF('Proyeccion Cuotas'!$D66="","",CONCATENATE('Proyeccion Cuotas'!$G66,"/",'Proyeccion Cuotas'!$F66,"/",'Proyeccion Cuotas'!$E66)) ->  | I66: =IFERROR(IF('Proyeccion Cuotas'!$D66="","",IF(OR('Proyeccion Cuotas'!$F66=7,'Proyeccion Cuotas'!$F66=12),($B$45+(($F$1-$B$47)/$F$3)),(($F$1-$B$47)/$F$3))),0) ->  | J66: =IFERROR(IF('Proyeccion Cuotas'!$D66="","",(M65*$F$5*'Proyeccion Cuotas'!$K66/365)),"") ->  | K66: =+IF('Proyeccion Cuotas'!$D66="","",'Proyeccion Cuotas'!$H66-H65) ->  | L66: =IFERROR('Proyeccion Cuotas'!$I66+'Proyeccion Cuotas'!$J66,"") ->  | M66: =+IFERROR((M65-'Proyeccion Cuotas'!$I66),"") -> 
E67: =IF('Proyeccion Cuotas'!$D67="","",IF(F66=12,E66+1,E66)) ->  | F67: =IF('Proyeccion Cuotas'!$D67="","",IF(F66=12,1,F66+1)) ->  | G67: =+IF('Proyeccion Cuotas'!$D67="","",VLOOKUP('Proyeccion Cuotas'!$F67,$A$16:$B$27,2,FALSE)) ->  | H67: =IF('Proyeccion Cuotas'!$D67="","",CONCATENATE('Proyeccion Cuotas'!$G67,"/",'Proyeccion Cuotas'!$F67,"/",'Proyeccion Cuotas'!$E67)) ->  | I67: =IFERROR(IF('Proyeccion Cuotas'!$D67="","",IF(OR('Proyeccion Cuotas'!$F67=7,'Proyeccion Cuotas'!$F67=12),($B$45+(($F$1-$B$47)/$F$3)),(($F$1-$B$47)/$F$3))),0) ->  | J67: =IFERROR(IF('Proyeccion Cuotas'!$D67="","",(M66*$F$5*'Proyeccion Cuotas'!$K67/365)),"") ->  | K67: =+IF('Proyeccion Cuotas'!$D67="","",'Proyeccion Cuotas'!$H67-H66) ->  | L67: =IFERROR('Proyeccion Cuotas'!$I67+'Proyeccion Cuotas'!$J67,"") ->  | M67: =+IFERROR((M66-'Proyeccion Cuotas'!$I67),"") -> 
E68: =IF('Proyeccion Cuotas'!$D68="","",IF(F67=12,E67+1,E67)) ->  | F68: =IF('Proyeccion Cuotas'!$D68="","",IF(F67=12,1,F67+1)) ->  | G68: =+IF('Proyeccion Cuotas'!$D68="","",VLOOKUP('Proyeccion Cuotas'!$F68,$A$16:$B$27,2,FALSE)) ->  | H68: =IF('Proyeccion Cuotas'!$D68="","",CONCATENATE('Proyeccion Cuotas'!$G68,"/",'Proyeccion Cuotas'!$F68,"/",'Proyeccion Cuotas'!$E68)) ->  | I68: =IFERROR(IF('Proyeccion Cuotas'!$D68="","",IF(OR('Proyeccion Cuotas'!$F68=7,'Proyeccion Cuotas'!$F68=12),($B$45+(($F$1-$B$47)/$F$3)),(($F$1-$B$47)/$F$3))),0) ->  | J68: =IFERROR(IF('Proyeccion Cuotas'!$D68="","",(M67*$F$5*'Proyeccion Cuotas'!$K68/365)),"") ->  | K68: =+IF('Proyeccion Cuotas'!$D68="","",'Proyeccion Cuotas'!$H68-H67) ->  | L68: =IFERROR('Proyeccion Cuotas'!$I68+'Proyeccion Cuotas'!$J68,"") ->  | M68: =+IFERROR((M67-'Proyeccion Cuotas'!$I68),"") -> 
E69: =IF('Proyeccion Cuotas'!$D69="","",IF(F68=12,E68+1,E68)) ->  | F69: =IF('Proyeccion Cuotas'!$D69="","",IF(F68=12,1,F68+1)) ->  | G69: =+IF('Proyeccion Cuotas'!$D69="","",VLOOKUP('Proyeccion Cuotas'!$F69,$A$16:$B$27,2,FALSE)) ->  | H69: =IF('Proyeccion Cuotas'!$D69="","",CONCATENATE('Proyeccion Cuotas'!$G69,"/",'Proyeccion Cuotas'!$F69,"/",'Proyeccion Cuotas'!$E69)) ->  | I69: =IFERROR(IF('Proyeccion Cuotas'!$D69="","",IF(OR('Proyeccion Cuotas'!$F69=7,'Proyeccion Cuotas'!$F69=12),($B$45+(($F$1-$B$47)/$F$3)),(($F$1-$B$47)/$F$3))),0) ->  | J69: =IFERROR(IF('Proyeccion Cuotas'!$D69="","",(M68*$F$5*'Proyeccion Cuotas'!$K69/365)),"") ->  | K69: =+IF('Proyeccion Cuotas'!$D69="","",'Proyeccion Cuotas'!$H69-H68) ->  | L69: =IFERROR('Proyeccion Cuotas'!$I69+'Proyeccion Cuotas'!$J69,"") ->  | M69: =+IFERROR((M68-'Proyeccion Cuotas'!$I69),"") -> 
E70: =IF('Proyeccion Cuotas'!$D70="","",IF(F69=12,E69+1,E69)) ->  | F70: =IF('Proyeccion Cuotas'!$D70="","",IF(F69=12,1,F69+1)) ->  | G70: =+IF('Proyeccion Cuotas'!$D70="","",VLOOKUP('Proyeccion Cuotas'!$F70,$A$16:$B$27,2,FALSE)) ->  | H70: =IF('Proyeccion Cuotas'!$D70="","",CONCATENATE('Proyeccion Cuotas'!$G70,"/",'Proyeccion Cuotas'!$F70,"/",'Proyeccion Cuotas'!$E70)) ->  | I70: =IFERROR(IF('Proyeccion Cuotas'!$D70="","",IF(OR('Proyeccion Cuotas'!$F70=7,'Proyeccion Cuotas'!$F70=12),($B$45+(($F$1-$B$47)/$F$3)),(($F$1-$B$47)/$F$3))),0) ->  | J70: =IFERROR(IF('Proyeccion Cuotas'!$D70="","",(M69*$F$5*'Proyeccion Cuotas'!$K70/365)),"") ->  | K70: =+IF('Proyeccion Cuotas'!$D70="","",'Proyeccion Cuotas'!$H70-H69) ->  | L70: =IFERROR('Proyeccion Cuotas'!$I70+'Proyeccion Cuotas'!$J70,"") ->  | M70: =+IFERROR((M69-'Proyeccion Cuotas'!$I70),"") -> 
E71: =IF('Proyeccion Cuotas'!$D71="","",IF(F70=12,E70+1,E70)) ->  | F71: =IF('Proyeccion Cuotas'!$D71="","",IF(F70=12,1,F70+1)) ->  | G71: =+IF('Proyeccion Cuotas'!$D71="","",VLOOKUP('Proyeccion Cuotas'!$F71,$A$16:$B$27,2,FALSE)) ->  | H71: =IF('Proyeccion Cuotas'!$D71="","",CONCATENATE('Proyeccion Cuotas'!$G71,"/",'Proyeccion Cuotas'!$F71,"/",'Proyeccion Cuotas'!$E71)) ->  | I71: =IFERROR(IF('Proyeccion Cuotas'!$D71="","",IF(OR('Proyeccion Cuotas'!$F71=7,'Proyeccion Cuotas'!$F71=12),($B$45+(($F$1-$B$47)/$F$3)),(($F$1-$B$47)/$F$3))),0) ->  | J71: =IFERROR(IF('Proyeccion Cuotas'!$D71="","",(M70*$F$5*'Proyeccion Cuotas'!$K71/365)),"") ->  | K71: =+IF('Proyeccion Cuotas'!$D71="","",'Proyeccion Cuotas'!$H71-H70) ->  | L71: =IFERROR('Proyeccion Cuotas'!$I71+'Proyeccion Cuotas'!$J71,"") ->  | M71: =+IFERROR((M70-'Proyeccion Cuotas'!$I71),"") -> 
E72: =IF('Proyeccion Cuotas'!$D72="","",IF(F71=12,E71+1,E71)) ->  | F72: =IF('Proyeccion Cuotas'!$D72="","",IF(F71=12,1,F71+1)) ->  | G72: =+IF('Proyeccion Cuotas'!$D72="","",VLOOKUP('Proyeccion Cuotas'!$F72,$A$16:$B$27,2,FALSE)) ->  | H72: =IF('Proyeccion Cuotas'!$D72="","",CONCATENATE('Proyeccion Cuotas'!$G72,"/",'Proyeccion Cuotas'!$F72,"/",'Proyeccion Cuotas'!$E72)) ->  | I72: =IFERROR(IF('Proyeccion Cuotas'!$D72="","",IF(OR('Proyeccion Cuotas'!$F72=7,'Proyeccion Cuotas'!$F72=12),($B$45+(($F$1-$B$47)/$F$3)),(($F$1-$B$47)/$F$3))),0) ->  | J72: =IFERROR(IF('Proyeccion Cuotas'!$D72="","",(M71*$F$5*'Proyeccion Cuotas'!$K72/365)),"") ->  | K72: =+IF('Proyeccion Cuotas'!$D72="","",'Proyeccion Cuotas'!$H72-H71) ->  | L72: =IFERROR('Proyeccion Cuotas'!$I72+'Proyeccion Cuotas'!$J72,"") ->  | M72: =+IFERROR((M71-'Proyeccion Cuotas'!$I72),"") -> 
E73: =IF('Proyeccion Cuotas'!$D73="","",IF(F72=12,E72+1,E72)) ->  | F73: =IF('Proyeccion Cuotas'!$D73="","",IF(F72=12,1,F72+1)) ->  | G73: =+IF('Proyeccion Cuotas'!$D73="","",VLOOKUP('Proyeccion Cuotas'!$F73,$A$16:$B$27,2,FALSE)) ->  | H73: =IF('Proyeccion Cuotas'!$D73="","",CONCATENATE('Proyeccion Cuotas'!$G73,"/",'Proyeccion Cuotas'!$F73,"/",'Proyeccion Cuotas'!$E73)) ->  | I73: =IFERROR(IF('Proyeccion Cuotas'!$D73="","",IF(OR('Proyeccion Cuotas'!$F73=7,'Proyeccion Cuotas'!$F73=12),($B$45+(($F$1-$B$47)/$F$3)),(($F$1-$B$47)/$F$3))),0) ->  | J73: =IFERROR(IF('Proyeccion Cuotas'!$D73="","",(M72*$F$5*'Proyeccion Cuotas'!$K73/365)),"") ->  | K73: =+IF('Proyeccion Cuotas'!$D73="","",'Proyeccion Cuotas'!$H73-H72) ->  | L73: =IFERROR('Proyeccion Cuotas'!$I73+'Proyeccion Cuotas'!$J73,"") ->  | M73: =+IFERROR((M72-'Proyeccion Cuotas'!$I73),"") -> 
E74: =IF('Proyeccion Cuotas'!$D74="","",IF(F73=12,E73+1,E73)) ->  | F74: =IF('Proyeccion Cuotas'!$D74="","",IF(F73=12,1,F73+1)) ->  | G74: =+IF('Proyeccion Cuotas'!$D74="","",VLOOKUP('Proyeccion Cuotas'!$F74,$A$16:$B$27,2,FALSE)) ->  | H74: =IF('Proyeccion Cuotas'!$D74="","",CONCATENATE('Proyeccion Cuotas'!$G74,"/",'Proyeccion Cuotas'!$F74,"/",'Proyeccion Cuotas'!$E74)) ->  | I74: =IFERROR(IF('Proyeccion Cuotas'!$D74="","",IF(OR('Proyeccion Cuotas'!$F74=7,'Proyeccion Cuotas'!$F74=12),($B$45+(($F$1-$B$47)/$F$3)),(($F$1-$B$47)/$F$3))),0) ->  | J74: =IFERROR(IF('Proyeccion Cuotas'!$D74="","",(M73*$F$5*'Proyeccion Cuotas'!$K74/365)),"") ->  | K74: =+IF('Proyeccion Cuotas'!$D74="","",'Proyeccion Cuotas'!$H74-H73) ->  | L74: =IFERROR('Proyeccion Cuotas'!$I74+'Proyeccion Cuotas'!$J74,"") ->  | M74: =+IFERROR((M73-'Proyeccion Cuotas'!$I74),"") -> 
E75: =IF('Proyeccion Cuotas'!$D75="","",IF(F74=12,E74+1,E74)) ->  | F75: =IF('Proyeccion Cuotas'!$D75="","",IF(F74=12,1,F74+1)) ->  | G75: =+IF('Proyeccion Cuotas'!$D75="","",VLOOKUP('Proyeccion Cuotas'!$F75,$A$16:$B$27,2,FALSE)) ->  | H75: =IF('Proyeccion Cuotas'!$D75="","",CONCATENATE('Proyeccion Cuotas'!$G75,"/",'Proyeccion Cuotas'!$F75,"/",'Proyeccion Cuotas'!$E75)) ->  | I75: =IFERROR(IF('Proyeccion Cuotas'!$D75="","",IF(OR('Proyeccion Cuotas'!$F75=7,'Proyeccion Cuotas'!$F75=12),($B$45+(($F$1-$B$47)/$F$3)),(($F$1-$B$47)/$F$3))),0) ->  | J75: =IFERROR(IF('Proyeccion Cuotas'!$D75="","",(M74*$F$5*'Proyeccion Cuotas'!$K75/365)),"") ->  | K75: =+IF('Proyeccion Cuotas'!$D75="","",'Proyeccion Cuotas'!$H75-H74) ->  | L75: =IFERROR('Proyeccion Cuotas'!$I75+'Proyeccion Cuotas'!$J75,"") ->  | M75: =+IFERROR((M74-'Proyeccion Cuotas'!$I75),"") -> 
E76: =IF('Proyeccion Cuotas'!$D76="","",IF(F75=12,E75+1,E75)) ->  | F76: =IF('Proyeccion Cuotas'!$D76="","",IF(F75=12,1,F75+1)) ->  | G76: =+IF('Proyeccion Cuotas'!$D76="","",VLOOKUP('Proyeccion Cuotas'!$F76,$A$16:$B$27,2,FALSE)) ->  | H76: =IF('Proyeccion Cuotas'!$D76="","",CONCATENATE('Proyeccion Cuotas'!$G76,"/",'Proyeccion Cuotas'!$F76,"/",'Proyeccion Cuotas'!$E76)) ->  | I76: =IFERROR(IF('Proyeccion Cuotas'!$D76="","",IF(OR('Proyeccion Cuotas'!$F76=7,'Proyeccion Cuotas'!$F76=12),($B$45+(($F$1-$B$47)/$F$3)),(($F$1-$B$47)/$F$3))),0) ->  | J76: =IFERROR(IF('Proyeccion Cuotas'!$D76="","",(M75*$F$5*'Proyeccion Cuotas'!$K76/365)),"") ->  | K76: =+IF('Proyeccion Cuotas'!$D76="","",'Proyeccion Cuotas'!$H76-H75) ->  | L76: =IFERROR('Proyeccion Cuotas'!$I76+'Proyeccion Cuotas'!$J76,"") ->  | M76: =+IFERROR((M75-'Proyeccion Cuotas'!$I76),"") -> 
E77: =IF('Proyeccion Cuotas'!$D77="","",IF(F76=12,E76+1,E76)) ->  | F77: =IF('Proyeccion Cuotas'!$D77="","",IF(F76=12,1,F76+1)) ->  | G77: =+IF('Proyeccion Cuotas'!$D77="","",VLOOKUP('Proyeccion Cuotas'!$F77,$A$16:$B$27,2,FALSE)) ->  | H77: =IF('Proyeccion Cuotas'!$D77="","",CONCATENATE('Proyeccion Cuotas'!$G77,"/",'Proyeccion Cuotas'!$F77,"/",'Proyeccion Cuotas'!$E77)) ->  | I77: =IFERROR(IF('Proyeccion Cuotas'!$D77="","",IF(OR('Proyeccion Cuotas'!$F77=7,'Proyeccion Cuotas'!$F77=12),($B$45+(($F$1-$B$47)/$F$3)),(($F$1-$B$47)/$F$3))),0) ->  | J77: =IFERROR(IF('Proyeccion Cuotas'!$D77="","",(M76*$F$5*'Proyeccion Cuotas'!$K77/365)),"") ->  | K77: =+IF('Proyeccion Cuotas'!$D77="","",'Proyeccion Cuotas'!$H77-H76) ->  | L77: =IFERROR('Proyeccion Cuotas'!$I77+'Proyeccion Cuotas'!$J77,"") ->  | M77: =+IFERROR((M76-'Proyeccion Cuotas'!$I77),"") -> 
E78: =IF('Proyeccion Cuotas'!$D78="","",IF(F77=12,E77+1,E77)) ->  | F78: =IF('Proyeccion Cuotas'!$D78="","",IF(F77=12,1,F77+1)) ->  | G78: =+IF('Proyeccion Cuotas'!$D78="","",VLOOKUP('Proyeccion Cuotas'!$F78,$A$16:$B$27,2,FALSE)) ->  | H78: =IF('Proyeccion Cuotas'!$D78="","",CONCATENATE('Proyeccion Cuotas'!$G78,"/",'Proyeccion Cuotas'!$F78,"/",'Proyeccion Cuotas'!$E78)) ->  | I78: =IFERROR(IF('Proyeccion Cuotas'!$D78="","",IF(OR('Proyeccion Cuotas'!$F78=7,'Proyeccion Cuotas'!$F78=12),($B$45+(($F$1-$B$47)/$F$3)),(($F$1-$B$47)/$F$3))),0) ->  | J78: =IFERROR(IF('Proyeccion Cuotas'!$D78="","",(M77*$F$5*'Proyeccion Cuotas'!$K78/365)),"") ->  | K78: =+IF('Proyeccion Cuotas'!$D78="","",'Proyeccion Cuotas'!$H78-H77) ->  | L78: =IFERROR('Proyeccion Cuotas'!$I78+'Proyeccion Cuotas'!$J78,"") ->  | M78: =+IFERROR((M77-'Proyeccion Cuotas'!$I78),"") -> 
E79: =IF('Proyeccion Cuotas'!$D79="","",IF(F78=12,E78+1,E78)) ->  | F79: =IF('Proyeccion Cuotas'!$D79="","",IF(F78=12,1,F78+1)) ->  | G79: =+IF('Proyeccion Cuotas'!$D79="","",VLOOKUP('Proyeccion Cuotas'!$F79,$A$16:$B$27,2,FALSE)) ->  | H79: =IF('Proyeccion Cuotas'!$D79="","",CONCATENATE('Proyeccion Cuotas'!$G79,"/",'Proyeccion Cuotas'!$F79,"/",'Proyeccion Cuotas'!$E79)) ->  | I79: =IFERROR(IF('Proyeccion Cuotas'!$D79="","",IF(OR('Proyeccion Cuotas'!$F79=7,'Proyeccion Cuotas'!$F79=12),($B$45+(($F$1-$B$47)/$F$3)),(($F$1-$B$47)/$F$3))),0) ->  | J79: =IFERROR(IF('Proyeccion Cuotas'!$D79="","",(M78*$F$5*'Proyeccion Cuotas'!$K79/365)),"") ->  | K79: =+IF('Proyeccion Cuotas'!$D79="","",'Proyeccion Cuotas'!$H79-H78) ->  | L79: =IFERROR('Proyeccion Cuotas'!$I79+'Proyeccion Cuotas'!$J79,"") ->  | M79: =+IFERROR((M78-'Proyeccion Cuotas'!$I79),"") -> 
E80: =IF('Proyeccion Cuotas'!$D80="","",IF(F79=12,E79+1,E79)) ->  | F80: =IF('Proyeccion Cuotas'!$D80="","",IF(F79=12,1,F79+1)) ->  | G80: =+IF('Proyeccion Cuotas'!$D80="","",VLOOKUP('Proyeccion Cuotas'!$F80,$A$16:$B$27,2,FALSE)) ->  | H80: =IF('Proyeccion Cuotas'!$D80="","",CONCATENATE('Proyeccion Cuotas'!$G80,"/",'Proyeccion Cuotas'!$F80,"/",'Proyeccion Cuotas'!$E80)) ->  | I80: =IFERROR(IF('Proyeccion Cuotas'!$D80="","",IF(OR('Proyeccion Cuotas'!$F80=7,'Proyeccion Cuotas'!$F80=12),($B$45+(($F$1-$B$47)/$F$3)),(($F$1-$B$47)/$F$3))),0) ->  | J80: =IFERROR(IF('Proyeccion Cuotas'!$D80="","",(M79*$F$5*'Proyeccion Cuotas'!$K80/365)),"") ->  | K80: =+IF('Proyeccion Cuotas'!$D80="","",'Proyeccion Cuotas'!$H80-H79) ->  | L80: =IFERROR('Proyeccion Cuotas'!$I80+'Proyeccion Cuotas'!$J80,"") ->  | M80: =+IFERROR((M79-'Proyeccion Cuotas'!$I80),"") -> 
E81: =IF('Proyeccion Cuotas'!$D81="","",IF(F80=12,E80+1,E80)) ->  | F81: =IF('Proyeccion Cuotas'!$D81="","",IF(F80=12,1,F80+1)) ->  | G81: =+IF('Proyeccion Cuotas'!$D81="","",VLOOKUP('Proyeccion Cuotas'!$F81,$A$16:$B$27,2,FALSE)) ->  | H81: =IF('Proyeccion Cuotas'!$D81="","",CONCATENATE('Proyeccion Cuotas'!$G81,"/",'Proyeccion Cuotas'!$F81,"/",'Proyeccion Cuotas'!$E81)) ->  | I81: =IFERROR(IF('Proyeccion Cuotas'!$D81="","",IF(OR('Proyeccion Cuotas'!$F81=7,'Proyeccion Cuotas'!$F81=12),($B$45+(($F$1-$B$47)/$F$3)),(($F$1-$B$47)/$F$3))),0) ->  | J81: =IFERROR(IF('Proyeccion Cuotas'!$D81="","",(M80*$F$5*'Proyeccion Cuotas'!$K81/365)),"") ->  | K81: =+IF('Proyeccion Cuotas'!$D81="","",'Proyeccion Cuotas'!$H81-H80) ->  | L81: =IFERROR('Proyeccion Cuotas'!$I81+'Proyeccion Cuotas'!$J81,"") ->  | M81: =+IFERROR((M80-'Proyeccion Cuotas'!$I81),"") -> 
D82: =IFERROR(IF(M81<0.001,"",(D81+1)),"") ->  | E82: =IF('Proyeccion Cuotas'!$D82="","",IF(F81=12,E81+1,E81)) ->  | F82: =IF('Proyeccion Cuotas'!$D82="","",IF(F81=12,1,F81+1)) ->  | G82: =+IF('Proyeccion Cuotas'!$D82="","",VLOOKUP('Proyeccion Cuotas'!$F82,$A$16:$B$27,2,FALSE)) ->  | H82: =IF('Proyeccion Cuotas'!$D82="","",CONCATENATE('Proyeccion Cuotas'!$G82,"/",'Proyeccion Cuotas'!$F82,"/",'Proyeccion Cuotas'!$E82)) ->  | I82: =IFERROR(IF('Proyeccion Cuotas'!$D82="","",IF(OR('Proyeccion Cuotas'!$F82=7,'Proyeccion Cuotas'!$F82=12),($B$45+(($F$1-$B$47)/$F$3)),(($F$1-$B$47)/$F$3))),0) ->  | J82: =IFERROR(IF('Proyeccion Cuotas'!$D82="","",(M81*$F$5*'Proyeccion Cuotas'!$K82/365)),"") ->  | K82: =+IF('Proyeccion Cuotas'!$D82="","",'Proyeccion Cuotas'!$H82-H81) ->  | L82: =IFERROR('Proyeccion Cuotas'!$I82+'Proyeccion Cuotas'!$J82,"") ->  | M82: =+IFERROR((M81-'Proyeccion Cuotas'!$I82),"") -> 
E83: =IF('Proyeccion Cuotas'!$D83="","",IF(F82=12,E82+1,E82)) ->  | F83: =IF('Proyeccion Cuotas'!$D83="","",IF(F82=12,1,F82+1)) ->  | G83: =+IF('Proyeccion Cuotas'!$D83="","",VLOOKUP('Proyeccion Cuotas'!$F83,$A$16:$B$27,2,FALSE)) ->  | H83: =IF('Proyeccion Cuotas'!$D83="","",CONCATENATE('Proyeccion Cuotas'!$G83,"/",'Proyeccion Cuotas'!$F83,"/",'Proyeccion Cuotas'!$E83)) ->  | I83: =IFERROR(IF('Proyeccion Cuotas'!$D83="","",IF(OR('Proyeccion Cuotas'!$F83=7,'Proyeccion Cuotas'!$F83=12),($B$45+(($F$1-$B$47)/$F$3)),(($F$1-$B$47)/$F$3))),0) ->  | J83: =IFERROR(IF('Proyeccion Cuotas'!$D83="","",(M82*$F$5*'Proyeccion Cuotas'!$K83/365)),"") ->  | K83: =+IF('Proyeccion Cuotas'!$D83="","",'Proyeccion Cuotas'!$H83-H82) ->  | L83: =IFERROR('Proyeccion Cuotas'!$I83+'Proyeccion Cuotas'!$J83,"") ->  | M83: =+IFERROR((M82-'Proyeccion Cuotas'!$I83),"") -> 
E84: =IF('Proyeccion Cuotas'!$D84="","",IF(F83=12,E83+1,E83)) ->  | F84: =IF('Proyeccion Cuotas'!$D84="","",IF(F83=12,1,F83+1)) ->  | G84: =+IF('Proyeccion Cuotas'!$D84="","",VLOOKUP('Proyeccion Cuotas'!$F84,$A$16:$B$27,2,FALSE)) ->  | H84: =IF('Proyeccion Cuotas'!$D84="","",CONCATENATE('Proyeccion Cuotas'!$G84,"/",'Proyeccion Cuotas'!$F84,"/",'Proyeccion Cuotas'!$E84)) ->  | I84: =IFERROR(IF('Proyeccion Cuotas'!$D84="","",IF(OR('Proyeccion Cuotas'!$F84=7,'Proyeccion Cuotas'!$F84=12),($B$45+(($F$1-$B$47)/$F$3)),(($F$1-$B$47)/$F$3))),0) ->  | J84: =IFERROR(IF('Proyeccion Cuotas'!$D84="","",(M83*$F$5*'Proyeccion Cuotas'!$K84/365)),"") ->  | K84: =+IF('Proyeccion Cuotas'!$D84="","",'Proyeccion Cuotas'!$H84-H83) ->  | L84: =IFERROR('Proyeccion Cuotas'!$I84+'Proyeccion Cuotas'!$J84,"") ->  | M84: =+IFERROR((M83-'Proyeccion Cuotas'!$I84),"") -> 
E85: =IF('Proyeccion Cuotas'!$D85="","",IF(F84=12,E84+1,E84)) ->  | F85: =IF('Proyeccion Cuotas'!$D85="","",IF(F84=12,1,F84+1)) ->  | G85: =+IF('Proyeccion Cuotas'!$D85="","",VLOOKUP('Proyeccion Cuotas'!$F85,$A$16:$B$27,2,FALSE)) ->  | H85: =IF('Proyeccion Cuotas'!$D85="","",CONCATENATE('Proyeccion Cuotas'!$G85,"/",'Proyeccion Cuotas'!$F85,"/",'Proyeccion Cuotas'!$E85)) ->  | I85: =IFERROR(IF('Proyeccion Cuotas'!$D85="","",IF(OR('Proyeccion Cuotas'!$F85=7,'Proyeccion Cuotas'!$F85=12),($B$45+(($F$1-$B$47)/$F$3)),(($F$1-$B$47)/$F$3))),0) ->  | J85: =IFERROR(IF('Proyeccion Cuotas'!$D85="","",(M84*$F$5*'Proyeccion Cuotas'!$K85/365)),"") ->  | K85: =+IF('Proyeccion Cuotas'!$D85="","",'Proyeccion Cuotas'!$H85-H84) ->  | L85: =IFERROR('Proyeccion Cuotas'!$I85+'Proyeccion Cuotas'!$J85,"") ->  | M85: =+IFERROR((M84-'Proyeccion Cuotas'!$I85),"") -> 
E86: =IF('Proyeccion Cuotas'!$D86="","",IF(F85=12,E85+1,E85)) ->  | F86: =IF('Proyeccion Cuotas'!$D86="","",IF(F85=12,1,F85+1)) ->  | G86: =+IF('Proyeccion Cuotas'!$D86="","",VLOOKUP('Proyeccion Cuotas'!$F86,$A$16:$B$27,2,FALSE)) ->  | H86: =IF('Proyeccion Cuotas'!$D86="","",CONCATENATE('Proyeccion Cuotas'!$G86,"/",'Proyeccion Cuotas'!$F86,"/",'Proyeccion Cuotas'!$E86)) ->  | I86: =IFERROR(IF('Proyeccion Cuotas'!$D86="","",IF(OR('Proyeccion Cuotas'!$F86=7,'Proyeccion Cuotas'!$F86=12),($B$45+(($F$1-$B$47)/$F$3)),(($F$1-$B$47)/$F$3))),0) ->  | J86: =IFERROR(IF('Proyeccion Cuotas'!$D86="","",(M85*$F$5*'Proyeccion Cuotas'!$K86/365)),"") ->  | K86: =+IF('Proyeccion Cuotas'!$D86="","",'Proyeccion Cuotas'!$H86-H85) ->  | L86: =IFERROR('Proyeccion Cuotas'!$I86+'Proyeccion Cuotas'!$J86,"") ->  | M86: =+IFERROR((M85-'Proyeccion Cuotas'!$I86),"") -> 
E87: =IF('Proyeccion Cuotas'!$D87="","",IF(F86=12,E86+1,E86)) ->  | F87: =IF('Proyeccion Cuotas'!$D87="","",IF(F86=12,1,F86+1)) ->  | G87: =+IF('Proyeccion Cuotas'!$D87="","",VLOOKUP('Proyeccion Cuotas'!$F87,$A$16:$B$27,2,FALSE)) ->  | H87: =IF('Proyeccion Cuotas'!$D87="","",CONCATENATE('Proyeccion Cuotas'!$G87,"/",'Proyeccion Cuotas'!$F87,"/",'Proyeccion Cuotas'!$E87)) ->  | I87: =IFERROR(IF('Proyeccion Cuotas'!$D87="","",IF(OR('Proyeccion Cuotas'!$F87=7,'Proyeccion Cuotas'!$F87=12),($B$45+(($F$1-$B$47)/$F$3)),(($F$1-$B$47)/$F$3))),0) ->  | J87: =IFERROR(IF('Proyeccion Cuotas'!$D87="","",(M86*$F$5*'Proyeccion Cuotas'!$K87/365)),"") ->  | K87: =+IF('Proyeccion Cuotas'!$D87="","",'Proyeccion Cuotas'!$H87-H86) ->  | L87: =IFERROR('Proyeccion Cuotas'!$I87+'Proyeccion Cuotas'!$J87,"") ->  | M87: =+IFERROR((M86-'Proyeccion Cuotas'!$I87),"") -> 
E88: =IF('Proyeccion Cuotas'!$D88="","",IF(F87=12,E87+1,E87)) ->  | F88: =IF('Proyeccion Cuotas'!$D88="","",IF(F87=12,1,F87+1)) ->  | G88: =+IF('Proyeccion Cuotas'!$D88="","",VLOOKUP('Proyeccion Cuotas'!$F88,$A$16:$B$27,2,FALSE)) ->  | H88: =IF('Proyeccion Cuotas'!$D88="","",CONCATENATE('Proyeccion Cuotas'!$G88,"/",'Proyeccion Cuotas'!$F88,"/",'Proyeccion Cuotas'!$E88)) ->  | I88: =IFERROR(IF('Proyeccion Cuotas'!$D88="","",IF(OR('Proyeccion Cuotas'!$F88=7,'Proyeccion Cuotas'!$F88=12),($B$45+(($F$1-$B$47)/$F$3)),(($F$1-$B$47)/$F$3))),0) ->  | J88: =IFERROR(IF('Proyeccion Cuotas'!$D88="","",(M87*$F$5*'Proyeccion Cuotas'!$K88/365)),"") ->  | K88: =+IF('Proyeccion Cuotas'!$D88="","",'Proyeccion Cuotas'!$H88-H87) ->  | L88: =IFERROR('Proyeccion Cuotas'!$I88+'Proyeccion Cuotas'!$J88,"") ->  | M88: =+IFERROR((M87-'Proyeccion Cuotas'!$I88),"") -> 
E89: =IF('Proyeccion Cuotas'!$D89="","",IF(F88=12,E88+1,E88)) ->  | F89: =IF('Proyeccion Cuotas'!$D89="","",IF(F88=12,1,F88+1)) ->  | G89: =+IF('Proyeccion Cuotas'!$D89="","",VLOOKUP('Proyeccion Cuotas'!$F89,$A$16:$B$27,2,FALSE)) ->  | H89: =IF('Proyeccion Cuotas'!$D89="","",CONCATENATE('Proyeccion Cuotas'!$G89,"/",'Proyeccion Cuotas'!$F89,"/",'Proyeccion Cuotas'!$E89)) ->  | I89: =IFERROR(IF('Proyeccion Cuotas'!$D89="","",IF(OR('Proyeccion Cuotas'!$F89=7,'Proyeccion Cuotas'!$F89=12),($B$45+(($F$1-$B$47)/$F$3)),(($F$1-$B$47)/$F$3))),0) ->  | J89: =IFERROR(IF('Proyeccion Cuotas'!$D89="","",(M88*$F$5*'Proyeccion Cuotas'!$K89/365)),"") ->  | K89: =+IF('Proyeccion Cuotas'!$D89="","",'Proyeccion Cuotas'!$H89-H88) ->  | L89: =IFERROR('Proyeccion Cuotas'!$I89+'Proyeccion Cuotas'!$J89,"") ->  | M89: =+IFERROR((M88-'Proyeccion Cuotas'!$I89),"") -> 
E90: =IF('Proyeccion Cuotas'!$D90="","",IF(F89=12,E89+1,E89)) ->  | F90: =IF('Proyeccion Cuotas'!$D90="","",IF(F89=12,1,F89+1)) ->  | G90: =+IF('Proyeccion Cuotas'!$D90="","",VLOOKUP('Proyeccion Cuotas'!$F90,$A$16:$B$27,2,FALSE)) ->  | H90: =IF('Proyeccion Cuotas'!$D90="","",CONCATENATE('Proyeccion Cuotas'!$G90,"/",'Proyeccion Cuotas'!$F90,"/",'Proyeccion Cuotas'!$E90)) ->  | I90: =IFERROR(IF('Proyeccion Cuotas'!$D90="","",IF(OR('Proyeccion Cuotas'!$F90=7,'Proyeccion Cuotas'!$F90=12),($B$45+(($F$1-$B$47)/$F$3)),(($F$1-$B$47)/$F$3))),0) ->  | J90: =IFERROR(IF('Proyeccion Cuotas'!$D90="","",(M89*$F$5*'Proyeccion Cuotas'!$K90/365)),"") ->  | K90: =+IF('Proyeccion Cuotas'!$D90="","",'Proyeccion Cuotas'!$H90-H89) ->  | L90: =IFERROR('Proyeccion Cuotas'!$I90+'Proyeccion Cuotas'!$J90,"") ->  | M90: =+IFERROR((M89-'Proyeccion Cuotas'!$I90),"") -> 
E91: =IF('Proyeccion Cuotas'!$D91="","",IF(F90=12,E90+1,E90)) ->  | F91: =IF('Proyeccion Cuotas'!$D91="","",IF(F90=12,1,F90+1)) ->  | G91: =+IF('Proyeccion Cuotas'!$D91="","",VLOOKUP('Proyeccion Cuotas'!$F91,$A$16:$B$27,2,FALSE)) ->  | H91: =IF('Proyeccion Cuotas'!$D91="","",CONCATENATE('Proyeccion Cuotas'!$G91,"/",'Proyeccion Cuotas'!$F91,"/",'Proyeccion Cuotas'!$E91)) ->  | I91: =IFERROR(IF('Proyeccion Cuotas'!$D91="","",IF(OR('Proyeccion Cuotas'!$F91=7,'Proyeccion Cuotas'!$F91=12),($B$45+(($F$1-$B$47)/$F$3)),(($F$1-$B$47)/$F$3))),0) ->  | J91: =IFERROR(IF('Proyeccion Cuotas'!$D91="","",(M90*$F$5*'Proyeccion Cuotas'!$K91/365)),"") ->  | K91: =+IF('Proyeccion Cuotas'!$D91="","",'Proyeccion Cuotas'!$H91-H90) ->  | L91: =IFERROR('Proyeccion Cuotas'!$I91+'Proyeccion Cuotas'!$J91,"") ->  | M91: =+IFERROR((M90-'Proyeccion Cuotas'!$I91),"") -> 
E92: =IF('Proyeccion Cuotas'!$D92="","",IF(F91=12,E91+1,E91)) ->  | F92: =IF('Proyeccion Cuotas'!$D92="","",IF(F91=12,1,F91+1)) ->  | G92: =+IF('Proyeccion Cuotas'!$D92="","",VLOOKUP('Proyeccion Cuotas'!$F92,$A$16:$B$27,2,FALSE)) ->  | H92: =IF('Proyeccion Cuotas'!$D92="","",CONCATENATE('Proyeccion Cuotas'!$G92,"/",'Proyeccion Cuotas'!$F92,"/",'Proyeccion Cuotas'!$E92)) ->  | I92: =IFERROR(IF('Proyeccion Cuotas'!$D92="","",IF(OR('Proyeccion Cuotas'!$F92=7,'Proyeccion Cuotas'!$F92=12),($B$45+(($F$1-$B$47)/$F$3)),(($F$1-$B$47)/$F$3))),0) ->  | J92: =IFERROR(IF('Proyeccion Cuotas'!$D92="","",(M91*$F$5*'Proyeccion Cuotas'!$K92/365)),"") ->  | K92: =+IF('Proyeccion Cuotas'!$D92="","",'Proyeccion Cuotas'!$H92-H91) ->  | L92: =IFERROR('Proyeccion Cuotas'!$I92+'Proyeccion Cuotas'!$J92,"") ->  | M92: =+IFERROR((M91-'Proyeccion Cuotas'!$I92),"") -> 
E93: =IF('Proyeccion Cuotas'!$D93="","",IF(F92=12,E92+1,E92)) ->  | F93: =IF('Proyeccion Cuotas'!$D93="","",IF(F92=12,1,F92+1)) ->  | G93: =+IF('Proyeccion Cuotas'!$D93="","",VLOOKUP('Proyeccion Cuotas'!$F93,$A$16:$B$27,2,FALSE)) ->  | H93: =IF('Proyeccion Cuotas'!$D93="","",CONCATENATE('Proyeccion Cuotas'!$G93,"/",'Proyeccion Cuotas'!$F93,"/",'Proyeccion Cuotas'!$E93)) ->  | I93: =IFERROR(IF('Proyeccion Cuotas'!$D93="","",IF(OR('Proyeccion Cuotas'!$F93=7,'Proyeccion Cuotas'!$F93=12),($B$45+(($F$1-$B$47)/$F$3)),(($F$1-$B$47)/$F$3))),0) ->  | J93: =IFERROR(IF('Proyeccion Cuotas'!$D93="","",(M92*$F$5*'Proyeccion Cuotas'!$K93/365)),"") ->  | K93: =+IF('Proyeccion Cuotas'!$D93="","",'Proyeccion Cuotas'!$H93-H92) ->  | L93: =IFERROR('Proyeccion Cuotas'!$I93+'Proyeccion Cuotas'!$J93,"") ->  | M93: =+IFERROR((M92-'Proyeccion Cuotas'!$I93),"") -> 
E94: =IF('Proyeccion Cuotas'!$D94="","",IF(F93=12,E93+1,E93)) ->  | F94: =IF('Proyeccion Cuotas'!$D94="","",IF(F93=12,1,F93+1)) ->  | G94: =+IF('Proyeccion Cuotas'!$D94="","",VLOOKUP('Proyeccion Cuotas'!$F94,$A$16:$B$27,2,FALSE)) ->  | H94: =IF('Proyeccion Cuotas'!$D94="","",CONCATENATE('Proyeccion Cuotas'!$G94,"/",'Proyeccion Cuotas'!$F94,"/",'Proyeccion Cuotas'!$E94)) ->  | I94: =IFERROR(IF('Proyeccion Cuotas'!$D94="","",IF(OR('Proyeccion Cuotas'!$F94=7,'Proyeccion Cuotas'!$F94=12),($B$45+(($F$1-$B$47)/$F$3)),(($F$1-$B$47)/$F$3))),0) ->  | J94: =IFERROR(IF('Proyeccion Cuotas'!$D94="","",(M93*$F$5*'Proyeccion Cuotas'!$K94/365)),"") ->  | K94: =+IF('Proyeccion Cuotas'!$D94="","",'Proyeccion Cuotas'!$H94-H93) ->  | L94: =IFERROR('Proyeccion Cuotas'!$I94+'Proyeccion Cuotas'!$J94,"") ->  | M94: =+IFERROR((M93-'Proyeccion Cuotas'!$I94),"") -> 
E95: =IF('Proyeccion Cuotas'!$D95="","",IF(F94=12,E94+1,E94)) ->  | F95: =IF('Proyeccion Cuotas'!$D95="","",IF(F94=12,1,F94+1)) ->  | G95: =+IF('Proyeccion Cuotas'!$D95="","",VLOOKUP('Proyeccion Cuotas'!$F95,$A$16:$B$27,2,FALSE)) ->  | H95: =IF('Proyeccion Cuotas'!$D95="","",CONCATENATE('Proyeccion Cuotas'!$G95,"/",'Proyeccion Cuotas'!$F95,"/",'Proyeccion Cuotas'!$E95)) ->  | I95: =IFERROR(IF('Proyeccion Cuotas'!$D95="","",IF(OR('Proyeccion Cuotas'!$F95=7,'Proyeccion Cuotas'!$F95=12),($B$45+(($F$1-$B$47)/$F$3)),(($F$1-$B$47)/$F$3))),0) ->  | J95: =IFERROR(IF('Proyeccion Cuotas'!$D95="","",(M94*$F$5*'Proyeccion Cuotas'!$K95/365)),"") ->  | K95: =+IF('Proyeccion Cuotas'!$D95="","",'Proyeccion Cuotas'!$H95-H94) ->  | L95: =IFERROR('Proyeccion Cuotas'!$I95+'Proyeccion Cuotas'!$J95,"") ->  | M95: =+IFERROR((M94-'Proyeccion Cuotas'!$I95),"") -> 
E96: =IF('Proyeccion Cuotas'!$D96="","",IF(F95=12,E95+1,E95)) ->  | F96: =IF('Proyeccion Cuotas'!$D96="","",IF(F95=12,1,F95+1)) ->  | G96: =+IF('Proyeccion Cuotas'!$D96="","",VLOOKUP('Proyeccion Cuotas'!$F96,$A$16:$B$27,2,FALSE)) ->  | H96: =IF('Proyeccion Cuotas'!$D96="","",CONCATENATE('Proyeccion Cuotas'!$G96,"/",'Proyeccion Cuotas'!$F96,"/",'Proyeccion Cuotas'!$E96)) ->  | I96: =IFERROR(IF('Proyeccion Cuotas'!$D96="","",IF(OR('Proyeccion Cuotas'!$F96=7,'Proyeccion Cuotas'!$F96=12),($B$45+(($F$1-$B$47)/$F$3)),(($F$1-$B$47)/$F$3))),0) ->  | J96: =IFERROR(IF('Proyeccion Cuotas'!$D96="","",(M95*$F$5*'Proyeccion Cuotas'!$K96/365)),"") ->  | K96: =+IF('Proyeccion Cuotas'!$D96="","",'Proyeccion Cuotas'!$H96-H95) ->  | L96: =IFERROR('Proyeccion Cuotas'!$I96+'Proyeccion Cuotas'!$J96,"") ->  | M96: =+IFERROR((M95-'Proyeccion Cuotas'!$I96),"") -> 
E97: =IF('Proyeccion Cuotas'!$D97="","",IF(F96=12,E96+1,E96)) ->  | F97: =IF('Proyeccion Cuotas'!$D97="","",IF(F96=12,1,F96+1)) ->  | G97: =+IF('Proyeccion Cuotas'!$D97="","",VLOOKUP('Proyeccion Cuotas'!$F97,$A$16:$B$27,2,FALSE)) ->  | H97: =IF('Proyeccion Cuotas'!$D97="","",CONCATENATE('Proyeccion Cuotas'!$G97,"/",'Proyeccion Cuotas'!$F97,"/",'Proyeccion Cuotas'!$E97)) ->  | I97: =IFERROR(IF('Proyeccion Cuotas'!$D97="","",IF(OR('Proyeccion Cuotas'!$F97=7,'Proyeccion Cuotas'!$F97=12),($B$45+(($F$1-$B$47)/$F$3)),(($F$1-$B$47)/$F$3))),0) ->  | J97: =IFERROR(IF('Proyeccion Cuotas'!$D97="","",(M96*$F$5*'Proyeccion Cuotas'!$K97/365)),"") ->  | K97: =+IF('Proyeccion Cuotas'!$D97="","",'Proyeccion Cuotas'!$H97-H96) ->  | L97: =IFERROR('Proyeccion Cuotas'!$I97+'Proyeccion Cuotas'!$J97,"") ->  | M97: =+IFERROR((M96-'Proyeccion Cuotas'!$I97),"") -> 
E98: =IF('Proyeccion Cuotas'!$D98="","",IF(F97=12,E97+1,E97)) ->  | F98: =IF('Proyeccion Cuotas'!$D98="","",IF(F97=12,1,F97+1)) ->  | G98: =+IF('Proyeccion Cuotas'!$D98="","",VLOOKUP('Proyeccion Cuotas'!$F98,$A$16:$B$27,2,FALSE)) ->  | H98: =IF('Proyeccion Cuotas'!$D98="","",CONCATENATE('Proyeccion Cuotas'!$G98,"/",'Proyeccion Cuotas'!$F98,"/",'Proyeccion Cuotas'!$E98)) ->  | I98: =IFERROR(IF('Proyeccion Cuotas'!$D98="","",IF(OR('Proyeccion Cuotas'!$F98=7,'Proyeccion Cuotas'!$F98=12),($B$45+(($F$1-$B$47)/$F$3)),(($F$1-$B$47)/$F$3))),0) ->  | J98: =IFERROR(IF('Proyeccion Cuotas'!$D98="","",(M97*$F$5*'Proyeccion Cuotas'!$K98/365)),"") ->  | K98: =+IF('Proyeccion Cuotas'!$D98="","",'Proyeccion Cuotas'!$H98-H97) ->  | L98: =IFERROR('Proyeccion Cuotas'!$I98+'Proyeccion Cuotas'!$J98,"") ->  | M98: =+IFERROR((M97-'Proyeccion Cuotas'!$I98),"") -> 
E99: =IF('Proyeccion Cuotas'!$D99="","",IF(F98=12,E98+1,E98)) ->  | F99: =IF('Proyeccion Cuotas'!$D99="","",IF(F98=12,1,F98+1)) ->  | G99: =+IF('Proyeccion Cuotas'!$D99="","",VLOOKUP('Proyeccion Cuotas'!$F99,$A$16:$B$27,2,FALSE)) ->  | H99: =IF('Proyeccion Cuotas'!$D99="","",CONCATENATE('Proyeccion Cuotas'!$G99,"/",'Proyeccion Cuotas'!$F99,"/",'Proyeccion Cuotas'!$E99)) ->  | I99: =IFERROR(IF('Proyeccion Cuotas'!$D99="","",IF(OR('Proyeccion Cuotas'!$F99=7,'Proyeccion Cuotas'!$F99=12),($B$45+(($F$1-$B$47)/$F$3)),(($F$1-$B$47)/$F$3))),0) ->  | J99: =IFERROR(IF('Proyeccion Cuotas'!$D99="","",(M98*$F$5*'Proyeccion Cuotas'!$K99/365)),"") ->  | K99: =+IF('Proyeccion Cuotas'!$D99="","",'Proyeccion Cuotas'!$H99-H98) ->  | L99: =IFERROR('Proyeccion Cuotas'!$I99+'Proyeccion Cuotas'!$J99,"") ->  | M99: =+IFERROR((M98-'Proyeccion Cuotas'!$I99),"") -> 
E100: =IF('Proyeccion Cuotas'!$D100="","",IF(F99=12,E99+1,E99)) ->  | F100: =IF('Proyeccion Cuotas'!$D100="","",IF(F99=12,1,F99+1)) ->  | G100: =+IF('Proyeccion Cuotas'!$D100="","",VLOOKUP('Proyeccion Cuotas'!$F100,$A$16:$B$27,2,FALSE)) ->  | H100: =IF('Proyeccion Cuotas'!$D100="","",CONCATENATE('Proyeccion Cuotas'!$G100,"/",'Proyeccion Cuotas'!$F100,"/",'Proyeccion Cuotas'!$E100)) ->  | I100: =IFERROR(IF('Proyeccion Cuotas'!$D100="","",IF(OR('Proyeccion Cuotas'!$F100=7,'Proyeccion Cuotas'!$F100=12),($B$45+(($F$1-$B$47)/$F$3)),(($F$1-$B$47)/$F$3))),0) ->  | J100: =IFERROR(IF('Proyeccion Cuotas'!$D100="","",(M99*$F$5*'Proyeccion Cuotas'!$K100/365)),"") ->  | K100: =+IF('Proyeccion Cuotas'!$D100="","",'Proyeccion Cuotas'!$H100-H99) ->  | L100: =IFERROR('Proyeccion Cuotas'!$I100+'Proyeccion Cuotas'!$J100,"") ->  | M100: =+IFERROR((M99-'Proyeccion Cuotas'!$I100),"") -> 
E101: =IF('Proyeccion Cuotas'!$D101="","",IF(F100=12,E100+1,E100)) ->  | F101: =IF('Proyeccion Cuotas'!$D101="","",IF(F100=12,1,F100+1)) ->  | G101: =+IF('Proyeccion Cuotas'!$D101="","",VLOOKUP('Proyeccion Cuotas'!$F101,$A$16:$B$27,2,FALSE)) ->  | H101: =IF('Proyeccion Cuotas'!$D101="","",CONCATENATE('Proyeccion Cuotas'!$G101,"/",'Proyeccion Cuotas'!$F101,"/",'Proyeccion Cuotas'!$E101)) ->  | I101: =IFERROR(IF('Proyeccion Cuotas'!$D101="","",IF(OR('Proyeccion Cuotas'!$F101=7,'Proyeccion Cuotas'!$F101=12),($B$45+(($F$1-$B$47)/$F$3)),(($F$1-$B$47)/$F$3))),0) ->  | J101: =IFERROR(IF('Proyeccion Cuotas'!$D101="","",(M100*$F$5*'Proyeccion Cuotas'!$K101/365)),"") ->  | K101: =+IF('Proyeccion Cuotas'!$D101="","",'Proyeccion Cuotas'!$H101-H100) ->  | L101: =IFERROR('Proyeccion Cuotas'!$I101+'Proyeccion Cuotas'!$J101,"") ->  | M101: =+IFERROR((M100-'Proyeccion Cuotas'!$I101),"") -> 
E102: =IF('Proyeccion Cuotas'!$D102="","",IF(F101=12,E101+1,E101)) ->  | F102: =IF('Proyeccion Cuotas'!$D102="","",IF(F101=12,1,F101+1)) ->  | G102: =+IF('Proyeccion Cuotas'!$D102="","",VLOOKUP('Proyeccion Cuotas'!$F102,$A$16:$B$27,2,FALSE)) ->  | H102: =IF('Proyeccion Cuotas'!$D102="","",CONCATENATE('Proyeccion Cuotas'!$G102,"/",'Proyeccion Cuotas'!$F102,"/",'Proyeccion Cuotas'!$E102)) ->  | I102: =IFERROR(IF('Proyeccion Cuotas'!$D102="","",IF(OR('Proyeccion Cuotas'!$F102=7,'Proyeccion Cuotas'!$F102=12),($B$45+(($F$1-$B$47)/$F$3)),(($F$1-$B$47)/$F$3))),0) ->  | J102: =IFERROR(IF('Proyeccion Cuotas'!$D102="","",(M101*$F$5*'Proyeccion Cuotas'!$K102/365)),"") ->  | K102: =+IF('Proyeccion Cuotas'!$D102="","",'Proyeccion Cuotas'!$H102-H101) ->  | L102: =IFERROR('Proyeccion Cuotas'!$I102+'Proyeccion Cuotas'!$J102,"") ->  | M102: =+IFERROR((M101-'Proyeccion Cuotas'!$I102),"") -> 
E103: =IF('Proyeccion Cuotas'!$D103="","",IF(F102=12,E102+1,E102)) ->  | F103: =IF('Proyeccion Cuotas'!$D103="","",IF(F102=12,1,F102+1)) ->  | G103: =+IF('Proyeccion Cuotas'!$D103="","",VLOOKUP('Proyeccion Cuotas'!$F103,$A$16:$B$27,2,FALSE)) ->  | H103: =IF('Proyeccion Cuotas'!$D103="","",CONCATENATE('Proyeccion Cuotas'!$G103,"/",'Proyeccion Cuotas'!$F103,"/",'Proyeccion Cuotas'!$E103)) ->  | I103: =IFERROR(IF('Proyeccion Cuotas'!$D103="","",IF(OR('Proyeccion Cuotas'!$F103=7,'Proyeccion Cuotas'!$F103=12),($B$45+(($F$1-$B$47)/$F$3)),(($F$1-$B$47)/$F$3))),0) ->  | J103: =IFERROR(IF('Proyeccion Cuotas'!$D103="","",(M102*$F$5*'Proyeccion Cuotas'!$K103/365)),"") ->  | K103: =+IF('Proyeccion Cuotas'!$D103="","",'Proyeccion Cuotas'!$H103-H102) ->  | L103: =IFERROR('Proyeccion Cuotas'!$I103+'Proyeccion Cuotas'!$J103,"") ->  | M103: =+IFERROR((M102-'Proyeccion Cuotas'!$I103),"") -> 
E104: =IF('Proyeccion Cuotas'!$D104="","",IF(F103=12,E103+1,E103)) ->  | F104: =IF('Proyeccion Cuotas'!$D104="","",IF(F103=12,1,F103+1)) ->  | G104: =+IF('Proyeccion Cuotas'!$D104="","",VLOOKUP('Proyeccion Cuotas'!$F104,$A$16:$B$27,2,FALSE)) ->  | H104: =IF('Proyeccion Cuotas'!$D104="","",CONCATENATE('Proyeccion Cuotas'!$G104,"/",'Proyeccion Cuotas'!$F104,"/",'Proyeccion Cuotas'!$E104)) ->  | I104: =IFERROR(IF('Proyeccion Cuotas'!$D104="","",IF(OR('Proyeccion Cuotas'!$F104=7,'Proyeccion Cuotas'!$F104=12),($B$45+(($F$1-$B$47)/$F$3)),(($F$1-$B$47)/$F$3))),0) ->  | J104: =IFERROR(IF('Proyeccion Cuotas'!$D104="","",(M103*$F$5*'Proyeccion Cuotas'!$K104/365)),"") ->  | K104: =+IF('Proyeccion Cuotas'!$D104="","",'Proyeccion Cuotas'!$H104-H103) ->  | L104: =IFERROR('Proyeccion Cuotas'!$I104+'Proyeccion Cuotas'!$J104,"") ->  | M104: =+IFERROR((M103-'Proyeccion Cuotas'!$I104),"") -> 
E105: =IF('Proyeccion Cuotas'!$D105="","",IF(F104=12,E104+1,E104)) ->  | F105: =IF('Proyeccion Cuotas'!$D105="","",IF(F104=12,1,F104+1)) ->  | G105: =+IF('Proyeccion Cuotas'!$D105="","",VLOOKUP('Proyeccion Cuotas'!$F105,$A$16:$B$27,2,FALSE)) ->  | H105: =IF('Proyeccion Cuotas'!$D105="","",CONCATENATE('Proyeccion Cuotas'!$G105,"/",'Proyeccion Cuotas'!$F105,"/",'Proyeccion Cuotas'!$E105)) ->  | I105: =IFERROR(IF('Proyeccion Cuotas'!$D105="","",IF(OR('Proyeccion Cuotas'!$F105=7,'Proyeccion Cuotas'!$F105=12),($B$45+(($F$1-$B$47)/$F$3)),(($F$1-$B$47)/$F$3))),0) ->  | J105: =IFERROR(IF('Proyeccion Cuotas'!$D105="","",(M104*$F$5*'Proyeccion Cuotas'!$K105/365)),"") ->  | K105: =+IF('Proyeccion Cuotas'!$D105="","",'Proyeccion Cuotas'!$H105-H104) ->  | L105: =IFERROR('Proyeccion Cuotas'!$I105+'Proyeccion Cuotas'!$J105,"") ->  | M105: =+IFERROR((M104-'Proyeccion Cuotas'!$I105),"") -> 
E106: =IF('Proyeccion Cuotas'!$D106="","",IF(F105=12,E105+1,E105)) ->  | F106: =IF('Proyeccion Cuotas'!$D106="","",IF(F105=12,1,F105+1)) ->  | G106: =+IF('Proyeccion Cuotas'!$D106="","",VLOOKUP('Proyeccion Cuotas'!$F106,$A$16:$B$27,2,FALSE)) ->  | H106: =IF('Proyeccion Cuotas'!$D106="","",CONCATENATE('Proyeccion Cuotas'!$G106,"/",'Proyeccion Cuotas'!$F106,"/",'Proyeccion Cuotas'!$E106)) ->  | I106: =IFERROR(IF('Proyeccion Cuotas'!$D106="","",IF(OR('Proyeccion Cuotas'!$F106=7,'Proyeccion Cuotas'!$F106=12),($B$45+(($F$1-$B$47)/$F$3)),(($F$1-$B$47)/$F$3))),0) ->  | J106: =IFERROR(IF('Proyeccion Cuotas'!$D106="","",(M105*$F$5*'Proyeccion Cuotas'!$K106/365)),"") ->  | K106: =+IF('Proyeccion Cuotas'!$D106="","",'Proyeccion Cuotas'!$H106-H105) ->  | L106: =IFERROR('Proyeccion Cuotas'!$I106+'Proyeccion Cuotas'!$J106,"") ->  | M106: =+IFERROR((M105-'Proyeccion Cuotas'!$I106),"") -> 
E107: =IF('Proyeccion Cuotas'!$D107="","",IF(F106=12,E106+1,E106)) ->  | F107: =IF('Proyeccion Cuotas'!$D107="","",IF(F106=12,1,F106+1)) ->  | G107: =+IF('Proyeccion Cuotas'!$D107="","",VLOOKUP('Proyeccion Cuotas'!$F107,$A$16:$B$27,2,FALSE)) ->  | H107: =IF('Proyeccion Cuotas'!$D107="","",CONCATENATE('Proyeccion Cuotas'!$G107,"/",'Proyeccion Cuotas'!$F107,"/",'Proyeccion Cuotas'!$E107)) ->  | I107: =IFERROR(IF('Proyeccion Cuotas'!$D107="","",IF(OR('Proyeccion Cuotas'!$F107=7,'Proyeccion Cuotas'!$F107=12),($B$45+(($F$1-$B$47)/$F$3)),(($F$1-$B$47)/$F$3))),0) ->  | J107: =IFERROR(IF('Proyeccion Cuotas'!$D107="","",(M106*$F$5*'Proyeccion Cuotas'!$K107/365)),"") ->  | K107: =+IF('Proyeccion Cuotas'!$D107="","",'Proyeccion Cuotas'!$H107-H106) ->  | L107: =IFERROR('Proyeccion Cuotas'!$I107+'Proyeccion Cuotas'!$J107,"") ->  | M107: =+IFERROR((M106-'Proyeccion Cuotas'!$I107),"") -> 
E108: =IF('Proyeccion Cuotas'!$D108="","",IF(F107=12,E107+1,E107)) ->  | F108: =IF('Proyeccion Cuotas'!$D108="","",IF(F107=12,1,F107+1)) ->  | G108: =+IF('Proyeccion Cuotas'!$D108="","",VLOOKUP('Proyeccion Cuotas'!$F108,$A$16:$B$27,2,FALSE)) ->  | H108: =IF('Proyeccion Cuotas'!$D108="","",CONCATENATE('Proyeccion Cuotas'!$G108,"/",'Proyeccion Cuotas'!$F108,"/",'Proyeccion Cuotas'!$E108)) ->  | I108: =IFERROR(IF('Proyeccion Cuotas'!$D108="","",IF(OR('Proyeccion Cuotas'!$F108=7,'Proyeccion Cuotas'!$F108=12),($B$45+(($F$1-$B$47)/$F$3)),(($F$1-$B$47)/$F$3))),0) ->  | J108: =IFERROR(IF('Proyeccion Cuotas'!$D108="","",(M107*$F$5*'Proyeccion Cuotas'!$K108/365)),"") ->  | K108: =+IF('Proyeccion Cuotas'!$D108="","",'Proyeccion Cuotas'!$H108-H107) ->  | L108: =IFERROR('Proyeccion Cuotas'!$I108+'Proyeccion Cuotas'!$J108,"") ->  | M108: =+IFERROR((M107-'Proyeccion Cuotas'!$I108),"") -> 
E109: =IF('Proyeccion Cuotas'!$D109="","",IF(F108=12,E108+1,E108)) ->  | F109: =IF('Proyeccion Cuotas'!$D109="","",IF(F108=12,1,F108+1)) ->  | G109: =+IF('Proyeccion Cuotas'!$D109="","",VLOOKUP('Proyeccion Cuotas'!$F109,$A$16:$B$27,2,FALSE)) ->  | H109: =IF('Proyeccion Cuotas'!$D109="","",CONCATENATE('Proyeccion Cuotas'!$G109,"/",'Proyeccion Cuotas'!$F109,"/",'Proyeccion Cuotas'!$E109)) ->  | I109: =IFERROR(IF('Proyeccion Cuotas'!$D109="","",IF(OR('Proyeccion Cuotas'!$F109=7,'Proyeccion Cuotas'!$F109=12),($B$45+(($F$1-$B$47)/$F$3)),(($F$1-$B$47)/$F$3))),0) ->  | J109: =IFERROR(IF('Proyeccion Cuotas'!$D109="","",(M108*$F$5*'Proyeccion Cuotas'!$K109/365)),"") ->  | K109: =+IF('Proyeccion Cuotas'!$D109="","",'Proyeccion Cuotas'!$H109-H108) ->  | L109: =IFERROR('Proyeccion Cuotas'!$I109+'Proyeccion Cuotas'!$J109,"") ->  | M109: =+IFERROR((M108-'Proyeccion Cuotas'!$I109),"") -> 
E110: =IF('Proyeccion Cuotas'!$D110="","",IF(F109=12,E109+1,E109)) ->  | F110: =IF('Proyeccion Cuotas'!$D110="","",IF(F109=12,1,F109+1)) ->  | G110: =+IF('Proyeccion Cuotas'!$D110="","",VLOOKUP('Proyeccion Cuotas'!$F110,$A$16:$B$27,2,FALSE)) ->  | H110: =IF('Proyeccion Cuotas'!$D110="","",CONCATENATE('Proyeccion Cuotas'!$G110,"/",'Proyeccion Cuotas'!$F110,"/",'Proyeccion Cuotas'!$E110)) ->  | I110: =IFERROR(IF('Proyeccion Cuotas'!$D110="","",IF(OR('Proyeccion Cuotas'!$F110=7,'Proyeccion Cuotas'!$F110=12),($B$45+(($F$1-$B$47)/$F$3)),(($F$1-$B$47)/$F$3))),0) ->  | J110: =IFERROR(IF('Proyeccion Cuotas'!$D110="","",(M109*$F$5*'Proyeccion Cuotas'!$K110/365)),"") ->  | K110: =+IF('Proyeccion Cuotas'!$D110="","",'Proyeccion Cuotas'!$H110-H109) ->  | L110: =IFERROR('Proyeccion Cuotas'!$I110+'Proyeccion Cuotas'!$J110,"") ->  | M110: =+IFERROR((M109-'Proyeccion Cuotas'!$I110),"") -> 
E111: =IF('Proyeccion Cuotas'!$D111="","",IF(F110=12,E110+1,E110)) ->  | F111: =IF('Proyeccion Cuotas'!$D111="","",IF(F110=12,1,F110+1)) ->  | G111: =+IF('Proyeccion Cuotas'!$D111="","",VLOOKUP('Proyeccion Cuotas'!$F111,$A$16:$B$27,2,FALSE)) ->  | H111: =IF('Proyeccion Cuotas'!$D111="","",CONCATENATE('Proyeccion Cuotas'!$G111,"/",'Proyeccion Cuotas'!$F111,"/",'Proyeccion Cuotas'!$E111)) ->  | I111: =IFERROR(IF('Proyeccion Cuotas'!$D111="","",IF(OR('Proyeccion Cuotas'!$F111=7,'Proyeccion Cuotas'!$F111=12),($B$45+(($F$1-$B$47)/$F$3)),(($F$1-$B$47)/$F$3))),0) ->  | J111: =IFERROR(IF('Proyeccion Cuotas'!$D111="","",(M110*$F$5*'Proyeccion Cuotas'!$K111/365)),"") ->  | K111: =+IF('Proyeccion Cuotas'!$D111="","",'Proyeccion Cuotas'!$H111-H110) ->  | L111: =IFERROR('Proyeccion Cuotas'!$I111+'Proyeccion Cuotas'!$J111,"") ->  | M111: =+IFERROR((M110-'Proyeccion Cuotas'!$I111),"") -> 
E112: =IF('Proyeccion Cuotas'!$D112="","",IF(F111=12,E111+1,E111)) ->  | F112: =IF('Proyeccion Cuotas'!$D112="","",IF(F111=12,1,F111+1)) ->  | G112: =+IF('Proyeccion Cuotas'!$D112="","",VLOOKUP('Proyeccion Cuotas'!$F112,$A$16:$B$27,2,FALSE)) ->  | H112: =IF('Proyeccion Cuotas'!$D112="","",CONCATENATE('Proyeccion Cuotas'!$G112,"/",'Proyeccion Cuotas'!$F112,"/",'Proyeccion Cuotas'!$E112)) ->  | I112: =IFERROR(IF('Proyeccion Cuotas'!$D112="","",IF(OR('Proyeccion Cuotas'!$F112=7,'Proyeccion Cuotas'!$F112=12),($B$45+(($F$1-$B$47)/$F$3)),(($F$1-$B$47)/$F$3))),0) ->  | J112: =IFERROR(IF('Proyeccion Cuotas'!$D112="","",(M111*$F$5*'Proyeccion Cuotas'!$K112/365)),"") ->  | K112: =+IF('Proyeccion Cuotas'!$D112="","",'Proyeccion Cuotas'!$H112-H111) ->  | L112: =IFERROR('Proyeccion Cuotas'!$I112+'Proyeccion Cuotas'!$J112,"") ->  | M112: =+IFERROR((M111-'Proyeccion Cuotas'!$I112),"") -> 
E113: =IF('Proyeccion Cuotas'!$D113="","",IF(F112=12,E112+1,E112)) ->  | F113: =IF('Proyeccion Cuotas'!$D113="","",IF(F112=12,1,F112+1)) ->  | G113: =+IF('Proyeccion Cuotas'!$D113="","",VLOOKUP('Proyeccion Cuotas'!$F113,$A$16:$B$27,2,FALSE)) ->  | H113: =IF('Proyeccion Cuotas'!$D113="","",CONCATENATE('Proyeccion Cuotas'!$G113,"/",'Proyeccion Cuotas'!$F113,"/",'Proyeccion Cuotas'!$E113)) ->  | I113: =IFERROR(IF('Proyeccion Cuotas'!$D113="","",IF(OR('Proyeccion Cuotas'!$F113=7,'Proyeccion Cuotas'!$F113=12),($B$45+(($F$1-$B$47)/$F$3)),(($F$1-$B$47)/$F$3))),0) ->  | J113: =IFERROR(IF('Proyeccion Cuotas'!$D113="","",(M112*$F$5*'Proyeccion Cuotas'!$K113/365)),"") ->  | K113: =+IF('Proyeccion Cuotas'!$D113="","",'Proyeccion Cuotas'!$H113-H112) ->  | L113: =IFERROR('Proyeccion Cuotas'!$I113+'Proyeccion Cuotas'!$J113,"") ->  | M113: =+IFERROR((M112-'Proyeccion Cuotas'!$I113),"") -> 
E114: =IF('Proyeccion Cuotas'!$D114="","",IF(F113=12,E113+1,E113)) ->  | F114: =IF('Proyeccion Cuotas'!$D114="","",IF(F113=12,1,F113+1)) ->  | G114: =+IF('Proyeccion Cuotas'!$D114="","",VLOOKUP('Proyeccion Cuotas'!$F114,$A$16:$B$27,2,FALSE)) ->  | H114: =IF('Proyeccion Cuotas'!$D114="","",CONCATENATE('Proyeccion Cuotas'!$G114,"/",'Proyeccion Cuotas'!$F114,"/",'Proyeccion Cuotas'!$E114)) ->  | I114: =IFERROR(IF('Proyeccion Cuotas'!$D114="","",IF(OR('Proyeccion Cuotas'!$F114=7,'Proyeccion Cuotas'!$F114=12),($B$45+(($F$1-$B$47)/$F$3)),(($F$1-$B$47)/$F$3))),0) ->  | J114: =IFERROR(IF('Proyeccion Cuotas'!$D114="","",(M113*$F$5*'Proyeccion Cuotas'!$K114/365)),"") ->  | K114: =+IF('Proyeccion Cuotas'!$D114="","",'Proyeccion Cuotas'!$H114-H113) ->  | L114: =IFERROR('Proyeccion Cuotas'!$I114+'Proyeccion Cuotas'!$J114,"") ->  | M114: =+IFERROR((M113-'Proyeccion Cuotas'!$I114),"") -> 
E115: =IF('Proyeccion Cuotas'!$D115="","",IF(F114=12,E114+1,E114)) ->  | F115: =IF('Proyeccion Cuotas'!$D115="","",IF(F114=12,1,F114+1)) ->  | G115: =+IF('Proyeccion Cuotas'!$D115="","",VLOOKUP('Proyeccion Cuotas'!$F115,$A$16:$B$27,2,FALSE)) ->  | H115: =IF('Proyeccion Cuotas'!$D115="","",CONCATENATE('Proyeccion Cuotas'!$G115,"/",'Proyeccion Cuotas'!$F115,"/",'Proyeccion Cuotas'!$E115)) ->  | I115: =IFERROR(IF('Proyeccion Cuotas'!$D115="","",IF(OR('Proyeccion Cuotas'!$F115=7,'Proyeccion Cuotas'!$F115=12),($B$45+(($F$1-$B$47)/$F$3)),(($F$1-$B$47)/$F$3))),0) ->  | J115: =IFERROR(IF('Proyeccion Cuotas'!$D115="","",(M114*$F$5*'Proyeccion Cuotas'!$K115/365)),"") ->  | K115: =+IF('Proyeccion Cuotas'!$D115="","",'Proyeccion Cuotas'!$H115-H114) ->  | L115: =IFERROR('Proyeccion Cuotas'!$I115+'Proyeccion Cuotas'!$J115,"") ->  | M115: =+IFERROR((M114-'Proyeccion Cuotas'!$I115),"") -> 
E116: =IF('Proyeccion Cuotas'!$D116="","",IF(F115=12,E115+1,E115)) ->  | F116: =IF('Proyeccion Cuotas'!$D116="","",IF(F115=12,1,F115+1)) ->  | G116: =+IF('Proyeccion Cuotas'!$D116="","",VLOOKUP('Proyeccion Cuotas'!$F116,$A$16:$B$27,2,FALSE)) ->  | H116: =IF('Proyeccion Cuotas'!$D116="","",CONCATENATE('Proyeccion Cuotas'!$G116,"/",'Proyeccion Cuotas'!$F116,"/",'Proyeccion Cuotas'!$E116)) ->  | I116: =IFERROR(IF('Proyeccion Cuotas'!$D116="","",IF(OR('Proyeccion Cuotas'!$F116=7,'Proyeccion Cuotas'!$F116=12),($B$45+(($F$1-$B$47)/$F$3)),(($F$1-$B$47)/$F$3))),0) ->  | J116: =IFERROR(IF('Proyeccion Cuotas'!$D116="","",(M115*$F$5*'Proyeccion Cuotas'!$K116/365)),"") ->  | K116: =+IF('Proyeccion Cuotas'!$D116="","",'Proyeccion Cuotas'!$H116-H115) ->  | L116: =IFERROR('Proyeccion Cuotas'!$I116+'Proyeccion Cuotas'!$J116,"") ->  | M116: =+IFERROR((M115-'Proyeccion Cuotas'!$I116),"") -> 
E117: =IF('Proyeccion Cuotas'!$D117="","",IF(F116=12,E116+1,E116)) ->  | F117: =IF('Proyeccion Cuotas'!$D117="","",IF(F116=12,1,F116+1)) ->  | G117: =+IF('Proyeccion Cuotas'!$D117="","",VLOOKUP('Proyeccion Cuotas'!$F117,$A$16:$B$27,2,FALSE)) ->  | H117: =IF('Proyeccion Cuotas'!$D117="","",CONCATENATE('Proyeccion Cuotas'!$G117,"/",'Proyeccion Cuotas'!$F117,"/",'Proyeccion Cuotas'!$E117)) ->  | I117: =IFERROR(IF('Proyeccion Cuotas'!$D117="","",IF(OR('Proyeccion Cuotas'!$F117=7,'Proyeccion Cuotas'!$F117=12),($B$45+(($F$1-$B$47)/$F$3)),(($F$1-$B$47)/$F$3))),0) ->  | J117: =IFERROR(IF('Proyeccion Cuotas'!$D117="","",(M116*$F$5*'Proyeccion Cuotas'!$K117/365)),"") ->  | K117: =+IF('Proyeccion Cuotas'!$D117="","",'Proyeccion Cuotas'!$H117-H116) ->  | L117: =IFERROR('Proyeccion Cuotas'!$I117+'Proyeccion Cuotas'!$J117,"") ->  | M117: =+IFERROR((M116-'Proyeccion Cuotas'!$I117),"") -> 
E118: =IF('Proyeccion Cuotas'!$D118="","",IF(F117=12,E117+1,E117)) ->  | F118: =IF('Proyeccion Cuotas'!$D118="","",IF(F117=12,1,F117+1)) ->  | G118: =+IF('Proyeccion Cuotas'!$D118="","",VLOOKUP('Proyeccion Cuotas'!$F118,$A$16:$B$27,2,FALSE)) ->  | H118: =IF('Proyeccion Cuotas'!$D118="","",CONCATENATE('Proyeccion Cuotas'!$G118,"/",'Proyeccion Cuotas'!$F118,"/",'Proyeccion Cuotas'!$E118)) ->  | I118: =IFERROR(IF('Proyeccion Cuotas'!$D118="","",IF(OR('Proyeccion Cuotas'!$F118=7,'Proyeccion Cuotas'!$F118=12),($B$45+(($F$1-$B$47)/$F$3)),(($F$1-$B$47)/$F$3))),0) ->  | J118: =IFERROR(IF('Proyeccion Cuotas'!$D118="","",(M117*$F$5*'Proyeccion Cuotas'!$K118/365)),"") ->  | K118: =+IF('Proyeccion Cuotas'!$D118="","",'Proyeccion Cuotas'!$H118-H117) ->  | L118: =IFERROR('Proyeccion Cuotas'!$I118+'Proyeccion Cuotas'!$J118,"") ->  | M118: =+IFERROR((M117-'Proyeccion Cuotas'!$I118),"") -> 
E119: =IF('Proyeccion Cuotas'!$D119="","",IF(F118=12,E118+1,E118)) ->  | F119: =IF('Proyeccion Cuotas'!$D119="","",IF(F118=12,1,F118+1)) ->  | G119: =+IF('Proyeccion Cuotas'!$D119="","",VLOOKUP('Proyeccion Cuotas'!$F119,$A$16:$B$27,2,FALSE)) ->  | H119: =IF('Proyeccion Cuotas'!$D119="","",CONCATENATE('Proyeccion Cuotas'!$G119,"/",'Proyeccion Cuotas'!$F119,"/",'Proyeccion Cuotas'!$E119)) ->  | I119: =IFERROR(IF('Proyeccion Cuotas'!$D119="","",IF(OR('Proyeccion Cuotas'!$F119=7,'Proyeccion Cuotas'!$F119=12),($B$45+(($F$1-$B$47)/$F$3)),(($F$1-$B$47)/$F$3))),0) ->  | J119: =IFERROR(IF('Proyeccion Cuotas'!$D119="","",(M118*$F$5*'Proyeccion Cuotas'!$K119/365)),"") ->  | K119: =+IF('Proyeccion Cuotas'!$D119="","",'Proyeccion Cuotas'!$H119-H118) ->  | L119: =IFERROR('Proyeccion Cuotas'!$I119+'Proyeccion Cuotas'!$J119,"") ->  | M119: =+IFERROR((M118-'Proyeccion Cuotas'!$I119),"") -> 
E120: =IF('Proyeccion Cuotas'!$D120="","",IF(F119=12,E119+1,E119)) ->  | F120: =IF('Proyeccion Cuotas'!$D120="","",IF(F119=12,1,F119+1)) ->  | G120: =+IF('Proyeccion Cuotas'!$D120="","",VLOOKUP('Proyeccion Cuotas'!$F120,$A$16:$B$27,2,FALSE)) ->  | H120: =IF('Proyeccion Cuotas'!$D120="","",CONCATENATE('Proyeccion Cuotas'!$G120,"/",'Proyeccion Cuotas'!$F120,"/",'Proyeccion Cuotas'!$E120)) ->  | I120: =IFERROR(IF('Proyeccion Cuotas'!$D120="","",IF(OR('Proyeccion Cuotas'!$F120=7,'Proyeccion Cuotas'!$F120=12),($B$45+(($F$1-$B$47)/$F$3)),(($F$1-$B$47)/$F$3))),0) ->  | J120: =IFERROR(IF('Proyeccion Cuotas'!$D120="","",(M119*$F$5*'Proyeccion Cuotas'!$K120/365)),"") ->  | K120: =+IF('Proyeccion Cuotas'!$D120="","",'Proyeccion Cuotas'!$H120-H119) ->  | L120: =IFERROR('Proyeccion Cuotas'!$I120+'Proyeccion Cuotas'!$J120,"") ->  | M120: =+IFERROR((M119-'Proyeccion Cuotas'!$I120),"") -> 
E121: =IF('Proyeccion Cuotas'!$D121="","",IF(F120=12,E120+1,E120)) ->  | F121: =IF('Proyeccion Cuotas'!$D121="","",IF(F120=12,1,F120+1)) ->  | G121: =+IF('Proyeccion Cuotas'!$D121="","",VLOOKUP('Proyeccion Cuotas'!$F121,$A$16:$B$27,2,FALSE)) ->  | H121: =IF('Proyeccion Cuotas'!$D121="","",CONCATENATE('Proyeccion Cuotas'!$G121,"/",'Proyeccion Cuotas'!$F121,"/",'Proyeccion Cuotas'!$E121)) ->  | I121: =IFERROR(IF('Proyeccion Cuotas'!$D121="","",IF(OR('Proyeccion Cuotas'!$F121=7,'Proyeccion Cuotas'!$F121=12),($B$45+(($F$1-$B$47)/$F$3)),(($F$1-$B$47)/$F$3))),0) ->  | J121: =IFERROR(IF('Proyeccion Cuotas'!$D121="","",(M120*$F$5*'Proyeccion Cuotas'!$K121/365)),"") ->  | K121: =+IF('Proyeccion Cuotas'!$D121="","",'Proyeccion Cuotas'!$H121-H120) ->  | L121: =IFERROR('Proyeccion Cuotas'!$I121+'Proyeccion Cuotas'!$J121,"") ->  | M121: =+IFERROR((M120-'Proyeccion Cuotas'!$I121),"") -> 
E122: =IF('Proyeccion Cuotas'!$D122="","",IF(F121=12,E121+1,E121)) ->  | F122: =IF('Proyeccion Cuotas'!$D122="","",IF(F121=12,1,F121+1)) ->  | G122: =+IF('Proyeccion Cuotas'!$D122="","",VLOOKUP('Proyeccion Cuotas'!$F122,$A$16:$B$27,2,FALSE)) ->  | H122: =IF('Proyeccion Cuotas'!$D122="","",CONCATENATE('Proyeccion Cuotas'!$G122,"/",'Proyeccion Cuotas'!$F122,"/",'Proyeccion Cuotas'!$E122)) ->  | I122: =IFERROR(IF('Proyeccion Cuotas'!$D122="","",IF(OR('Proyeccion Cuotas'!$F122=7,'Proyeccion Cuotas'!$F122=12),($B$45+(($F$1-$B$47)/$F$3)),(($F$1-$B$47)/$F$3))),0) ->  | J122: =IFERROR(IF('Proyeccion Cuotas'!$D122="","",(M121*$F$5*'Proyeccion Cuotas'!$K122/365)),"") ->  | K122: =+IF('Proyeccion Cuotas'!$D122="","",'Proyeccion Cuotas'!$H122-H121) ->  | L122: =IFERROR('Proyeccion Cuotas'!$I122+'Proyeccion Cuotas'!$J122,"") ->  | M122: =+IFERROR((M121-'Proyeccion Cuotas'!$I122),"") -> 
E123: =IF('Proyeccion Cuotas'!$D123="","",IF(F122=12,E122+1,E122)) ->  | F123: =IF('Proyeccion Cuotas'!$D123="","",IF(F122=12,1,F122+1)) ->  | G123: =+IF('Proyeccion Cuotas'!$D123="","",VLOOKUP('Proyeccion Cuotas'!$F123,$A$16:$B$27,2,FALSE)) ->  | H123: =IF('Proyeccion Cuotas'!$D123="","",CONCATENATE('Proyeccion Cuotas'!$G123,"/",'Proyeccion Cuotas'!$F123,"/",'Proyeccion Cuotas'!$E123)) ->  | I123: =IFERROR(IF('Proyeccion Cuotas'!$D123="","",IF(OR('Proyeccion Cuotas'!$F123=7,'Proyeccion Cuotas'!$F123=12),($B$45+(($F$1-$B$47)/$F$3)),(($F$1-$B$47)/$F$3))),0) ->  | J123: =IFERROR(IF('Proyeccion Cuotas'!$D123="","",(M122*$F$5*'Proyeccion Cuotas'!$K123/365)),"") ->  | K123: =+IF('Proyeccion Cuotas'!$D123="","",'Proyeccion Cuotas'!$H123-H122) ->  | L123: =IFERROR('Proyeccion Cuotas'!$I123+'Proyeccion Cuotas'!$J123,"") ->  | M123: =+IFERROR((M122-'Proyeccion Cuotas'!$I123),"") -> 
E124: =IF('Proyeccion Cuotas'!$D124="","",IF(F123=12,E123+1,E123)) ->  | F124: =IF('Proyeccion Cuotas'!$D124="","",IF(F123=12,1,F123+1)) ->  | G124: =+IF('Proyeccion Cuotas'!$D124="","",VLOOKUP('Proyeccion Cuotas'!$F124,$A$16:$B$27,2,FALSE)) ->  | H124: =IF('Proyeccion Cuotas'!$D124="","",CONCATENATE('Proyeccion Cuotas'!$G124,"/",'Proyeccion Cuotas'!$F124,"/",'Proyeccion Cuotas'!$E124)) ->  | I124: =IFERROR(IF('Proyeccion Cuotas'!$D124="","",IF(OR('Proyeccion Cuotas'!$F124=7,'Proyeccion Cuotas'!$F124=12),($B$45+(($F$1-$B$47)/$F$3)),(($F$1-$B$47)/$F$3))),0) ->  | J124: =IFERROR(IF('Proyeccion Cuotas'!$D124="","",(M123*$F$5*'Proyeccion Cuotas'!$K124/365)),"") ->  | K124: =+IF('Proyeccion Cuotas'!$D124="","",'Proyeccion Cuotas'!$H124-H123) ->  | L124: =IFERROR('Proyeccion Cuotas'!$I124+'Proyeccion Cuotas'!$J124,"") ->  | M124: =+IFERROR((M123-'Proyeccion Cuotas'!$I124),"") -> 
E125: =IF('Proyeccion Cuotas'!$D125="","",IF(F124=12,E124+1,E124)) ->  | F125: =IF('Proyeccion Cuotas'!$D125="","",IF(F124=12,1,F124+1)) ->  | G125: =+IF('Proyeccion Cuotas'!$D125="","",VLOOKUP('Proyeccion Cuotas'!$F125,$A$16:$B$27,2,FALSE)) ->  | H125: =IF('Proyeccion Cuotas'!$D125="","",CONCATENATE('Proyeccion Cuotas'!$G125,"/",'Proyeccion Cuotas'!$F125,"/",'Proyeccion Cuotas'!$E125)) ->  | I125: =IFERROR(IF('Proyeccion Cuotas'!$D125="","",IF(OR('Proyeccion Cuotas'!$F125=7,'Proyeccion Cuotas'!$F125=12),($B$45+(($F$1-$B$47)/$F$3)),(($F$1-$B$47)/$F$3))),0) ->  | J125: =IFERROR(IF('Proyeccion Cuotas'!$D125="","",(M124*$F$5*'Proyeccion Cuotas'!$K125/365)),"") ->  | K125: =+IF('Proyeccion Cuotas'!$D125="","",'Proyeccion Cuotas'!$H125-H124) ->  | L125: =IFERROR('Proyeccion Cuotas'!$I125+'Proyeccion Cuotas'!$J125,"") ->  | M125: =+IFERROR((M124-'Proyeccion Cuotas'!$I125),"") -> 
E126: =IF('Proyeccion Cuotas'!$D126="","",IF(F125=12,E125+1,E125)) ->  | F126: =IF('Proyeccion Cuotas'!$D126="","",IF(F125=12,1,F125+1)) ->  | G126: =+IF('Proyeccion Cuotas'!$D126="","",VLOOKUP('Proyeccion Cuotas'!$F126,$A$16:$B$27,2,FALSE)) ->  | H126: =IF('Proyeccion Cuotas'!$D126="","",CONCATENATE('Proyeccion Cuotas'!$G126,"/",'Proyeccion Cuotas'!$F126,"/",'Proyeccion Cuotas'!$E126)) ->  | I126: =IFERROR(IF('Proyeccion Cuotas'!$D126="","",IF(OR('Proyeccion Cuotas'!$F126=7,'Proyeccion Cuotas'!$F126=12),($B$45+(($F$1-$B$47)/$F$3)),(($F$1-$B$47)/$F$3))),0) ->  | J126: =IFERROR(IF('Proyeccion Cuotas'!$D126="","",(M125*$F$5*'Proyeccion Cuotas'!$K126/365)),"") ->  | K126: =+IF('Proyeccion Cuotas'!$D126="","",'Proyeccion Cuotas'!$H126-H125) ->  | L126: =IFERROR('Proyeccion Cuotas'!$I126+'Proyeccion Cuotas'!$J126,"") ->  | M126: =+IFERROR((M125-'Proyeccion Cuotas'!$I126),"") -> 
E127: =IF('Proyeccion Cuotas'!$D127="","",IF(F126=12,E126+1,E126)) ->  | F127: =IF('Proyeccion Cuotas'!$D127="","",IF(F126=12,1,F126+1)) ->  | G127: =+IF('Proyeccion Cuotas'!$D127="","",VLOOKUP('Proyeccion Cuotas'!$F127,$A$16:$B$27,2,FALSE)) ->  | H127: =IF('Proyeccion Cuotas'!$D127="","",CONCATENATE('Proyeccion Cuotas'!$G127,"/",'Proyeccion Cuotas'!$F127,"/",'Proyeccion Cuotas'!$E127)) ->  | I127: =IFERROR(IF('Proyeccion Cuotas'!$D127="","",IF(OR('Proyeccion Cuotas'!$F127=7,'Proyeccion Cuotas'!$F127=12),($B$45+(($F$1-$B$47)/$F$3)),(($F$1-$B$47)/$F$3))),0) ->  | J127: =IFERROR(IF('Proyeccion Cuotas'!$D127="","",(M126*$F$5*'Proyeccion Cuotas'!$K127/365)),"") ->  | K127: =+IF('Proyeccion Cuotas'!$D127="","",'Proyeccion Cuotas'!$H127-H126) ->  | L127: =IFERROR('Proyeccion Cuotas'!$I127+'Proyeccion Cuotas'!$J127,"") ->  | M127: =+IFERROR((M126-'Proyeccion Cuotas'!$I127),"") -> 
E128: =IF('Proyeccion Cuotas'!$D128="","",IF(F127=12,E127+1,E127)) ->  | F128: =IF('Proyeccion Cuotas'!$D128="","",IF(F127=12,1,F127+1)) ->  | G128: =+IF('Proyeccion Cuotas'!$D128="","",VLOOKUP('Proyeccion Cuotas'!$F128,$A$16:$B$27,2,FALSE)) ->  | H128: =IF('Proyeccion Cuotas'!$D128="","",CONCATENATE('Proyeccion Cuotas'!$G128,"/",'Proyeccion Cuotas'!$F128,"/",'Proyeccion Cuotas'!$E128)) ->  | I128: =IFERROR(IF('Proyeccion Cuotas'!$D128="","",IF(OR('Proyeccion Cuotas'!$F128=7,'Proyeccion Cuotas'!$F128=12),($B$45+(($F$1-$B$47)/$F$3)),(($F$1-$B$47)/$F$3))),0) ->  | J128: =IFERROR(IF('Proyeccion Cuotas'!$D128="","",(M127*$F$5*'Proyeccion Cuotas'!$K128/365)),"") ->  | K128: =+IF('Proyeccion Cuotas'!$D128="","",'Proyeccion Cuotas'!$H128-H127) ->  | L128: =IFERROR('Proyeccion Cuotas'!$I128+'Proyeccion Cuotas'!$J128,"") ->  | M128: =+IFERROR((M127-'Proyeccion Cuotas'!$I128),"") -> 
E129: =IF('Proyeccion Cuotas'!$D129="","",IF(F128=12,E128+1,E128)) ->  | F129: =IF('Proyeccion Cuotas'!$D129="","",IF(F128=12,1,F128+1)) ->  | G129: =+IF('Proyeccion Cuotas'!$D129="","",VLOOKUP('Proyeccion Cuotas'!$F129,$A$16:$B$27,2,FALSE)) ->  | H129: =IF('Proyeccion Cuotas'!$D129="","",CONCATENATE('Proyeccion Cuotas'!$G129,"/",'Proyeccion Cuotas'!$F129,"/",'Proyeccion Cuotas'!$E129)) ->  | I129: =IFERROR(IF('Proyeccion Cuotas'!$D129="","",IF(OR('Proyeccion Cuotas'!$F129=7,'Proyeccion Cuotas'!$F129=12),($B$45+(($F$1-$B$47)/$F$3)),(($F$1-$B$47)/$F$3))),0) ->  | J129: =IFERROR(IF('Proyeccion Cuotas'!$D129="","",(M128*$F$5*'Proyeccion Cuotas'!$K129/365)),"") ->  | K129: =+IF('Proyeccion Cuotas'!$D129="","",'Proyeccion Cuotas'!$H129-H128) ->  | L129: =IFERROR('Proyeccion Cuotas'!$I129+'Proyeccion Cuotas'!$J129,"") ->  | M129: =+IFERROR((M128-'Proyeccion Cuotas'!$I129),"") -> 
E130: =IF('Proyeccion Cuotas'!$D130="","",IF(F129=12,E129+1,E129)) ->  | F130: =IF('Proyeccion Cuotas'!$D130="","",IF(F129=12,1,F129+1)) ->  | G130: =+IF('Proyeccion Cuotas'!$D130="","",VLOOKUP('Proyeccion Cuotas'!$F130,$A$16:$B$27,2,FALSE)) ->  | H130: =IF('Proyeccion Cuotas'!$D130="","",CONCATENATE('Proyeccion Cuotas'!$G130,"/",'Proyeccion Cuotas'!$F130,"/",'Proyeccion Cuotas'!$E130)) ->  | I130: =IFERROR(IF('Proyeccion Cuotas'!$D130="","",IF(OR('Proyeccion Cuotas'!$F130=7,'Proyeccion Cuotas'!$F130=12),($B$45+(($F$1-$B$47)/$F$3)),(($F$1-$B$47)/$F$3))),0) ->  | J130: =IFERROR(IF('Proyeccion Cuotas'!$D130="","",(M129*$F$5*'Proyeccion Cuotas'!$K130/365)),"") ->  | K130: =+IF('Proyeccion Cuotas'!$D130="","",'Proyeccion Cuotas'!$H130-H129) ->  | L130: =IFERROR('Proyeccion Cuotas'!$I130+'Proyeccion Cuotas'!$J130,"") ->  | M130: =+IFERROR((M129-'Proyeccion Cuotas'!$I130),"") -> 
E131: =IF('Proyeccion Cuotas'!$D131="","",IF(F130=12,E130+1,E130)) ->  | F131: =IF('Proyeccion Cuotas'!$D131="","",IF(F130=12,1,F130+1)) ->  | G131: =+IF('Proyeccion Cuotas'!$D131="","",VLOOKUP('Proyeccion Cuotas'!$F131,$A$16:$B$27,2,FALSE)) ->  | H131: =IF('Proyeccion Cuotas'!$D131="","",CONCATENATE('Proyeccion Cuotas'!$G131,"/",'Proyeccion Cuotas'!$F131,"/",'Proyeccion Cuotas'!$E131)) ->  | I131: =IFERROR(IF('Proyeccion Cuotas'!$D131="","",IF(OR('Proyeccion Cuotas'!$F131=7,'Proyeccion Cuotas'!$F131=12),($B$45+(($F$1-$B$47)/$F$3)),(($F$1-$B$47)/$F$3))),0) ->  | J131: =IFERROR(IF('Proyeccion Cuotas'!$D131="","",(M130*$F$5*'Proyeccion Cuotas'!$K131/365)),"") ->  | K131: =+IF('Proyeccion Cuotas'!$D131="","",'Proyeccion Cuotas'!$H131-H130) ->  | L131: =IFERROR('Proyeccion Cuotas'!$I131+'Proyeccion Cuotas'!$J131,"") ->  | M131: =+IFERROR((M130-'Proyeccion Cuotas'!$I131),"") -> 
E132: =IF('Proyeccion Cuotas'!$D132="","",IF(F131=12,E131+1,E131)) ->  | F132: =IF('Proyeccion Cuotas'!$D132="","",IF(F131=12,1,F131+1)) ->  | G132: =+IF('Proyeccion Cuotas'!$D132="","",VLOOKUP('Proyeccion Cuotas'!$F132,$A$16:$B$27,2,FALSE)) ->  | H132: =IF('Proyeccion Cuotas'!$D132="","",CONCATENATE('Proyeccion Cuotas'!$G132,"/",'Proyeccion Cuotas'!$F132,"/",'Proyeccion Cuotas'!$E132)) ->  | I132: =IFERROR(IF('Proyeccion Cuotas'!$D132="","",IF(OR('Proyeccion Cuotas'!$F132=7,'Proyeccion Cuotas'!$F132=12),($B$45+(($F$1-$B$47)/$F$3)),(($F$1-$B$47)/$F$3))),0) ->  | J132: =IFERROR(IF('Proyeccion Cuotas'!$D132="","",(M131*$F$5*'Proyeccion Cuotas'!$K132/365)),"") ->  | K132: =+IF('Proyeccion Cuotas'!$D132="","",'Proyeccion Cuotas'!$H132-H131) ->  | L132: =IFERROR('Proyeccion Cuotas'!$I132+'Proyeccion Cuotas'!$J132,"") ->  | M132: =+IFERROR((M131-'Proyeccion Cuotas'!$I132),"") -> 
E133: =IF('Proyeccion Cuotas'!$D133="","",IF(F132=12,E132+1,E132)) ->  | F133: =IF('Proyeccion Cuotas'!$D133="","",IF(F132=12,1,F132+1)) ->  | G133: =+IF('Proyeccion Cuotas'!$D133="","",VLOOKUP('Proyeccion Cuotas'!$F133,$A$16:$B$27,2,FALSE)) ->  | H133: =IF('Proyeccion Cuotas'!$D133="","",CONCATENATE('Proyeccion Cuotas'!$G133,"/",'Proyeccion Cuotas'!$F133,"/",'Proyeccion Cuotas'!$E133)) ->  | I133: =IFERROR(IF('Proyeccion Cuotas'!$D133="","",IF(OR('Proyeccion Cuotas'!$F133=7,'Proyeccion Cuotas'!$F133=12),($B$45+(($F$1-$B$47)/$F$3)),(($F$1-$B$47)/$F$3))),0) ->  | J133: =IFERROR(IF('Proyeccion Cuotas'!$D133="","",(M132*$F$5*'Proyeccion Cuotas'!$K133/365)),"") ->  | K133: =+IF('Proyeccion Cuotas'!$D133="","",'Proyeccion Cuotas'!$H133-H132) ->  | L133: =IFERROR('Proyeccion Cuotas'!$I133+'Proyeccion Cuotas'!$J133,"") ->  | M133: =+IFERROR((M132-'Proyeccion Cuotas'!$I133),"") -> 
E134: =IF('Proyeccion Cuotas'!$D134="","",IF(F133=12,E133+1,E133)) ->  | F134: =IF('Proyeccion Cuotas'!$D134="","",IF(F133=12,1,F133+1)) ->  | G134: =+IF('Proyeccion Cuotas'!$D134="","",VLOOKUP('Proyeccion Cuotas'!$F134,$A$16:$B$27,2,FALSE)) ->  | H134: =IF('Proyeccion Cuotas'!$D134="","",CONCATENATE('Proyeccion Cuotas'!$G134,"/",'Proyeccion Cuotas'!$F134,"/",'Proyeccion Cuotas'!$E134)) ->  | I134: =IFERROR(IF('Proyeccion Cuotas'!$D134="","",IF(OR('Proyeccion Cuotas'!$F134=7,'Proyeccion Cuotas'!$F134=12),($B$45+(($F$1-$B$47)/$F$3)),(($F$1-$B$47)/$F$3))),0) ->  | J134: =IFERROR(IF('Proyeccion Cuotas'!$D134="","",(M133*$F$5*'Proyeccion Cuotas'!$K134/365)),"") ->  | K134: =+IF('Proyeccion Cuotas'!$D134="","",'Proyeccion Cuotas'!$H134-H133) ->  | L134: =IFERROR('Proyeccion Cuotas'!$I134+'Proyeccion Cuotas'!$J134,"") ->  | M134: =+IFERROR((M133-'Proyeccion Cuotas'!$I134),"") -> 
E135: =IF('Proyeccion Cuotas'!$D135="","",IF(F134=12,E134+1,E134)) ->  | F135: =IF('Proyeccion Cuotas'!$D135="","",IF(F134=12,1,F134+1)) ->  | G135: =+IF('Proyeccion Cuotas'!$D135="","",VLOOKUP('Proyeccion Cuotas'!$F135,$A$16:$B$27,2,FALSE)) ->  | H135: =IF('Proyeccion Cuotas'!$D135="","",CONCATENATE('Proyeccion Cuotas'!$G135,"/",'Proyeccion Cuotas'!$F135,"/",'Proyeccion Cuotas'!$E135)) ->  | I135: =IFERROR(IF('Proyeccion Cuotas'!$D135="","",IF(OR('Proyeccion Cuotas'!$F135=7,'Proyeccion Cuotas'!$F135=12),($B$45+(($F$1-$B$47)/$F$3)),(($F$1-$B$47)/$F$3))),0) ->  | J135: =IFERROR(IF('Proyeccion Cuotas'!$D135="","",(M134*$F$5*'Proyeccion Cuotas'!$K135/365)),"") ->  | K135: =+IF('Proyeccion Cuotas'!$D135="","",'Proyeccion Cuotas'!$H135-H134) ->  | L135: =IFERROR('Proyeccion Cuotas'!$I135+'Proyeccion Cuotas'!$J135,"") ->  | M135: =+IFERROR((M134-'Proyeccion Cuotas'!$I135),"") -> 
E136: =IF('Proyeccion Cuotas'!$D136="","",IF(F135=12,E135+1,E135)) ->  | F136: =IF('Proyeccion Cuotas'!$D136="","",IF(F135=12,1,F135+1)) ->  | G136: =+IF('Proyeccion Cuotas'!$D136="","",VLOOKUP('Proyeccion Cuotas'!$F136,$A$16:$B$27,2,FALSE)) ->  | H136: =IF('Proyeccion Cuotas'!$D136="","",CONCATENATE('Proyeccion Cuotas'!$G136,"/",'Proyeccion Cuotas'!$F136,"/",'Proyeccion Cuotas'!$E136)) ->  | I136: =IFERROR(IF('Proyeccion Cuotas'!$D136="","",IF(OR('Proyeccion Cuotas'!$F136=7,'Proyeccion Cuotas'!$F136=12),($B$45+(($F$1-$B$47)/$F$3)),(($F$1-$B$47)/$F$3))),0) ->  | J136: =IFERROR(IF('Proyeccion Cuotas'!$D136="","",(M135*$F$5*'Proyeccion Cuotas'!$K136/365)),"") ->  | K136: =+IF('Proyeccion Cuotas'!$D136="","",'Proyeccion Cuotas'!$H136-H135) ->  | L136: =IFERROR('Proyeccion Cuotas'!$I136+'Proyeccion Cuotas'!$J136,"") ->  | M136: =+IFERROR((M135-'Proyeccion Cuotas'!$I136),"") -> 
E137: =IF('Proyeccion Cuotas'!$D137="","",IF(F136=12,E136+1,E136)) ->  | F137: =IF('Proyeccion Cuotas'!$D137="","",IF(F136=12,1,F136+1)) ->  | G137: =+IF('Proyeccion Cuotas'!$D137="","",VLOOKUP('Proyeccion Cuotas'!$F137,$A$16:$B$27,2,FALSE)) ->  | H137: =IF('Proyeccion Cuotas'!$D137="","",CONCATENATE('Proyeccion Cuotas'!$G137,"/",'Proyeccion Cuotas'!$F137,"/",'Proyeccion Cuotas'!$E137)) ->  | I137: =IFERROR(IF('Proyeccion Cuotas'!$D137="","",IF(OR('Proyeccion Cuotas'!$F137=7,'Proyeccion Cuotas'!$F137=12),($B$45+(($F$1-$B$47)/$F$3)),(($F$1-$B$47)/$F$3))),0) ->  | J137: =IFERROR(IF('Proyeccion Cuotas'!$D137="","",(M136*$F$5*'Proyeccion Cuotas'!$K137/365)),"") ->  | K137: =+IF('Proyeccion Cuotas'!$D137="","",'Proyeccion Cuotas'!$H137-H136) ->  | L137: =IFERROR('Proyeccion Cuotas'!$I137+'Proyeccion Cuotas'!$J137,"") ->  | M137: =+IFERROR((M136-'Proyeccion Cuotas'!$I137),"") -> 
E138: =IF('Proyeccion Cuotas'!$D138="","",IF(F137=12,E137+1,E137)) ->  | F138: =IF('Proyeccion Cuotas'!$D138="","",IF(F137=12,1,F137+1)) ->  | G138: =+IF('Proyeccion Cuotas'!$D138="","",VLOOKUP('Proyeccion Cuotas'!$F138,$A$16:$B$27,2,FALSE)) ->  | H138: =IF('Proyeccion Cuotas'!$D138="","",CONCATENATE('Proyeccion Cuotas'!$G138,"/",'Proyeccion Cuotas'!$F138,"/",'Proyeccion Cuotas'!$E138)) ->  | I138: =IFERROR(IF('Proyeccion Cuotas'!$D138="","",IF(OR('Proyeccion Cuotas'!$F138=7,'Proyeccion Cuotas'!$F138=12),($B$45+(($F$1-$B$47)/$F$3)),(($F$1-$B$47)/$F$3))),0) ->  | J138: =IFERROR(IF('Proyeccion Cuotas'!$D138="","",(M137*$F$5*'Proyeccion Cuotas'!$K138/365)),"") ->  | K138: =+IF('Proyeccion Cuotas'!$D138="","",'Proyeccion Cuotas'!$H138-H137) ->  | L138: =IFERROR('Proyeccion Cuotas'!$I138+'Proyeccion Cuotas'!$J138,"") ->  | M138: =+IFERROR((M137-'Proyeccion Cuotas'!$I138),"") -> 
E139: =IF('Proyeccion Cuotas'!$D139="","",IF(F138=12,E138+1,E138)) ->  | F139: =IF('Proyeccion Cuotas'!$D139="","",IF(F138=12,1,F138+1)) ->  | G139: =+IF('Proyeccion Cuotas'!$D139="","",VLOOKUP('Proyeccion Cuotas'!$F139,$A$16:$B$27,2,FALSE)) ->  | H139: =IF('Proyeccion Cuotas'!$D139="","",CONCATENATE('Proyeccion Cuotas'!$G139,"/",'Proyeccion Cuotas'!$F139,"/",'Proyeccion Cuotas'!$E139)) ->  | I139: =IFERROR(IF('Proyeccion Cuotas'!$D139="","",IF(OR('Proyeccion Cuotas'!$F139=7,'Proyeccion Cuotas'!$F139=12),($B$45+(($F$1-$B$47)/$F$3)),(($F$1-$B$47)/$F$3))),0) ->  | J139: =IFERROR(IF('Proyeccion Cuotas'!$D139="","",(M138*$F$5*'Proyeccion Cuotas'!$K139/365)),"") ->  | K139: =+IF('Proyeccion Cuotas'!$D139="","",'Proyeccion Cuotas'!$H139-H138) ->  | L139: =IFERROR('Proyeccion Cuotas'!$I139+'Proyeccion Cuotas'!$J139,"") ->  | M139: =+IFERROR((M138-'Proyeccion Cuotas'!$I139),"") -> 
E140: =IF('Proyeccion Cuotas'!$D140="","",IF(F139=12,E139+1,E139)) ->  | F140: =IF('Proyeccion Cuotas'!$D140="","",IF(F139=12,1,F139+1)) ->  | G140: =+IF('Proyeccion Cuotas'!$D140="","",VLOOKUP('Proyeccion Cuotas'!$F140,$A$16:$B$27,2,FALSE)) ->  | H140: =IF('Proyeccion Cuotas'!$D140="","",CONCATENATE('Proyeccion Cuotas'!$G140,"/",'Proyeccion Cuotas'!$F140,"/",'Proyeccion Cuotas'!$E140)) ->  | I140: =IFERROR(IF('Proyeccion Cuotas'!$D140="","",IF(OR('Proyeccion Cuotas'!$F140=7,'Proyeccion Cuotas'!$F140=12),($B$45+(($F$1-$B$47)/$F$3)),(($F$1-$B$47)/$F$3))),0) ->  | J140: =IFERROR(IF('Proyeccion Cuotas'!$D140="","",(M139*$F$5*'Proyeccion Cuotas'!$K140/365)),"") ->  | K140: =+IF('Proyeccion Cuotas'!$D140="","",'Proyeccion Cuotas'!$H140-H139) ->  | L140: =IFERROR('Proyeccion Cuotas'!$I140+'Proyeccion Cuotas'!$J140,"") ->  | M140: =+IFERROR((M139-'Proyeccion Cuotas'!$I140),"") -> 
E141: =IF('Proyeccion Cuotas'!$D141="","",IF(F140=12,E140+1,E140)) ->  | F141: =IF('Proyeccion Cuotas'!$D141="","",IF(F140=12,1,F140+1)) ->  | G141: =+IF('Proyeccion Cuotas'!$D141="","",VLOOKUP('Proyeccion Cuotas'!$F141,$A$16:$B$27,2,FALSE)) ->  | H141: =IF('Proyeccion Cuotas'!$D141="","",CONCATENATE('Proyeccion Cuotas'!$G141,"/",'Proyeccion Cuotas'!$F141,"/",'Proyeccion Cuotas'!$E141)) ->  | I141: =IFERROR(IF('Proyeccion Cuotas'!$D141="","",IF(OR('Proyeccion Cuotas'!$F141=7,'Proyeccion Cuotas'!$F141=12),($B$45+(($F$1-$B$47)/$F$3)),(($F$1-$B$47)/$F$3))),0) ->  | J141: =IFERROR(IF('Proyeccion Cuotas'!$D141="","",(M140*$F$5*'Proyeccion Cuotas'!$K141/365)),"") ->  | K141: =+IF('Proyeccion Cuotas'!$D141="","",'Proyeccion Cuotas'!$H141-H140) ->  | L141: =IFERROR('Proyeccion Cuotas'!$I141+'Proyeccion Cuotas'!$J141,"") ->  | M141: =+IFERROR((M140-'Proyeccion Cuotas'!$I141),"") -> 
E142: =IF('Proyeccion Cuotas'!$D142="","",IF(F141=12,E141+1,E141)) ->  | F142: =IF('Proyeccion Cuotas'!$D142="","",IF(F141=12,1,F141+1)) ->  | G142: =+IF('Proyeccion Cuotas'!$D142="","",VLOOKUP('Proyeccion Cuotas'!$F142,$A$16:$B$27,2,FALSE)) ->  | H142: =IF('Proyeccion Cuotas'!$D142="","",CONCATENATE('Proyeccion Cuotas'!$G142,"/",'Proyeccion Cuotas'!$F142,"/",'Proyeccion Cuotas'!$E142)) ->  | I142: =IFERROR(IF('Proyeccion Cuotas'!$D142="","",IF(OR('Proyeccion Cuotas'!$F142=7,'Proyeccion Cuotas'!$F142=12),($B$45+(($F$1-$B$47)/$F$3)),(($F$1-$B$47)/$F$3))),0) ->  | J142: =IFERROR(IF('Proyeccion Cuotas'!$D142="","",(M141*$F$5*'Proyeccion Cuotas'!$K142/365)),"") ->  | K142: =+IF('Proyeccion Cuotas'!$D142="","",'Proyeccion Cuotas'!$H142-H141) ->  | L142: =IFERROR('Proyeccion Cuotas'!$I142+'Proyeccion Cuotas'!$J142,"") ->  | M142: =+IFERROR((M141-'Proyeccion Cuotas'!$I142),"") -> 
E143: =IF('Proyeccion Cuotas'!$D143="","",IF(F142=12,E142+1,E142)) ->  | F143: =IF('Proyeccion Cuotas'!$D143="","",IF(F142=12,1,F142+1)) ->  | G143: =+IF('Proyeccion Cuotas'!$D143="","",VLOOKUP('Proyeccion Cuotas'!$F143,$A$16:$B$27,2,FALSE)) ->  | H143: =IF('Proyeccion Cuotas'!$D143="","",CONCATENATE('Proyeccion Cuotas'!$G143,"/",'Proyeccion Cuotas'!$F143,"/",'Proyeccion Cuotas'!$E143)) ->  | I143: =IFERROR(IF('Proyeccion Cuotas'!$D143="","",IF(OR('Proyeccion Cuotas'!$F143=7,'Proyeccion Cuotas'!$F143=12),($B$45+(($F$1-$B$47)/$F$3)),(($F$1-$B$47)/$F$3))),0) ->  | J143: =IFERROR(IF('Proyeccion Cuotas'!$D143="","",(M142*$F$5*'Proyeccion Cuotas'!$K143/365)),"") ->  | K143: =+IF('Proyeccion Cuotas'!$D143="","",'Proyeccion Cuotas'!$H143-H142) ->  | L143: =IFERROR('Proyeccion Cuotas'!$I143+'Proyeccion Cuotas'!$J143,"") ->  | M143: =+IFERROR((M142-'Proyeccion Cuotas'!$I143),"") -> 
E144: =IF('Proyeccion Cuotas'!$D144="","",IF(F143=12,E143+1,E143)) ->  | F144: =IF('Proyeccion Cuotas'!$D144="","",IF(F143=12,1,F143+1)) ->  | G144: =+IF('Proyeccion Cuotas'!$D144="","",VLOOKUP('Proyeccion Cuotas'!$F144,$A$16:$B$27,2,FALSE)) ->  | H144: =IF('Proyeccion Cuotas'!$D144="","",CONCATENATE('Proyeccion Cuotas'!$G144,"/",'Proyeccion Cuotas'!$F144,"/",'Proyeccion Cuotas'!$E144)) ->  | I144: =IFERROR(IF('Proyeccion Cuotas'!$D144="","",IF(OR('Proyeccion Cuotas'!$F144=7,'Proyeccion Cuotas'!$F144=12),($B$45+(($F$1-$B$47)/$F$3)),(($F$1-$B$47)/$F$3))),0) ->  | J144: =IFERROR(IF('Proyeccion Cuotas'!$D144="","",(M143*$F$5*'Proyeccion Cuotas'!$K144/365)),"") ->  | K144: =+IF('Proyeccion Cuotas'!$D144="","",'Proyeccion Cuotas'!$H144-H143) ->  | L144: =IFERROR('Proyeccion Cuotas'!$I144+'Proyeccion Cuotas'!$J144,"") ->  | M144: =+IFERROR((M143-'Proyeccion Cuotas'!$I144),"") -> 
E145: =IF('Proyeccion Cuotas'!$D145="","",IF(F144=12,E144+1,E144)) ->  | F145: =IF('Proyeccion Cuotas'!$D145="","",IF(F144=12,1,F144+1)) ->  | G145: =+IF('Proyeccion Cuotas'!$D145="","",VLOOKUP('Proyeccion Cuotas'!$F145,$A$16:$B$27,2,FALSE)) ->  | H145: =IF('Proyeccion Cuotas'!$D145="","",CONCATENATE('Proyeccion Cuotas'!$G145,"/",'Proyeccion Cuotas'!$F145,"/",'Proyeccion Cuotas'!$E145)) ->  | I145: =IFERROR(IF('Proyeccion Cuotas'!$D145="","",IF(OR('Proyeccion Cuotas'!$F145=7,'Proyeccion Cuotas'!$F145=12),($B$45+(($F$1-$B$47)/$F$3)),(($F$1-$B$47)/$F$3))),0) ->  | J145: =IFERROR(IF('Proyeccion Cuotas'!$D145="","",(M144*$F$5*'Proyeccion Cuotas'!$K145/365)),"") ->  | K145: =+IF('Proyeccion Cuotas'!$D145="","",'Proyeccion Cuotas'!$H145-H144) ->  | L145: =IFERROR('Proyeccion Cuotas'!$I145+'Proyeccion Cuotas'!$J145,"") ->  | M145: =+IFERROR((M144-'Proyeccion Cuotas'!$I145),"") -> 
D146: =IFERROR(IF(M145<0.001,"",(D145+1)),"") ->  | E146: =IF('Proyeccion Cuotas'!$D146="","",IF(F145=12,E145+1,E145)) ->  | F146: =IF('Proyeccion Cuotas'!$D146="","",IF(F145=12,1,F145+1)) ->  | G146: =+IF('Proyeccion Cuotas'!$D146="","",VLOOKUP('Proyeccion Cuotas'!$F146,$A$16:$B$27,2,FALSE)) ->  | H146: =IF('Proyeccion Cuotas'!$D146="","",CONCATENATE('Proyeccion Cuotas'!$G146,"/",'Proyeccion Cuotas'!$F146,"/",'Proyeccion Cuotas'!$E146)) ->  | I146: =IFERROR(IF('Proyeccion Cuotas'!$D146="","",IF(OR('Proyeccion Cuotas'!$F146=7,'Proyeccion Cuotas'!$F146=12),($B$45+(($F$1-$B$47)/$F$3)),(($F$1-$B$47)/$F$3))),0) ->  | J146: =IFERROR(IF('Proyeccion Cuotas'!$D146="","",(M145*$F$5*'Proyeccion Cuotas'!$K146/365)),"") ->  | K146: =+IF('Proyeccion Cuotas'!$D146="","",'Proyeccion Cuotas'!$H146-H145) ->  | L146: =IFERROR('Proyeccion Cuotas'!$I146+'Proyeccion Cuotas'!$J146,"") ->  | M146: =+IFERROR((M145-'Proyeccion Cuotas'!$I146),"") -> 
E147: =IF('Proyeccion Cuotas'!$D147="","",IF(F146=12,E146+1,E146)) ->  | F147: =IF('Proyeccion Cuotas'!$D147="","",IF(F146=12,1,F146+1)) ->  | G147: =+IF('Proyeccion Cuotas'!$D147="","",VLOOKUP('Proyeccion Cuotas'!$F147,$A$16:$B$27,2,FALSE)) ->  | H147: =IF('Proyeccion Cuotas'!$D147="","",CONCATENATE('Proyeccion Cuotas'!$G147,"/",'Proyeccion Cuotas'!$F147,"/",'Proyeccion Cuotas'!$E147)) ->  | I147: =IFERROR(IF('Proyeccion Cuotas'!$D147="","",IF(OR('Proyeccion Cuotas'!$F147=7,'Proyeccion Cuotas'!$F147=12),($B$45+(($F$1-$B$47)/$F$3)),(($F$1-$B$47)/$F$3))),0) ->  | J147: =IFERROR(IF('Proyeccion Cuotas'!$D147="","",(M146*$F$5*'Proyeccion Cuotas'!$K147/365)),"") ->  | K147: =+IF('Proyeccion Cuotas'!$D147="","",'Proyeccion Cuotas'!$H147-H146) ->  | L147: =IFERROR('Proyeccion Cuotas'!$I147+'Proyeccion Cuotas'!$J147,"") ->  | M147: =+IFERROR((M146-'Proyeccion Cuotas'!$I147),"") -> 
E148: =IF('Proyeccion Cuotas'!$D148="","",IF(F147=12,E147+1,E147)) ->  | F148: =IF('Proyeccion Cuotas'!$D148="","",IF(F147=12,1,F147+1)) ->  | G148: =+IF('Proyeccion Cuotas'!$D148="","",VLOOKUP('Proyeccion Cuotas'!$F148,$A$16:$B$27,2,FALSE)) ->  | H148: =IF('Proyeccion Cuotas'!$D148="","",CONCATENATE('Proyeccion Cuotas'!$G148,"/",'Proyeccion Cuotas'!$F148,"/",'Proyeccion Cuotas'!$E148)) ->  | I148: =IFERROR(IF('Proyeccion Cuotas'!$D148="","",IF(OR('Proyeccion Cuotas'!$F148=7,'Proyeccion Cuotas'!$F148=12),($B$45+(($F$1-$B$47)/$F$3)),(($F$1-$B$47)/$F$3))),0) ->  | J148: =IFERROR(IF('Proyeccion Cuotas'!$D148="","",(M147*$F$5*'Proyeccion Cuotas'!$K148/365)),"") ->  | K148: =+IF('Proyeccion Cuotas'!$D148="","",'Proyeccion Cuotas'!$H148-H147) ->  | L148: =IFERROR('Proyeccion Cuotas'!$I148+'Proyeccion Cuotas'!$J148,"") ->  | M148: =+IFERROR((M147-'Proyeccion Cuotas'!$I148),"") -> 
E149: =IF('Proyeccion Cuotas'!$D149="","",IF(F148=12,E148+1,E148)) ->  | F149: =IF('Proyeccion Cuotas'!$D149="","",IF(F148=12,1,F148+1)) ->  | G149: =+IF('Proyeccion Cuotas'!$D149="","",VLOOKUP('Proyeccion Cuotas'!$F149,$A$16:$B$27,2,FALSE)) ->  | H149: =IF('Proyeccion Cuotas'!$D149="","",CONCATENATE('Proyeccion Cuotas'!$G149,"/",'Proyeccion Cuotas'!$F149,"/",'Proyeccion Cuotas'!$E149)) ->  | I149: =IFERROR(IF('Proyeccion Cuotas'!$D149="","",IF(OR('Proyeccion Cuotas'!$F149=7,'Proyeccion Cuotas'!$F149=12),($B$45+(($F$1-$B$47)/$F$3)),(($F$1-$B$47)/$F$3))),0) ->  | J149: =IFERROR(IF('Proyeccion Cuotas'!$D149="","",(M148*$F$5*'Proyeccion Cuotas'!$K149/365)),"") ->  | K149: =+IF('Proyeccion Cuotas'!$D149="","",'Proyeccion Cuotas'!$H149-H148) ->  | L149: =IFERROR('Proyeccion Cuotas'!$I149+'Proyeccion Cuotas'!$J149,"") ->  | M149: =+IFERROR((M148-'Proyeccion Cuotas'!$I149),"") -> 
E150: =IF('Proyeccion Cuotas'!$D150="","",IF(F149=12,E149+1,E149)) ->  | F150: =IF('Proyeccion Cuotas'!$D150="","",IF(F149=12,1,F149+1)) ->  | G150: =+IF('Proyeccion Cuotas'!$D150="","",VLOOKUP('Proyeccion Cuotas'!$F150,$A$16:$B$27,2,FALSE)) ->  | H150: =IF('Proyeccion Cuotas'!$D150="","",CONCATENATE('Proyeccion Cuotas'!$G150,"/",'Proyeccion Cuotas'!$F150,"/",'Proyeccion Cuotas'!$E150)) ->  | I150: =IFERROR(IF('Proyeccion Cuotas'!$D150="","",IF(OR('Proyeccion Cuotas'!$F150=7,'Proyeccion Cuotas'!$F150=12),($B$45+(($F$1-$B$47)/$F$3)),(($F$1-$B$47)/$F$3))),0) ->  | J150: =IFERROR(IF('Proyeccion Cuotas'!$D150="","",(M149*$F$5*'Proyeccion Cuotas'!$K150/365)),"") ->  | K150: =+IF('Proyeccion Cuotas'!$D150="","",'Proyeccion Cuotas'!$H150-H149) ->  | L150: =IFERROR('Proyeccion Cuotas'!$I150+'Proyeccion Cuotas'!$J150,"") ->  | M150: =+IFERROR((M149-'Proyeccion Cuotas'!$I150),"") -> 
E151: =IF('Proyeccion Cuotas'!$D151="","",IF(F150=12,E150+1,E150)) ->  | F151: =IF('Proyeccion Cuotas'!$D151="","",IF(F150=12,1,F150+1)) ->  | G151: =+IF('Proyeccion Cuotas'!$D151="","",VLOOKUP('Proyeccion Cuotas'!$F151,$A$16:$B$27,2,FALSE)) ->  | H151: =IF('Proyeccion Cuotas'!$D151="","",CONCATENATE('Proyeccion Cuotas'!$G151,"/",'Proyeccion Cuotas'!$F151,"/",'Proyeccion Cuotas'!$E151)) ->  | I151: =IFERROR(IF('Proyeccion Cuotas'!$D151="","",IF(OR('Proyeccion Cuotas'!$F151=7,'Proyeccion Cuotas'!$F151=12),($B$45+(($F$1-$B$47)/$F$3)),(($F$1-$B$47)/$F$3))),0) ->  | J151: =IFERROR(IF('Proyeccion Cuotas'!$D151="","",(M150*$F$5*'Proyeccion Cuotas'!$K151/365)),"") ->  | K151: =+IF('Proyeccion Cuotas'!$D151="","",'Proyeccion Cuotas'!$H151-H150) ->  | L151: =IFERROR('Proyeccion Cuotas'!$I151+'Proyeccion Cuotas'!$J151,"") ->  | M151: =+IFERROR((M150-'Proyeccion Cuotas'!$I151),"") -> 
E152: =IF('Proyeccion Cuotas'!$D152="","",IF(F151=12,E151+1,E151)) ->  | F152: =IF('Proyeccion Cuotas'!$D152="","",IF(F151=12,1,F151+1)) ->  | G152: =+IF('Proyeccion Cuotas'!$D152="","",VLOOKUP('Proyeccion Cuotas'!$F152,$A$16:$B$27,2,FALSE)) ->  | H152: =IF('Proyeccion Cuotas'!$D152="","",CONCATENATE('Proyeccion Cuotas'!$G152,"/",'Proyeccion Cuotas'!$F152,"/",'Proyeccion Cuotas'!$E152)) ->  | I152: =IFERROR(IF('Proyeccion Cuotas'!$D152="","",IF(OR('Proyeccion Cuotas'!$F152=7,'Proyeccion Cuotas'!$F152=12),($B$45+(($F$1-$B$47)/$F$3)),(($F$1-$B$47)/$F$3))),0) ->  | J152: =IFERROR(IF('Proyeccion Cuotas'!$D152="","",(M151*$F$5*'Proyeccion Cuotas'!$K152/365)),"") ->  | K152: =+IF('Proyeccion Cuotas'!$D152="","",'Proyeccion Cuotas'!$H152-H151) ->  | L152: =IFERROR('Proyeccion Cuotas'!$I152+'Proyeccion Cuotas'!$J152,"") ->  | M152: =+IFERROR((M151-'Proyeccion Cuotas'!$I152),"") -> 
E153: =IF('Proyeccion Cuotas'!$D153="","",IF(F152=12,E152+1,E152)) ->  | F153: =IF('Proyeccion Cuotas'!$D153="","",IF(F152=12,1,F152+1)) ->  | G153: =+IF('Proyeccion Cuotas'!$D153="","",VLOOKUP('Proyeccion Cuotas'!$F153,$A$16:$B$27,2,FALSE)) ->  | H153: =IF('Proyeccion Cuotas'!$D153="","",CONCATENATE('Proyeccion Cuotas'!$G153,"/",'Proyeccion Cuotas'!$F153,"/",'Proyeccion Cuotas'!$E153)) ->  | I153: =IFERROR(IF('Proyeccion Cuotas'!$D153="","",IF(OR('Proyeccion Cuotas'!$F153=7,'Proyeccion Cuotas'!$F153=12),($B$45+(($F$1-$B$47)/$F$3)),(($F$1-$B$47)/$F$3))),0) ->  | J153: =IFERROR(IF('Proyeccion Cuotas'!$D153="","",(M152*$F$5*'Proyeccion Cuotas'!$K153/365)),"") ->  | K153: =+IF('Proyeccion Cuotas'!$D153="","",'Proyeccion Cuotas'!$H153-H152) ->  | L153: =IFERROR('Proyeccion Cuotas'!$I153+'Proyeccion Cuotas'!$J153,"") ->  | M153: =+IFERROR((M152-'Proyeccion Cuotas'!$I153),"") -> 
E154: =IF('Proyeccion Cuotas'!$D154="","",IF(F153=12,E153+1,E153)) ->  | F154: =IF('Proyeccion Cuotas'!$D154="","",IF(F153=12,1,F153+1)) ->  | G154: =+IF('Proyeccion Cuotas'!$D154="","",VLOOKUP('Proyeccion Cuotas'!$F154,$A$16:$B$27,2,FALSE)) ->  | H154: =IF('Proyeccion Cuotas'!$D154="","",CONCATENATE('Proyeccion Cuotas'!$G154,"/",'Proyeccion Cuotas'!$F154,"/",'Proyeccion Cuotas'!$E154)) ->  | I154: =IFERROR(IF('Proyeccion Cuotas'!$D154="","",IF(OR('Proyeccion Cuotas'!$F154=7,'Proyeccion Cuotas'!$F154=12),($B$45+(($F$1-$B$47)/$F$3)),(($F$1-$B$47)/$F$3))),0) ->  | J154: =IFERROR(IF('Proyeccion Cuotas'!$D154="","",(M153*$F$5*'Proyeccion Cuotas'!$K154/365)),"") ->  | K154: =+IF('Proyeccion Cuotas'!$D154="","",'Proyeccion Cuotas'!$H154-H153) ->  | L154: =IFERROR('Proyeccion Cuotas'!$I154+'Proyeccion Cuotas'!$J154,"") ->  | M154: =+IFERROR((M153-'Proyeccion Cuotas'!$I154),"") -> 
E155: =IF('Proyeccion Cuotas'!$D155="","",IF(F154=12,E154+1,E154)) ->  | F155: =IF('Proyeccion Cuotas'!$D155="","",IF(F154=12,1,F154+1)) ->  | G155: =+IF('Proyeccion Cuotas'!$D155="","",VLOOKUP('Proyeccion Cuotas'!$F155,$A$16:$B$27,2,FALSE)) ->  | H155: =IF('Proyeccion Cuotas'!$D155="","",CONCATENATE('Proyeccion Cuotas'!$G155,"/",'Proyeccion Cuotas'!$F155,"/",'Proyeccion Cuotas'!$E155)) ->  | I155: =IFERROR(IF('Proyeccion Cuotas'!$D155="","",IF(OR('Proyeccion Cuotas'!$F155=7,'Proyeccion Cuotas'!$F155=12),($B$45+(($F$1-$B$47)/$F$3)),(($F$1-$B$47)/$F$3))),0) ->  | J155: =IFERROR(IF('Proyeccion Cuotas'!$D155="","",(M154*$F$5*'Proyeccion Cuotas'!$K155/365)),"") ->  | K155: =+IF('Proyeccion Cuotas'!$D155="","",'Proyeccion Cuotas'!$H155-H154) ->  | L155: =IFERROR('Proyeccion Cuotas'!$I155+'Proyeccion Cuotas'!$J155,"") ->  | M155: =+IFERROR((M154-'Proyeccion Cuotas'!$I155),"") -> 
E156: =IF('Proyeccion Cuotas'!$D156="","",IF(F155=12,E155+1,E155)) ->  | F156: =IF('Proyeccion Cuotas'!$D156="","",IF(F155=12,1,F155+1)) ->  | G156: =+IF('Proyeccion Cuotas'!$D156="","",VLOOKUP('Proyeccion Cuotas'!$F156,$A$16:$B$27,2,FALSE)) ->  | H156: =IF('Proyeccion Cuotas'!$D156="","",CONCATENATE('Proyeccion Cuotas'!$G156,"/",'Proyeccion Cuotas'!$F156,"/",'Proyeccion Cuotas'!$E156)) ->  | I156: =IFERROR(IF('Proyeccion Cuotas'!$D156="","",IF(OR('Proyeccion Cuotas'!$F156=7,'Proyeccion Cuotas'!$F156=12),($B$45+(($F$1-$B$47)/$F$3)),(($F$1-$B$47)/$F$3))),0) ->  | J156: =IFERROR(IF('Proyeccion Cuotas'!$D156="","",(M155*$F$5*'Proyeccion Cuotas'!$K156/365)),"") ->  | K156: =+IF('Proyeccion Cuotas'!$D156="","",'Proyeccion Cuotas'!$H156-H155) ->  | L156: =IFERROR('Proyeccion Cuotas'!$I156+'Proyeccion Cuotas'!$J156,"") ->  | M156: =+IFERROR((M155-'Proyeccion Cuotas'!$I156),"") -> 
E157: =IF('Proyeccion Cuotas'!$D157="","",IF(F156=12,E156+1,E156)) ->  | F157: =IF('Proyeccion Cuotas'!$D157="","",IF(F156=12,1,F156+1)) ->  | G157: =+IF('Proyeccion Cuotas'!$D157="","",VLOOKUP('Proyeccion Cuotas'!$F157,$A$16:$B$27,2,FALSE)) ->  | H157: =IF('Proyeccion Cuotas'!$D157="","",CONCATENATE('Proyeccion Cuotas'!$G157,"/",'Proyeccion Cuotas'!$F157,"/",'Proyeccion Cuotas'!$E157)) ->  | I157: =IFERROR(IF('Proyeccion Cuotas'!$D157="","",IF(OR('Proyeccion Cuotas'!$F157=7,'Proyeccion Cuotas'!$F157=12),($B$45+(($F$1-$B$47)/$F$3)),(($F$1-$B$47)/$F$3))),0) ->  | J157: =IFERROR(IF('Proyeccion Cuotas'!$D157="","",(M156*$F$5*'Proyeccion Cuotas'!$K157/365)),"") ->  | K157: =+IF('Proyeccion Cuotas'!$D157="","",'Proyeccion Cuotas'!$H157-H156) ->  | L157: =IFERROR('Proyeccion Cuotas'!$I157+'Proyeccion Cuotas'!$J157,"") ->  | M157: =+IFERROR((M156-'Proyeccion Cuotas'!$I157),"") -> 
E158: =IF('Proyeccion Cuotas'!$D158="","",IF(F157=12,E157+1,E157)) ->  | F158: =IF('Proyeccion Cuotas'!$D158="","",IF(F157=12,1,F157+1)) ->  | G158: =+IF('Proyeccion Cuotas'!$D158="","",VLOOKUP('Proyeccion Cuotas'!$F158,$A$16:$B$27,2,FALSE)) ->  | H158: =IF('Proyeccion Cuotas'!$D158="","",CONCATENATE('Proyeccion Cuotas'!$G158,"/",'Proyeccion Cuotas'!$F158,"/",'Proyeccion Cuotas'!$E158)) ->  | I158: =IFERROR(IF('Proyeccion Cuotas'!$D158="","",IF(OR('Proyeccion Cuotas'!$F158=7,'Proyeccion Cuotas'!$F158=12),($B$45+(($F$1-$B$47)/$F$3)),(($F$1-$B$47)/$F$3))),0) ->  | J158: =IFERROR(IF('Proyeccion Cuotas'!$D158="","",(M157*$F$5*'Proyeccion Cuotas'!$K158/365)),"") ->  | K158: =+IF('Proyeccion Cuotas'!$D158="","",'Proyeccion Cuotas'!$H158-H157) ->  | L158: =IFERROR('Proyeccion Cuotas'!$I158+'Proyeccion Cuotas'!$J158,"") ->  | M158: =+IFERROR((M157-'Proyeccion Cuotas'!$I158),"") -> 
E159: =IF('Proyeccion Cuotas'!$D159="","",IF(F158=12,E158+1,E158)) ->  | F159: =IF('Proyeccion Cuotas'!$D159="","",IF(F158=12,1,F158+1)) ->  | G159: =+IF('Proyeccion Cuotas'!$D159="","",VLOOKUP('Proyeccion Cuotas'!$F159,$A$16:$B$27,2,FALSE)) ->  | H159: =IF('Proyeccion Cuotas'!$D159="","",CONCATENATE('Proyeccion Cuotas'!$G159,"/",'Proyeccion Cuotas'!$F159,"/",'Proyeccion Cuotas'!$E159)) ->  | I159: =IFERROR(IF('Proyeccion Cuotas'!$D159="","",IF(OR('Proyeccion Cuotas'!$F159=7,'Proyeccion Cuotas'!$F159=12),($B$45+(($F$1-$B$47)/$F$3)),(($F$1-$B$47)/$F$3))),0) ->  | J159: =IFERROR(IF('Proyeccion Cuotas'!$D159="","",(M158*$F$5*'Proyeccion Cuotas'!$K159/365)),"") ->  | K159: =+IF('Proyeccion Cuotas'!$D159="","",'Proyeccion Cuotas'!$H159-H158) ->  | L159: =IFERROR('Proyeccion Cuotas'!$I159+'Proyeccion Cuotas'!$J159,"") ->  | M159: =+IFERROR((M158-'Proyeccion Cuotas'!$I159),"") -> 
E160: =IF('Proyeccion Cuotas'!$D160="","",IF(F159=12,E159+1,E159)) ->  | F160: =IF('Proyeccion Cuotas'!$D160="","",IF(F159=12,1,F159+1)) ->  | G160: =+IF('Proyeccion Cuotas'!$D160="","",VLOOKUP('Proyeccion Cuotas'!$F160,$A$16:$B$27,2,FALSE)) ->  | H160: =IF('Proyeccion Cuotas'!$D160="","",CONCATENATE('Proyeccion Cuotas'!$G160,"/",'Proyeccion Cuotas'!$F160,"/",'Proyeccion Cuotas'!$E160)) ->  | I160: =IFERROR(IF('Proyeccion Cuotas'!$D160="","",IF(OR('Proyeccion Cuotas'!$F160=7,'Proyeccion Cuotas'!$F160=12),($B$45+(($F$1-$B$47)/$F$3)),(($F$1-$B$47)/$F$3))),0) ->  | J160: =IFERROR(IF('Proyeccion Cuotas'!$D160="","",(M159*$F$5*'Proyeccion Cuotas'!$K160/365)),"") ->  | K160: =+IF('Proyeccion Cuotas'!$D160="","",'Proyeccion Cuotas'!$H160-H159) ->  | L160: =IFERROR('Proyeccion Cuotas'!$I160+'Proyeccion Cuotas'!$J160,"") ->  | M160: =+IFERROR((M159-'Proyeccion Cuotas'!$I160),"") -> 
E161: =IF('Proyeccion Cuotas'!$D161="","",IF(F160=12,E160+1,E160)) ->  | F161: =IF('Proyeccion Cuotas'!$D161="","",IF(F160=12,1,F160+1)) ->  | G161: =+IF('Proyeccion Cuotas'!$D161="","",VLOOKUP('Proyeccion Cuotas'!$F161,$A$16:$B$27,2,FALSE)) ->  | H161: =IF('Proyeccion Cuotas'!$D161="","",CONCATENATE('Proyeccion Cuotas'!$G161,"/",'Proyeccion Cuotas'!$F161,"/",'Proyeccion Cuotas'!$E161)) ->  | I161: =IFERROR(IF('Proyeccion Cuotas'!$D161="","",IF(OR('Proyeccion Cuotas'!$F161=7,'Proyeccion Cuotas'!$F161=12),($B$45+(($F$1-$B$47)/$F$3)),(($F$1-$B$47)/$F$3))),0) ->  | J161: =IFERROR(IF('Proyeccion Cuotas'!$D161="","",(M160*$F$5*'Proyeccion Cuotas'!$K161/365)),"") ->  | K161: =+IF('Proyeccion Cuotas'!$D161="","",'Proyeccion Cuotas'!$H161-H160) ->  | L161: =IFERROR('Proyeccion Cuotas'!$I161+'Proyeccion Cuotas'!$J161,"") ->  | M161: =+IFERROR((M160-'Proyeccion Cuotas'!$I161),"") -> 
E162: =IF('Proyeccion Cuotas'!$D162="","",IF(F161=12,E161+1,E161)) ->  | F162: =IF('Proyeccion Cuotas'!$D162="","",IF(F161=12,1,F161+1)) ->  | G162: =+IF('Proyeccion Cuotas'!$D162="","",VLOOKUP('Proyeccion Cuotas'!$F162,$A$16:$B$27,2,FALSE)) ->  | H162: =IF('Proyeccion Cuotas'!$D162="","",CONCATENATE('Proyeccion Cuotas'!$G162,"/",'Proyeccion Cuotas'!$F162,"/",'Proyeccion Cuotas'!$E162)) ->  | I162: =IFERROR(IF('Proyeccion Cuotas'!$D162="","",IF(OR('Proyeccion Cuotas'!$F162=7,'Proyeccion Cuotas'!$F162=12),($B$45+(($F$1-$B$47)/$F$3)),(($F$1-$B$47)/$F$3))),0) ->  | J162: =IFERROR(IF('Proyeccion Cuotas'!$D162="","",(M161*$F$5*'Proyeccion Cuotas'!$K162/365)),"") ->  | K162: =+IF('Proyeccion Cuotas'!$D162="","",'Proyeccion Cuotas'!$H162-H161) ->  | L162: =IFERROR('Proyeccion Cuotas'!$I162+'Proyeccion Cuotas'!$J162,"") ->  | M162: =+IFERROR((M161-'Proyeccion Cuotas'!$I162),"") -> 
E163: =IF('Proyeccion Cuotas'!$D163="","",IF(F162=12,E162+1,E162)) ->  | F163: =IF('Proyeccion Cuotas'!$D163="","",IF(F162=12,1,F162+1)) ->  | G163: =+IF('Proyeccion Cuotas'!$D163="","",VLOOKUP('Proyeccion Cuotas'!$F163,$A$16:$B$27,2,FALSE)) ->  | H163: =IF('Proyeccion Cuotas'!$D163="","",CONCATENATE('Proyeccion Cuotas'!$G163,"/",'Proyeccion Cuotas'!$F163,"/",'Proyeccion Cuotas'!$E163)) ->  | I163: =IFERROR(IF('Proyeccion Cuotas'!$D163="","",IF(OR('Proyeccion Cuotas'!$F163=7,'Proyeccion Cuotas'!$F163=12),($B$45+(($F$1-$B$47)/$F$3)),(($F$1-$B$47)/$F$3))),0) ->  | J163: =IFERROR(IF('Proyeccion Cuotas'!$D163="","",(M162*$F$5*'Proyeccion Cuotas'!$K163/365)),"") ->  | K163: =+IF('Proyeccion Cuotas'!$D163="","",'Proyeccion Cuotas'!$H163-H162) ->  | L163: =IFERROR('Proyeccion Cuotas'!$I163+'Proyeccion Cuotas'!$J163,"") ->  | M163: =+IFERROR((M162-'Proyeccion Cuotas'!$I163),"") -> 
E164: =IF('Proyeccion Cuotas'!$D164="","",IF(F163=12,E163+1,E163)) ->  | F164: =IF('Proyeccion Cuotas'!$D164="","",IF(F163=12,1,F163+1)) ->  | G164: =+IF('Proyeccion Cuotas'!$D164="","",VLOOKUP('Proyeccion Cuotas'!$F164,$A$16:$B$27,2,FALSE)) ->  | H164: =IF('Proyeccion Cuotas'!$D164="","",CONCATENATE('Proyeccion Cuotas'!$G164,"/",'Proyeccion Cuotas'!$F164,"/",'Proyeccion Cuotas'!$E164)) ->  | I164: =IFERROR(IF('Proyeccion Cuotas'!$D164="","",IF(OR('Proyeccion Cuotas'!$F164=7,'Proyeccion Cuotas'!$F164=12),($B$45+(($F$1-$B$47)/$F$3)),(($F$1-$B$47)/$F$3))),0) ->  | J164: =IFERROR(IF('Proyeccion Cuotas'!$D164="","",(M163*$F$5*'Proyeccion Cuotas'!$K164/365)),"") ->  | K164: =+IF('Proyeccion Cuotas'!$D164="","",'Proyeccion Cuotas'!$H164-H163) ->  | L164: =IFERROR('Proyeccion Cuotas'!$I164+'Proyeccion Cuotas'!$J164,"") ->  | M164: =+IFERROR((M163-'Proyeccion Cuotas'!$I164),"") -> 
E165: =IF('Proyeccion Cuotas'!$D165="","",IF(F164=12,E164+1,E164)) ->  | F165: =IF('Proyeccion Cuotas'!$D165="","",IF(F164=12,1,F164+1)) ->  | G165: =+IF('Proyeccion Cuotas'!$D165="","",VLOOKUP('Proyeccion Cuotas'!$F165,$A$16:$B$27,2,FALSE)) ->  | H165: =IF('Proyeccion Cuotas'!$D165="","",CONCATENATE('Proyeccion Cuotas'!$G165,"/",'Proyeccion Cuotas'!$F165,"/",'Proyeccion Cuotas'!$E165)) ->  | I165: =IFERROR(IF('Proyeccion Cuotas'!$D165="","",IF(OR('Proyeccion Cuotas'!$F165=7,'Proyeccion Cuotas'!$F165=12),($B$45+(($F$1-$B$47)/$F$3)),(($F$1-$B$47)/$F$3))),0) ->  | J165: =IFERROR(IF('Proyeccion Cuotas'!$D165="","",(M164*$F$5*'Proyeccion Cuotas'!$K165/365)),"") ->  | K165: =+IF('Proyeccion Cuotas'!$D165="","",'Proyeccion Cuotas'!$H165-H164) ->  | L165: =IFERROR('Proyeccion Cuotas'!$I165+'Proyeccion Cuotas'!$J165,"") ->  | M165: =+IFERROR((M164-'Proyeccion Cuotas'!$I165),"") -> 
E166: =IF('Proyeccion Cuotas'!$D166="","",IF(F165=12,E165+1,E165)) ->  | F166: =IF('Proyeccion Cuotas'!$D166="","",IF(F165=12,1,F165+1)) ->  | G166: =+IF('Proyeccion Cuotas'!$D166="","",VLOOKUP('Proyeccion Cuotas'!$F166,$A$16:$B$27,2,FALSE)) ->  | H166: =IF('Proyeccion Cuotas'!$D166="","",CONCATENATE('Proyeccion Cuotas'!$G166,"/",'Proyeccion Cuotas'!$F166,"/",'Proyeccion Cuotas'!$E166)) ->  | I166: =IFERROR(IF('Proyeccion Cuotas'!$D166="","",IF(OR('Proyeccion Cuotas'!$F166=7,'Proyeccion Cuotas'!$F166=12),($B$45+(($F$1-$B$47)/$F$3)),(($F$1-$B$47)/$F$3))),0) ->  | J166: =IFERROR(IF('Proyeccion Cuotas'!$D166="","",(M165*$F$5*'Proyeccion Cuotas'!$K166/365)),"") ->  | K166: =+IF('Proyeccion Cuotas'!$D166="","",'Proyeccion Cuotas'!$H166-H165) ->  | L166: =IFERROR('Proyeccion Cuotas'!$I166+'Proyeccion Cuotas'!$J166,"") ->  | M166: =+IFERROR((M165-'Proyeccion Cuotas'!$I166),"") -> 
E167: =IF('Proyeccion Cuotas'!$D167="","",IF(F166=12,E166+1,E166)) ->  | F167: =IF('Proyeccion Cuotas'!$D167="","",IF(F166=12,1,F166+1)) ->  | G167: =+IF('Proyeccion Cuotas'!$D167="","",VLOOKUP('Proyeccion Cuotas'!$F167,$A$16:$B$27,2,FALSE)) ->  | H167: =IF('Proyeccion Cuotas'!$D167="","",CONCATENATE('Proyeccion Cuotas'!$G167,"/",'Proyeccion Cuotas'!$F167,"/",'Proyeccion Cuotas'!$E167)) ->  | I167: =IFERROR(IF('Proyeccion Cuotas'!$D167="","",IF(OR('Proyeccion Cuotas'!$F167=7,'Proyeccion Cuotas'!$F167=12),($B$45+(($F$1-$B$47)/$F$3)),(($F$1-$B$47)/$F$3))),0) ->  | J167: =IFERROR(IF('Proyeccion Cuotas'!$D167="","",(M166*$F$5*'Proyeccion Cuotas'!$K167/365)),"") ->  | K167: =+IF('Proyeccion Cuotas'!$D167="","",'Proyeccion Cuotas'!$H167-H166) ->  | L167: =IFERROR('Proyeccion Cuotas'!$I167+'Proyeccion Cuotas'!$J167,"") ->  | M167: =+IFERROR((M166-'Proyeccion Cuotas'!$I167),"") -> 
E168: =IF('Proyeccion Cuotas'!$D168="","",IF(F167=12,E167+1,E167)) ->  | F168: =IF('Proyeccion Cuotas'!$D168="","",IF(F167=12,1,F167+1)) ->  | G168: =+IF('Proyeccion Cuotas'!$D168="","",VLOOKUP('Proyeccion Cuotas'!$F168,$A$16:$B$27,2,FALSE)) ->  | H168: =IF('Proyeccion Cuotas'!$D168="","",CONCATENATE('Proyeccion Cuotas'!$G168,"/",'Proyeccion Cuotas'!$F168,"/",'Proyeccion Cuotas'!$E168)) ->  | I168: =IFERROR(IF('Proyeccion Cuotas'!$D168="","",IF(OR('Proyeccion Cuotas'!$F168=7,'Proyeccion Cuotas'!$F168=12),($B$45+(($F$1-$B$47)/$F$3)),(($F$1-$B$47)/$F$3))),0) ->  | J168: =IFERROR(IF('Proyeccion Cuotas'!$D168="","",(M167*$F$5*'Proyeccion Cuotas'!$K168/365)),"") ->  | K168: =+IF('Proyeccion Cuotas'!$D168="","",'Proyeccion Cuotas'!$H168-H167) ->  | L168: =IFERROR('Proyeccion Cuotas'!$I168+'Proyeccion Cuotas'!$J168,"") ->  | M168: =+IFERROR((M167-'Proyeccion Cuotas'!$I168),"") -> 
E169: =IF('Proyeccion Cuotas'!$D169="","",IF(F168=12,E168+1,E168)) ->  | F169: =IF('Proyeccion Cuotas'!$D169="","",IF(F168=12,1,F168+1)) ->  | G169: =+IF('Proyeccion Cuotas'!$D169="","",VLOOKUP('Proyeccion Cuotas'!$F169,$A$16:$B$27,2,FALSE)) ->  | H169: =IF('Proyeccion Cuotas'!$D169="","",CONCATENATE('Proyeccion Cuotas'!$G169,"/",'Proyeccion Cuotas'!$F169,"/",'Proyeccion Cuotas'!$E169)) ->  | I169: =IFERROR(IF('Proyeccion Cuotas'!$D169="","",IF(OR('Proyeccion Cuotas'!$F169=7,'Proyeccion Cuotas'!$F169=12),($B$45+(($F$1-$B$47)/$F$3)),(($F$1-$B$47)/$F$3))),0) ->  | J169: =IFERROR(IF('Proyeccion Cuotas'!$D169="","",(M168*$F$5*'Proyeccion Cuotas'!$K169/365)),"") ->  | K169: =+IF('Proyeccion Cuotas'!$D169="","",'Proyeccion Cuotas'!$H169-H168) ->  | L169: =IFERROR('Proyeccion Cuotas'!$I169+'Proyeccion Cuotas'!$J169,"") ->  | M169: =+IFERROR((M168-'Proyeccion Cuotas'!$I169),"") -> 
E170: =IF('Proyeccion Cuotas'!$D170="","",IF(F169=12,E169+1,E169)) ->  | F170: =IF('Proyeccion Cuotas'!$D170="","",IF(F169=12,1,F169+1)) ->  | G170: =+IF('Proyeccion Cuotas'!$D170="","",VLOOKUP('Proyeccion Cuotas'!$F170,$A$16:$B$27,2,FALSE)) ->  | H170: =IF('Proyeccion Cuotas'!$D170="","",CONCATENATE('Proyeccion Cuotas'!$G170,"/",'Proyeccion Cuotas'!$F170,"/",'Proyeccion Cuotas'!$E170)) ->  | I170: =IFERROR(IF('Proyeccion Cuotas'!$D170="","",IF(OR('Proyeccion Cuotas'!$F170=7,'Proyeccion Cuotas'!$F170=12),($B$45+(($F$1-$B$47)/$F$3)),(($F$1-$B$47)/$F$3))),0) ->  | J170: =IFERROR(IF('Proyeccion Cuotas'!$D170="","",(M169*$F$5*'Proyeccion Cuotas'!$K170/365)),"") ->  | K170: =+IF('Proyeccion Cuotas'!$D170="","",'Proyeccion Cuotas'!$H170-H169) ->  | L170: =IFERROR('Proyeccion Cuotas'!$I170+'Proyeccion Cuotas'!$J170,"") ->  | M170: =+IFERROR((M169-'Proyeccion Cuotas'!$I170),"") -> 
E171: =IF('Proyeccion Cuotas'!$D171="","",IF(F170=12,E170+1,E170)) ->  | F171: =IF('Proyeccion Cuotas'!$D171="","",IF(F170=12,1,F170+1)) ->  | G171: =+IF('Proyeccion Cuotas'!$D171="","",VLOOKUP('Proyeccion Cuotas'!$F171,$A$16:$B$27,2,FALSE)) ->  | H171: =IF('Proyeccion Cuotas'!$D171="","",CONCATENATE('Proyeccion Cuotas'!$G171,"/",'Proyeccion Cuotas'!$F171,"/",'Proyeccion Cuotas'!$E171)) ->  | I171: =IFERROR(IF('Proyeccion Cuotas'!$D171="","",IF(OR('Proyeccion Cuotas'!$F171=7,'Proyeccion Cuotas'!$F171=12),($B$45+(($F$1-$B$47)/$F$3)),(($F$1-$B$47)/$F$3))),0) ->  | J171: =IFERROR(IF('Proyeccion Cuotas'!$D171="","",(M170*$F$5*'Proyeccion Cuotas'!$K171/365)),"") ->  | K171: =+IF('Proyeccion Cuotas'!$D171="","",'Proyeccion Cuotas'!$H171-H170) ->  | L171: =IFERROR('Proyeccion Cuotas'!$I171+'Proyeccion Cuotas'!$J171,"") ->  | M171: =+IFERROR((M170-'Proyeccion Cuotas'!$I171),"") -> 
E172: =IF('Proyeccion Cuotas'!$D172="","",IF(F171=12,E171+1,E171)) ->  | F172: =IF('Proyeccion Cuotas'!$D172="","",IF(F171=12,1,F171+1)) ->  | G172: =+IF('Proyeccion Cuotas'!$D172="","",VLOOKUP('Proyeccion Cuotas'!$F172,$A$16:$B$27,2,FALSE)) ->  | H172: =IF('Proyeccion Cuotas'!$D172="","",CONCATENATE('Proyeccion Cuotas'!$G172,"/",'Proyeccion Cuotas'!$F172,"/",'Proyeccion Cuotas'!$E172)) ->  | I172: =IFERROR(IF('Proyeccion Cuotas'!$D172="","",IF(OR('Proyeccion Cuotas'!$F172=7,'Proyeccion Cuotas'!$F172=12),($B$45+(($F$1-$B$47)/$F$3)),(($F$1-$B$47)/$F$3))),0) ->  | J172: =IFERROR(IF('Proyeccion Cuotas'!$D172="","",(M171*$F$5*'Proyeccion Cuotas'!$K172/365)),"") ->  | K172: =+IF('Proyeccion Cuotas'!$D172="","",'Proyeccion Cuotas'!$H172-H171) ->  | L172: =IFERROR('Proyeccion Cuotas'!$I172+'Proyeccion Cuotas'!$J172,"") ->  | M172: =+IFERROR((M171-'Proyeccion Cuotas'!$I172),"") -> 
E173: =IF('Proyeccion Cuotas'!$D173="","",IF(F172=12,E172+1,E172)) ->  | F173: =IF('Proyeccion Cuotas'!$D173="","",IF(F172=12,1,F172+1)) ->  | G173: =+IF('Proyeccion Cuotas'!$D173="","",VLOOKUP('Proyeccion Cuotas'!$F173,$A$16:$B$27,2,FALSE)) ->  | H173: =IF('Proyeccion Cuotas'!$D173="","",CONCATENATE('Proyeccion Cuotas'!$G173,"/",'Proyeccion Cuotas'!$F173,"/",'Proyeccion Cuotas'!$E173)) ->  | I173: =IFERROR(IF('Proyeccion Cuotas'!$D173="","",IF(OR('Proyeccion Cuotas'!$F173=7,'Proyeccion Cuotas'!$F173=12),($B$45+(($F$1-$B$47)/$F$3)),(($F$1-$B$47)/$F$3))),0) ->  | J173: =IFERROR(IF('Proyeccion Cuotas'!$D173="","",(M172*$F$5*'Proyeccion Cuotas'!$K173/365)),"") ->  | K173: =+IF('Proyeccion Cuotas'!$D173="","",'Proyeccion Cuotas'!$H173-H172) ->  | L173: =IFERROR('Proyeccion Cuotas'!$I173+'Proyeccion Cuotas'!$J173,"") ->  | M173: =+IFERROR((M172-'Proyeccion Cuotas'!$I173),"") -> 
E174: =IF('Proyeccion Cuotas'!$D174="","",IF(F173=12,E173+1,E173)) ->  | F174: =IF('Proyeccion Cuotas'!$D174="","",IF(F173=12,1,F173+1)) ->  | G174: =+IF('Proyeccion Cuotas'!$D174="","",VLOOKUP('Proyeccion Cuotas'!$F174,$A$16:$B$27,2,FALSE)) ->  | H174: =IF('Proyeccion Cuotas'!$D174="","",CONCATENATE('Proyeccion Cuotas'!$G174,"/",'Proyeccion Cuotas'!$F174,"/",'Proyeccion Cuotas'!$E174)) ->  | I174: =IFERROR(IF('Proyeccion Cuotas'!$D174="","",IF(OR('Proyeccion Cuotas'!$F174=7,'Proyeccion Cuotas'!$F174=12),($B$45+(($F$1-$B$47)/$F$3)),(($F$1-$B$47)/$F$3))),0) ->  | J174: =IFERROR(IF('Proyeccion Cuotas'!$D174="","",(M173*$F$5*'Proyeccion Cuotas'!$K174/365)),"") ->  | K174: =+IF('Proyeccion Cuotas'!$D174="","",'Proyeccion Cuotas'!$H174-H173) ->  | L174: =IFERROR('Proyeccion Cuotas'!$I174+'Proyeccion Cuotas'!$J174,"") ->  | M174: =+IFERROR((M173-'Proyeccion Cuotas'!$I174),"") -> 
E175: =IF('Proyeccion Cuotas'!$D175="","",IF(F174=12,E174+1,E174)) ->  | F175: =IF('Proyeccion Cuotas'!$D175="","",IF(F174=12,1,F174+1)) ->  | G175: =+IF('Proyeccion Cuotas'!$D175="","",VLOOKUP('Proyeccion Cuotas'!$F175,$A$16:$B$27,2,FALSE)) ->  | H175: =IF('Proyeccion Cuotas'!$D175="","",CONCATENATE('Proyeccion Cuotas'!$G175,"/",'Proyeccion Cuotas'!$F175,"/",'Proyeccion Cuotas'!$E175)) ->  | I175: =IFERROR(IF('Proyeccion Cuotas'!$D175="","",IF(OR('Proyeccion Cuotas'!$F175=7,'Proyeccion Cuotas'!$F175=12),($B$45+(($F$1-$B$47)/$F$3)),(($F$1-$B$47)/$F$3))),0) ->  | J175: =IFERROR(IF('Proyeccion Cuotas'!$D175="","",(M174*$F$5*'Proyeccion Cuotas'!$K175/365)),"") ->  | K175: =+IF('Proyeccion Cuotas'!$D175="","",'Proyeccion Cuotas'!$H175-H174) ->  | L175: =IFERROR('Proyeccion Cuotas'!$I175+'Proyeccion Cuotas'!$J175,"") ->  | M175: =+IFERROR((M174-'Proyeccion Cuotas'!$I175),"") -> 
E176: =IF('Proyeccion Cuotas'!$D176="","",IF(F175=12,E175+1,E175)) ->  | F176: =IF('Proyeccion Cuotas'!$D176="","",IF(F175=12,1,F175+1)) ->  | G176: =+IF('Proyeccion Cuotas'!$D176="","",VLOOKUP('Proyeccion Cuotas'!$F176,$A$16:$B$27,2,FALSE)) ->  | H176: =IF('Proyeccion Cuotas'!$D176="","",CONCATENATE('Proyeccion Cuotas'!$G176,"/",'Proyeccion Cuotas'!$F176,"/",'Proyeccion Cuotas'!$E176)) ->  | I176: =IFERROR(IF('Proyeccion Cuotas'!$D176="","",IF(OR('Proyeccion Cuotas'!$F176=7,'Proyeccion Cuotas'!$F176=12),($B$45+(($F$1-$B$47)/$F$3)),(($F$1-$B$47)/$F$3))),0) ->  | J176: =IFERROR(IF('Proyeccion Cuotas'!$D176="","",(M175*$F$5*'Proyeccion Cuotas'!$K176/365)),"") ->  | K176: =+IF('Proyeccion Cuotas'!$D176="","",'Proyeccion Cuotas'!$H176-H175) ->  | L176: =IFERROR('Proyeccion Cuotas'!$I176+'Proyeccion Cuotas'!$J176,"") ->  | M176: =+IFERROR((M175-'Proyeccion Cuotas'!$I176),"") -> 
E177: =IF('Proyeccion Cuotas'!$D177="","",IF(F176=12,E176+1,E176)) ->  | F177: =IF('Proyeccion Cuotas'!$D177="","",IF(F176=12,1,F176+1)) ->  | G177: =+IF('Proyeccion Cuotas'!$D177="","",VLOOKUP('Proyeccion Cuotas'!$F177,$A$16:$B$27,2,FALSE)) ->  | H177: =IF('Proyeccion Cuotas'!$D177="","",CONCATENATE('Proyeccion Cuotas'!$G177,"/",'Proyeccion Cuotas'!$F177,"/",'Proyeccion Cuotas'!$E177)) ->  | I177: =IFERROR(IF('Proyeccion Cuotas'!$D177="","",IF(OR('Proyeccion Cuotas'!$F177=7,'Proyeccion Cuotas'!$F177=12),($B$45+(($F$1-$B$47)/$F$3)),(($F$1-$B$47)/$F$3))),0) ->  | J177: =IFERROR(IF('Proyeccion Cuotas'!$D177="","",(M176*$F$5*'Proyeccion Cuotas'!$K177/365)),"") ->  | K177: =+IF('Proyeccion Cuotas'!$D177="","",'Proyeccion Cuotas'!$H177-H176) ->  | L177: =IFERROR('Proyeccion Cuotas'!$I177+'Proyeccion Cuotas'!$J177,"") ->  | M177: =+IFERROR((M176-'Proyeccion Cuotas'!$I177),"") -> 
E178: =IF('Proyeccion Cuotas'!$D178="","",IF(F177=12,E177+1,E177)) ->  | F178: =IF('Proyeccion Cuotas'!$D178="","",IF(F177=12,1,F177+1)) ->  | G178: =+IF('Proyeccion Cuotas'!$D178="","",VLOOKUP('Proyeccion Cuotas'!$F178,$A$16:$B$27,2,FALSE)) ->  | H178: =IF('Proyeccion Cuotas'!$D178="","",CONCATENATE('Proyeccion Cuotas'!$G178,"/",'Proyeccion Cuotas'!$F178,"/",'Proyeccion Cuotas'!$E178)) ->  | I178: =IFERROR(IF('Proyeccion Cuotas'!$D178="","",IF(OR('Proyeccion Cuotas'!$F178=7,'Proyeccion Cuotas'!$F178=12),($B$45+(($F$1-$B$47)/$F$3)),(($F$1-$B$47)/$F$3))),0) ->  | J178: =IFERROR(IF('Proyeccion Cuotas'!$D178="","",(M177*$F$5*'Proyeccion Cuotas'!$K178/365)),"") ->  | K178: =+IF('Proyeccion Cuotas'!$D178="","",'Proyeccion Cuotas'!$H178-H177) ->  | L178: =IFERROR('Proyeccion Cuotas'!$I178+'Proyeccion Cuotas'!$J178,"") ->  | M178: =+IFERROR((M177-'Proyeccion Cuotas'!$I178),"") -> 
E179: =IF('Proyeccion Cuotas'!$D179="","",IF(F178=12,E178+1,E178)) ->  | F179: =IF('Proyeccion Cuotas'!$D179="","",IF(F178=12,1,F178+1)) ->  | G179: =+IF('Proyeccion Cuotas'!$D179="","",VLOOKUP('Proyeccion Cuotas'!$F179,$A$16:$B$27,2,FALSE)) ->  | H179: =IF('Proyeccion Cuotas'!$D179="","",CONCATENATE('Proyeccion Cuotas'!$G179,"/",'Proyeccion Cuotas'!$F179,"/",'Proyeccion Cuotas'!$E179)) ->  | I179: =IFERROR(IF('Proyeccion Cuotas'!$D179="","",IF(OR('Proyeccion Cuotas'!$F179=7,'Proyeccion Cuotas'!$F179=12),($B$45+(($F$1-$B$47)/$F$3)),(($F$1-$B$47)/$F$3))),0) ->  | J179: =IFERROR(IF('Proyeccion Cuotas'!$D179="","",(M178*$F$5*'Proyeccion Cuotas'!$K179/365)),"") ->  | K179: =+IF('Proyeccion Cuotas'!$D179="","",'Proyeccion Cuotas'!$H179-H178) ->  | L179: =IFERROR('Proyeccion Cuotas'!$I179+'Proyeccion Cuotas'!$J179,"") ->  | M179: =+IFERROR((M178-'Proyeccion Cuotas'!$I179),"") -> 
E180: =IF('Proyeccion Cuotas'!$D180="","",IF(F179=12,E179+1,E179)) ->  | F180: =IF('Proyeccion Cuotas'!$D180="","",IF(F179=12,1,F179+1)) ->  | G180: =+IF('Proyeccion Cuotas'!$D180="","",VLOOKUP('Proyeccion Cuotas'!$F180,$A$16:$B$27,2,FALSE)) ->  | H180: =IF('Proyeccion Cuotas'!$D180="","",CONCATENATE('Proyeccion Cuotas'!$G180,"/",'Proyeccion Cuotas'!$F180,"/",'Proyeccion Cuotas'!$E180)) ->  | I180: =IFERROR(IF('Proyeccion Cuotas'!$D180="","",IF(OR('Proyeccion Cuotas'!$F180=7,'Proyeccion Cuotas'!$F180=12),($B$45+(($F$1-$B$47)/$F$3)),(($F$1-$B$47)/$F$3))),0) ->  | J180: =IFERROR(IF('Proyeccion Cuotas'!$D180="","",(M179*$F$5*'Proyeccion Cuotas'!$K180/365)),"") ->  | K180: =+IF('Proyeccion Cuotas'!$D180="","",'Proyeccion Cuotas'!$H180-H179) ->  | L180: =IFERROR('Proyeccion Cuotas'!$I180+'Proyeccion Cuotas'!$J180,"") ->  | M180: =+IFERROR((M179-'Proyeccion Cuotas'!$I180),"") -> 
E181: =IF('Proyeccion Cuotas'!$D181="","",IF(F180=12,E180+1,E180)) ->  | F181: =IF('Proyeccion Cuotas'!$D181="","",IF(F180=12,1,F180+1)) ->  | G181: =+IF('Proyeccion Cuotas'!$D181="","",VLOOKUP('Proyeccion Cuotas'!$F181,$A$16:$B$27,2,FALSE)) ->  | H181: =IF('Proyeccion Cuotas'!$D181="","",CONCATENATE('Proyeccion Cuotas'!$G181,"/",'Proyeccion Cuotas'!$F181,"/",'Proyeccion Cuotas'!$E181)) ->  | I181: =IFERROR(IF('Proyeccion Cuotas'!$D181="","",IF(OR('Proyeccion Cuotas'!$F181=7,'Proyeccion Cuotas'!$F181=12),($B$45+(($F$1-$B$47)/$F$3)),(($F$1-$B$47)/$F$3))),0) ->  | J181: =IFERROR(IF('Proyeccion Cuotas'!$D181="","",(M180*$F$5*'Proyeccion Cuotas'!$K181/365)),"") ->  | K181: =+IF('Proyeccion Cuotas'!$D181="","",'Proyeccion Cuotas'!$H181-H180) ->  | L181: =IFERROR('Proyeccion Cuotas'!$I181+'Proyeccion Cuotas'!$J181,"") ->  | M181: =+IFERROR((M180-'Proyeccion Cuotas'!$I181),"") -> 
E182: =IF('Proyeccion Cuotas'!$D182="","",IF(F181=12,E181+1,E181)) ->  | F182: =IF('Proyeccion Cuotas'!$D182="","",IF(F181=12,1,F181+1)) ->  | G182: =+IF('Proyeccion Cuotas'!$D182="","",VLOOKUP('Proyeccion Cuotas'!$F182,$A$16:$B$27,2,FALSE)) ->  | H182: =IF('Proyeccion Cuotas'!$D182="","",CONCATENATE('Proyeccion Cuotas'!$G182,"/",'Proyeccion Cuotas'!$F182,"/",'Proyeccion Cuotas'!$E182)) ->  | I182: =IFERROR(IF('Proyeccion Cuotas'!$D182="","",IF(OR('Proyeccion Cuotas'!$F182=7,'Proyeccion Cuotas'!$F182=12),($B$45+(($F$1-$B$47)/$F$3)),(($F$1-$B$47)/$F$3))),0) ->  | J182: =IFERROR(IF('Proyeccion Cuotas'!$D182="","",(M181*$F$5*'Proyeccion Cuotas'!$K182/365)),"") ->  | K182: =+IF('Proyeccion Cuotas'!$D182="","",'Proyeccion Cuotas'!$H182-H181) ->  | L182: =IFERROR('Proyeccion Cuotas'!$I182+'Proyeccion Cuotas'!$J182,"") ->  | M182: =+IFERROR((M181-'Proyeccion Cuotas'!$I182),"") -> 
E183: =IF('Proyeccion Cuotas'!$D183="","",IF(F182=12,E182+1,E182)) ->  | F183: =IF('Proyeccion Cuotas'!$D183="","",IF(F182=12,1,F182+1)) ->  | G183: =+IF('Proyeccion Cuotas'!$D183="","",VLOOKUP('Proyeccion Cuotas'!$F183,$A$16:$B$27,2,FALSE)) ->  | H183: =IF('Proyeccion Cuotas'!$D183="","",CONCATENATE('Proyeccion Cuotas'!$G183,"/",'Proyeccion Cuotas'!$F183,"/",'Proyeccion Cuotas'!$E183)) ->  | I183: =IFERROR(IF('Proyeccion Cuotas'!$D183="","",IF(OR('Proyeccion Cuotas'!$F183=7,'Proyeccion Cuotas'!$F183=12),($B$45+(($F$1-$B$47)/$F$3)),(($F$1-$B$47)/$F$3))),0) ->  | J183: =IFERROR(IF('Proyeccion Cuotas'!$D183="","",(M182*$F$5*'Proyeccion Cuotas'!$K183/365)),"") ->  | K183: =+IF('Proyeccion Cuotas'!$D183="","",'Proyeccion Cuotas'!$H183-H182) ->  | L183: =IFERROR('Proyeccion Cuotas'!$I183+'Proyeccion Cuotas'!$J183,"") ->  | M183: =+IFERROR((M182-'Proyeccion Cuotas'!$I183),"") -> 
E184: =IF('Proyeccion Cuotas'!$D184="","",IF(F183=12,E183+1,E183)) ->  | F184: =IF('Proyeccion Cuotas'!$D184="","",IF(F183=12,1,F183+1)) ->  | G184: =+IF('Proyeccion Cuotas'!$D184="","",VLOOKUP('Proyeccion Cuotas'!$F184,$A$16:$B$27,2,FALSE)) ->  | H184: =IF('Proyeccion Cuotas'!$D184="","",CONCATENATE('Proyeccion Cuotas'!$G184,"/",'Proyeccion Cuotas'!$F184,"/",'Proyeccion Cuotas'!$E184)) ->  | I184: =IFERROR(IF('Proyeccion Cuotas'!$D184="","",IF(OR('Proyeccion Cuotas'!$F184=7,'Proyeccion Cuotas'!$F184=12),($B$45+(($F$1-$B$47)/$F$3)),(($F$1-$B$47)/$F$3))),0) ->  | J184: =IFERROR(IF('Proyeccion Cuotas'!$D184="","",(M183*$F$5*'Proyeccion Cuotas'!$K184/365)),"") ->  | K184: =+IF('Proyeccion Cuotas'!$D184="","",'Proyeccion Cuotas'!$H184-H183) ->  | L184: =IFERROR('Proyeccion Cuotas'!$I184+'Proyeccion Cuotas'!$J184,"") ->  | M184: =+IFERROR((M183-'Proyeccion Cuotas'!$I184),"") -> 
E185: =IF('Proyeccion Cuotas'!$D185="","",IF(F184=12,E184+1,E184)) ->  | F185: =IF('Proyeccion Cuotas'!$D185="","",IF(F184=12,1,F184+1)) ->  | G185: =+IF('Proyeccion Cuotas'!$D185="","",VLOOKUP('Proyeccion Cuotas'!$F185,$A$16:$B$27,2,FALSE)) ->  | H185: =IF('Proyeccion Cuotas'!$D185="","",CONCATENATE('Proyeccion Cuotas'!$G185,"/",'Proyeccion Cuotas'!$F185,"/",'Proyeccion Cuotas'!$E185)) ->  | I185: =IFERROR(IF('Proyeccion Cuotas'!$D185="","",IF(OR('Proyeccion Cuotas'!$F185=7,'Proyeccion Cuotas'!$F185=12),($B$45+(($F$1-$B$47)/$F$3)),(($F$1-$B$47)/$F$3))),0) ->  | J185: =IFERROR(IF('Proyeccion Cuotas'!$D185="","",(M184*$F$5*'Proyeccion Cuotas'!$K185/365)),"") ->  | K185: =+IF('Proyeccion Cuotas'!$D185="","",'Proyeccion Cuotas'!$H185-H184) ->  | L185: =IFERROR('Proyeccion Cuotas'!$I185+'Proyeccion Cuotas'!$J185,"") ->  | M185: =+IFERROR((M184-'Proyeccion Cuotas'!$I185),"") -> 
E186: =IF('Proyeccion Cuotas'!$D186="","",IF(F185=12,E185+1,E185)) ->  | F186: =IF('Proyeccion Cuotas'!$D186="","",IF(F185=12,1,F185+1)) ->  | G186: =+IF('Proyeccion Cuotas'!$D186="","",VLOOKUP('Proyeccion Cuotas'!$F186,$A$16:$B$27,2,FALSE)) ->  | H186: =IF('Proyeccion Cuotas'!$D186="","",CONCATENATE('Proyeccion Cuotas'!$G186,"/",'Proyeccion Cuotas'!$F186,"/",'Proyeccion Cuotas'!$E186)) ->  | I186: =IFERROR(IF('Proyeccion Cuotas'!$D186="","",IF(OR('Proyeccion Cuotas'!$F186=7,'Proyeccion Cuotas'!$F186=12),($B$45+(($F$1-$B$47)/$F$3)),(($F$1-$B$47)/$F$3))),0) ->  | J186: =IFERROR(IF('Proyeccion Cuotas'!$D186="","",(M185*$F$5*'Proyeccion Cuotas'!$K186/365)),"") ->  | K186: =+IF('Proyeccion Cuotas'!$D186="","",'Proyeccion Cuotas'!$H186-H185) ->  | L186: =IFERROR('Proyeccion Cuotas'!$I186+'Proyeccion Cuotas'!$J186,"") ->  | M186: =+IFERROR((M185-'Proyeccion Cuotas'!$I186),"") -> 
E187: =IF('Proyeccion Cuotas'!$D187="","",IF(F186=12,E186+1,E186)) ->  | F187: =IF('Proyeccion Cuotas'!$D187="","",IF(F186=12,1,F186+1)) ->  | G187: =+IF('Proyeccion Cuotas'!$D187="","",VLOOKUP('Proyeccion Cuotas'!$F187,$A$16:$B$27,2,FALSE)) ->  | H187: =IF('Proyeccion Cuotas'!$D187="","",CONCATENATE('Proyeccion Cuotas'!$G187,"/",'Proyeccion Cuotas'!$F187,"/",'Proyeccion Cuotas'!$E187)) ->  | I187: =IFERROR(IF('Proyeccion Cuotas'!$D187="","",IF(OR('Proyeccion Cuotas'!$F187=7,'Proyeccion Cuotas'!$F187=12),($B$45+(($F$1-$B$47)/$F$3)),(($F$1-$B$47)/$F$3))),0) ->  | J187: =IFERROR(IF('Proyeccion Cuotas'!$D187="","",(M186*$F$5*'Proyeccion Cuotas'!$K187/365)),"") ->  | K187: =+IF('Proyeccion Cuotas'!$D187="","",'Proyeccion Cuotas'!$H187-H186) ->  | L187: =IFERROR('Proyeccion Cuotas'!$I187+'Proyeccion Cuotas'!$J187,"") ->  | M187: =+IFERROR((M186-'Proyeccion Cuotas'!$I187),"") -> 
E188: =IF('Proyeccion Cuotas'!$D188="","",IF(F187=12,E187+1,E187)) ->  | F188: =IF('Proyeccion Cuotas'!$D188="","",IF(F187=12,1,F187+1)) ->  | G188: =+IF('Proyeccion Cuotas'!$D188="","",VLOOKUP('Proyeccion Cuotas'!$F188,$A$16:$B$27,2,FALSE)) ->  | H188: =IF('Proyeccion Cuotas'!$D188="","",CONCATENATE('Proyeccion Cuotas'!$G188,"/",'Proyeccion Cuotas'!$F188,"/",'Proyeccion Cuotas'!$E188)) ->  | I188: =IFERROR(IF('Proyeccion Cuotas'!$D188="","",IF(OR('Proyeccion Cuotas'!$F188=7,'Proyeccion Cuotas'!$F188=12),($B$45+(($F$1-$B$47)/$F$3)),(($F$1-$B$47)/$F$3))),0) ->  | J188: =IFERROR(IF('Proyeccion Cuotas'!$D188="","",(M187*$F$5*'Proyeccion Cuotas'!$K188/365)),"") ->  | K188: =+IF('Proyeccion Cuotas'!$D188="","",'Proyeccion Cuotas'!$H188-H187) ->  | L188: =IFERROR('Proyeccion Cuotas'!$I188+'Proyeccion Cuotas'!$J188,"") ->  | M188: =+IFERROR((M187-'Proyeccion Cuotas'!$I188),"") -> 
E189: =IF('Proyeccion Cuotas'!$D189="","",IF(F188=12,E188+1,E188)) ->  | F189: =IF('Proyeccion Cuotas'!$D189="","",IF(F188=12,1,F188+1)) ->  | G189: =+IF('Proyeccion Cuotas'!$D189="","",VLOOKUP('Proyeccion Cuotas'!$F189,$A$16:$B$27,2,FALSE)) ->  | H189: =IF('Proyeccion Cuotas'!$D189="","",CONCATENATE('Proyeccion Cuotas'!$G189,"/",'Proyeccion Cuotas'!$F189,"/",'Proyeccion Cuotas'!$E189)) ->  | I189: =IFERROR(IF('Proyeccion Cuotas'!$D189="","",IF(OR('Proyeccion Cuotas'!$F189=7,'Proyeccion Cuotas'!$F189=12),($B$45+(($F$1-$B$47)/$F$3)),(($F$1-$B$47)/$F$3))),0) ->  | J189: =IFERROR(IF('Proyeccion Cuotas'!$D189="","",(M188*$F$5*'Proyeccion Cuotas'!$K189/365)),"") ->  | K189: =+IF('Proyeccion Cuotas'!$D189="","",'Proyeccion Cuotas'!$H189-H188) ->  | L189: =IFERROR('Proyeccion Cuotas'!$I189+'Proyeccion Cuotas'!$J189,"") ->  | M189: =+IFERROR((M188-'Proyeccion Cuotas'!$I189),"") -> 
E190: =IF('Proyeccion Cuotas'!$D190="","",IF(F189=12,E189+1,E189)) ->  | F190: =IF('Proyeccion Cuotas'!$D190="","",IF(F189=12,1,F189+1)) ->  | G190: =+IF('Proyeccion Cuotas'!$D190="","",VLOOKUP('Proyeccion Cuotas'!$F190,$A$16:$B$27,2,FALSE)) ->  | H190: =IF('Proyeccion Cuotas'!$D190="","",CONCATENATE('Proyeccion Cuotas'!$G190,"/",'Proyeccion Cuotas'!$F190,"/",'Proyeccion Cuotas'!$E190)) ->  | I190: =IFERROR(IF('Proyeccion Cuotas'!$D190="","",IF(OR('Proyeccion Cuotas'!$F190=7,'Proyeccion Cuotas'!$F190=12),($B$45+(($F$1-$B$47)/$F$3)),(($F$1-$B$47)/$F$3))),0) ->  | J190: =IFERROR(IF('Proyeccion Cuotas'!$D190="","",(M189*$F$5*'Proyeccion Cuotas'!$K190/365)),"") ->  | K190: =+IF('Proyeccion Cuotas'!$D190="","",'Proyeccion Cuotas'!$H190-H189) ->  | L190: =IFERROR('Proyeccion Cuotas'!$I190+'Proyeccion Cuotas'!$J190,"") ->  | M190: =+IFERROR((M189-'Proyeccion Cuotas'!$I190),"") -> 
E191: =IF('Proyeccion Cuotas'!$D191="","",IF(F190=12,E190+1,E190)) ->  | F191: =IF('Proyeccion Cuotas'!$D191="","",IF(F190=12,1,F190+1)) ->  | G191: =+IF('Proyeccion Cuotas'!$D191="","",VLOOKUP('Proyeccion Cuotas'!$F191,$A$16:$B$27,2,FALSE)) ->  | H191: =IF('Proyeccion Cuotas'!$D191="","",CONCATENATE('Proyeccion Cuotas'!$G191,"/",'Proyeccion Cuotas'!$F191,"/",'Proyeccion Cuotas'!$E191)) ->  | I191: =IFERROR(IF('Proyeccion Cuotas'!$D191="","",IF(OR('Proyeccion Cuotas'!$F191=7,'Proyeccion Cuotas'!$F191=12),($B$45+(($F$1-$B$47)/$F$3)),(($F$1-$B$47)/$F$3))),0) ->  | J191: =IFERROR(IF('Proyeccion Cuotas'!$D191="","",(M190*$F$5*'Proyeccion Cuotas'!$K191/365)),"") ->  | K191: =+IF('Proyeccion Cuotas'!$D191="","",'Proyeccion Cuotas'!$H191-H190) ->  | L191: =IFERROR('Proyeccion Cuotas'!$I191+'Proyeccion Cuotas'!$J191,"") ->  | M191: =+IFERROR((M190-'Proyeccion Cuotas'!$I191),"") -> 
E192: =IF('Proyeccion Cuotas'!$D192="","",IF(F191=12,E191+1,E191)) ->  | F192: =IF('Proyeccion Cuotas'!$D192="","",IF(F191=12,1,F191+1)) ->  | G192: =+IF('Proyeccion Cuotas'!$D192="","",VLOOKUP('Proyeccion Cuotas'!$F192,$A$16:$B$27,2,FALSE)) ->  | H192: =IF('Proyeccion Cuotas'!$D192="","",CONCATENATE('Proyeccion Cuotas'!$G192,"/",'Proyeccion Cuotas'!$F192,"/",'Proyeccion Cuotas'!$E192)) ->  | I192: =IFERROR(IF('Proyeccion Cuotas'!$D192="","",IF(OR('Proyeccion Cuotas'!$F192=7,'Proyeccion Cuotas'!$F192=12),($B$45+(($F$1-$B$47)/$F$3)),(($F$1-$B$47)/$F$3))),0) ->  | J192: =IFERROR(IF('Proyeccion Cuotas'!$D192="","",(M191*$F$5*'Proyeccion Cuotas'!$K192/365)),"") ->  | K192: =+IF('Proyeccion Cuotas'!$D192="","",'Proyeccion Cuotas'!$H192-H191) ->  | L192: =IFERROR('Proyeccion Cuotas'!$I192+'Proyeccion Cuotas'!$J192,"") ->  | M192: =+IFERROR((M191-'Proyeccion Cuotas'!$I192),"") -> 
E193: =IF('Proyeccion Cuotas'!$D193="","",IF(F192=12,E192+1,E192)) ->  | F193: =IF('Proyeccion Cuotas'!$D193="","",IF(F192=12,1,F192+1)) ->  | G193: =+IF('Proyeccion Cuotas'!$D193="","",VLOOKUP('Proyeccion Cuotas'!$F193,$A$16:$B$27,2,FALSE)) ->  | H193: =IF('Proyeccion Cuotas'!$D193="","",CONCATENATE('Proyeccion Cuotas'!$G193,"/",'Proyeccion Cuotas'!$F193,"/",'Proyeccion Cuotas'!$E193)) ->  | I193: =IFERROR(IF('Proyeccion Cuotas'!$D193="","",IF(OR('Proyeccion Cuotas'!$F193=7,'Proyeccion Cuotas'!$F193=12),($B$45+(($F$1-$B$47)/$F$3)),(($F$1-$B$47)/$F$3))),0) ->  | J193: =IFERROR(IF('Proyeccion Cuotas'!$D193="","",(M192*$F$5*'Proyeccion Cuotas'!$K193/365)),"") ->  | K193: =+IF('Proyeccion Cuotas'!$D193="","",'Proyeccion Cuotas'!$H193-H192) ->  | L193: =IFERROR('Proyeccion Cuotas'!$I193+'Proyeccion Cuotas'!$J193,"") ->  | M193: =+IFERROR((M192-'Proyeccion Cuotas'!$I193),"") -> 
E194: =IF('Proyeccion Cuotas'!$D194="","",IF(F193=12,E193+1,E193)) ->  | F194: =IF('Proyeccion Cuotas'!$D194="","",IF(F193=12,1,F193+1)) ->  | G194: =+IF('Proyeccion Cuotas'!$D194="","",VLOOKUP('Proyeccion Cuotas'!$F194,$A$16:$B$27,2,FALSE)) ->  | H194: =IF('Proyeccion Cuotas'!$D194="","",CONCATENATE('Proyeccion Cuotas'!$G194,"/",'Proyeccion Cuotas'!$F194,"/",'Proyeccion Cuotas'!$E194)) ->  | I194: =IFERROR(IF('Proyeccion Cuotas'!$D194="","",IF(OR('Proyeccion Cuotas'!$F194=7,'Proyeccion Cuotas'!$F194=12),($B$45+(($F$1-$B$47)/$F$3)),(($F$1-$B$47)/$F$3))),0) ->  | J194: =IFERROR(IF('Proyeccion Cuotas'!$D194="","",(M193*$F$5*'Proyeccion Cuotas'!$K194/365)),"") ->  | K194: =+IF('Proyeccion Cuotas'!$D194="","",'Proyeccion Cuotas'!$H194-H193) ->  | L194: =IFERROR('Proyeccion Cuotas'!$I194+'Proyeccion Cuotas'!$J194,"") ->  | M194: =+IFERROR((M193-'Proyeccion Cuotas'!$I194),"") -> 
E195: =IF('Proyeccion Cuotas'!$D195="","",IF(F194=12,E194+1,E194)) ->  | F195: =IF('Proyeccion Cuotas'!$D195="","",IF(F194=12,1,F194+1)) ->  | G195: =+IF('Proyeccion Cuotas'!$D195="","",VLOOKUP('Proyeccion Cuotas'!$F195,$A$16:$B$27,2,FALSE)) ->  | H195: =IF('Proyeccion Cuotas'!$D195="","",CONCATENATE('Proyeccion Cuotas'!$G195,"/",'Proyeccion Cuotas'!$F195,"/",'Proyeccion Cuotas'!$E195)) ->  | I195: =IFERROR(IF('Proyeccion Cuotas'!$D195="","",IF(OR('Proyeccion Cuotas'!$F195=7,'Proyeccion Cuotas'!$F195=12),($B$45+(($F$1-$B$47)/$F$3)),(($F$1-$B$47)/$F$3))),0) ->  | J195: =IFERROR(IF('Proyeccion Cuotas'!$D195="","",(M194*$F$5*'Proyeccion Cuotas'!$K195/365)),"") ->  | K195: =+IF('Proyeccion Cuotas'!$D195="","",'Proyeccion Cuotas'!$H195-H194) ->  | L195: =IFERROR('Proyeccion Cuotas'!$I195+'Proyeccion Cuotas'!$J195,"") ->  | M195: =+IFERROR((M194-'Proyeccion Cuotas'!$I195),"") -> 
E196: =IF('Proyeccion Cuotas'!$D196="","",IF(F195=12,E195+1,E195)) ->  | F196: =IF('Proyeccion Cuotas'!$D196="","",IF(F195=12,1,F195+1)) ->  | G196: =+IF('Proyeccion Cuotas'!$D196="","",VLOOKUP('Proyeccion Cuotas'!$F196,$A$16:$B$27,2,FALSE)) ->  | H196: =IF('Proyeccion Cuotas'!$D196="","",CONCATENATE('Proyeccion Cuotas'!$G196,"/",'Proyeccion Cuotas'!$F196,"/",'Proyeccion Cuotas'!$E196)) ->  | I196: =IFERROR(IF('Proyeccion Cuotas'!$D196="","",IF(OR('Proyeccion Cuotas'!$F196=7,'Proyeccion Cuotas'!$F196=12),($B$45+(($F$1-$B$47)/$F$3)),(($F$1-$B$47)/$F$3))),0) ->  | J196: =IFERROR(IF('Proyeccion Cuotas'!$D196="","",(M195*$F$5*'Proyeccion Cuotas'!$K196/365)),"") ->  | K196: =+IF('Proyeccion Cuotas'!$D196="","",'Proyeccion Cuotas'!$H196-H195) ->  | L196: =IFERROR('Proyeccion Cuotas'!$I196+'Proyeccion Cuotas'!$J196,"") ->  | M196: =+IFERROR((M195-'Proyeccion Cuotas'!$I196),"") -> 
E197: =IF('Proyeccion Cuotas'!$D197="","",IF(F196=12,E196+1,E196)) ->  | F197: =IF('Proyeccion Cuotas'!$D197="","",IF(F196=12,1,F196+1)) ->  | G197: =+IF('Proyeccion Cuotas'!$D197="","",VLOOKUP('Proyeccion Cuotas'!$F197,$A$16:$B$27,2,FALSE)) ->  | H197: =IF('Proyeccion Cuotas'!$D197="","",CONCATENATE('Proyeccion Cuotas'!$G197,"/",'Proyeccion Cuotas'!$F197,"/",'Proyeccion Cuotas'!$E197)) ->  | I197: =IFERROR(IF('Proyeccion Cuotas'!$D197="","",IF(OR('Proyeccion Cuotas'!$F197=7,'Proyeccion Cuotas'!$F197=12),($B$45+(($F$1-$B$47)/$F$3)),(($F$1-$B$47)/$F$3))),0) ->  | J197: =IFERROR(IF('Proyeccion Cuotas'!$D197="","",(M196*$F$5*'Proyeccion Cuotas'!$K197/365)),"") ->  | K197: =+IF('Proyeccion Cuotas'!$D197="","",'Proyeccion Cuotas'!$H197-H196) ->  | L197: =IFERROR('Proyeccion Cuotas'!$I197+'Proyeccion Cuotas'!$J197,"") ->  | M197: =+IFERROR((M196-'Proyeccion Cuotas'!$I197),"") -> 
E198: =IF('Proyeccion Cuotas'!$D198="","",IF(F197=12,E197+1,E197)) ->  | F198: =IF('Proyeccion Cuotas'!$D198="","",IF(F197=12,1,F197+1)) ->  | G198: =+IF('Proyeccion Cuotas'!$D198="","",VLOOKUP('Proyeccion Cuotas'!$F198,$A$16:$B$27,2,FALSE)) ->  | H198: =IF('Proyeccion Cuotas'!$D198="","",CONCATENATE('Proyeccion Cuotas'!$G198,"/",'Proyeccion Cuotas'!$F198,"/",'Proyeccion Cuotas'!$E198)) ->  | I198: =IFERROR(IF('Proyeccion Cuotas'!$D198="","",IF(OR('Proyeccion Cuotas'!$F198=7,'Proyeccion Cuotas'!$F198=12),($B$45+(($F$1-$B$47)/$F$3)),(($F$1-$B$47)/$F$3))),0) ->  | J198: =IFERROR(IF('Proyeccion Cuotas'!$D198="","",(M197*$F$5*'Proyeccion Cuotas'!$K198/365)),"") ->  | K198: =+IF('Proyeccion Cuotas'!$D198="","",'Proyeccion Cuotas'!$H198-H197) ->  | L198: =IFERROR('Proyeccion Cuotas'!$I198+'Proyeccion Cuotas'!$J198,"") ->  | M198: =+IFERROR((M197-'Proyeccion Cuotas'!$I198),"") -> 
E199: =IF('Proyeccion Cuotas'!$D199="","",IF(F198=12,E198+1,E198)) ->  | F199: =IF('Proyeccion Cuotas'!$D199="","",IF(F198=12,1,F198+1)) ->  | G199: =+IF('Proyeccion Cuotas'!$D199="","",VLOOKUP('Proyeccion Cuotas'!$F199,$A$16:$B$27,2,FALSE)) ->  | H199: =IF('Proyeccion Cuotas'!$D199="","",CONCATENATE('Proyeccion Cuotas'!$G199,"/",'Proyeccion Cuotas'!$F199,"/",'Proyeccion Cuotas'!$E199)) ->  | I199: =IFERROR(IF('Proyeccion Cuotas'!$D199="","",IF(OR('Proyeccion Cuotas'!$F199=7,'Proyeccion Cuotas'!$F199=12),($B$45+(($F$1-$B$47)/$F$3)),(($F$1-$B$47)/$F$3))),0) ->  | J199: =IFERROR(IF('Proyeccion Cuotas'!$D199="","",(M198*$F$5*'Proyeccion Cuotas'!$K199/365)),"") ->  | K199: =+IF('Proyeccion Cuotas'!$D199="","",'Proyeccion Cuotas'!$H199-H198) ->  | L199: =IFERROR('Proyeccion Cuotas'!$I199+'Proyeccion Cuotas'!$J199,"") ->  | M199: =+IFERROR((M198-'Proyeccion Cuotas'!$I199),"") -> 
E200: =IF('Proyeccion Cuotas'!$D200="","",IF(F199=12,E199+1,E199)) ->  | F200: =IF('Proyeccion Cuotas'!$D200="","",IF(F199=12,1,F199+1)) ->  | G200: =+IF('Proyeccion Cuotas'!$D200="","",VLOOKUP('Proyeccion Cuotas'!$F200,$A$16:$B$27,2,FALSE)) ->  | H200: =IF('Proyeccion Cuotas'!$D200="","",CONCATENATE('Proyeccion Cuotas'!$G200,"/",'Proyeccion Cuotas'!$F200,"/",'Proyeccion Cuotas'!$E200)) ->  | I200: =IFERROR(IF('Proyeccion Cuotas'!$D200="","",IF(OR('Proyeccion Cuotas'!$F200=7,'Proyeccion Cuotas'!$F200=12),($B$45+(($F$1-$B$47)/$F$3)),(($F$1-$B$47)/$F$3))),0) ->  | J200: =IFERROR(IF('Proyeccion Cuotas'!$D200="","",(M199*$F$5*'Proyeccion Cuotas'!$K200/365)),"") ->  | K200: =+IF('Proyeccion Cuotas'!$D200="","",'Proyeccion Cuotas'!$H200-H199) ->  | L200: =IFERROR('Proyeccion Cuotas'!$I200+'Proyeccion Cuotas'!$J200,"") ->  | M200: =+IFERROR((M199-'Proyeccion Cuotas'!$I200),"") -> 
E201: =IF('Proyeccion Cuotas'!$D201="","",IF(F200=12,E200+1,E200)) ->  | F201: =IF('Proyeccion Cuotas'!$D201="","",IF(F200=12,1,F200+1)) ->  | G201: =+IF('Proyeccion Cuotas'!$D201="","",VLOOKUP('Proyeccion Cuotas'!$F201,$A$16:$B$27,2,FALSE)) ->  | H201: =IF('Proyeccion Cuotas'!$D201="","",CONCATENATE('Proyeccion Cuotas'!$G201,"/",'Proyeccion Cuotas'!$F201,"/",'Proyeccion Cuotas'!$E201)) ->  | I201: =IFERROR(IF('Proyeccion Cuotas'!$D201="","",IF(OR('Proyeccion Cuotas'!$F201=7,'Proyeccion Cuotas'!$F201=12),($B$45+(($F$1-$B$47)/$F$3)),(($F$1-$B$47)/$F$3))),0) ->  | J201: =IFERROR(IF('Proyeccion Cuotas'!$D201="","",(M200*$F$5*'Proyeccion Cuotas'!$K201/365)),"") ->  | K201: =+IF('Proyeccion Cuotas'!$D201="","",'Proyeccion Cuotas'!$H201-H200) ->  | L201: =IFERROR('Proyeccion Cuotas'!$I201+'Proyeccion Cuotas'!$J201,"") ->  | M201: =+IFERROR((M200-'Proyeccion Cuotas'!$I201),"") -> 
E202: =IF('Proyeccion Cuotas'!$D202="","",IF(F201=12,E201+1,E201)) ->  | F202: =IF('Proyeccion Cuotas'!$D202="","",IF(F201=12,1,F201+1)) ->  | G202: =+IF('Proyeccion Cuotas'!$D202="","",VLOOKUP('Proyeccion Cuotas'!$F202,$A$16:$B$27,2,FALSE)) ->  | H202: =IF('Proyeccion Cuotas'!$D202="","",CONCATENATE('Proyeccion Cuotas'!$G202,"/",'Proyeccion Cuotas'!$F202,"/",'Proyeccion Cuotas'!$E202)) ->  | I202: =IFERROR(IF('Proyeccion Cuotas'!$D202="","",IF(OR('Proyeccion Cuotas'!$F202=7,'Proyeccion Cuotas'!$F202=12),($B$45+(($F$1-$B$47)/$F$3)),(($F$1-$B$47)/$F$3))),0) ->  | J202: =IFERROR(IF('Proyeccion Cuotas'!$D202="","",(M201*$F$5*'Proyeccion Cuotas'!$K202/365)),"") ->  | K202: =+IF('Proyeccion Cuotas'!$D202="","",'Proyeccion Cuotas'!$H202-H201) ->  | L202: =IFERROR('Proyeccion Cuotas'!$I202+'Proyeccion Cuotas'!$J202,"") ->  | M202: =+IFERROR((M201-'Proyeccion Cuotas'!$I202),"") -> 
E203: =IF('Proyeccion Cuotas'!$D203="","",IF(F202=12,E202+1,E202)) ->  | F203: =IF('Proyeccion Cuotas'!$D203="","",IF(F202=12,1,F202+1)) ->  | G203: =+IF('Proyeccion Cuotas'!$D203="","",VLOOKUP('Proyeccion Cuotas'!$F203,$A$16:$B$27,2,FALSE)) ->  | H203: =IF('Proyeccion Cuotas'!$D203="","",CONCATENATE('Proyeccion Cuotas'!$G203,"/",'Proyeccion Cuotas'!$F203,"/",'Proyeccion Cuotas'!$E203)) ->  | I203: =IFERROR(IF('Proyeccion Cuotas'!$D203="","",IF(OR('Proyeccion Cuotas'!$F203=7,'Proyeccion Cuotas'!$F203=12),($B$45+(($F$1-$B$47)/$F$3)),(($F$1-$B$47)/$F$3))),0) ->  | J203: =IFERROR(IF('Proyeccion Cuotas'!$D203="","",(M202*$F$5*'Proyeccion Cuotas'!$K203/365)),"") ->  | K203: =+IF('Proyeccion Cuotas'!$D203="","",'Proyeccion Cuotas'!$H203-H202) ->  | L203: =IFERROR('Proyeccion Cuotas'!$I203+'Proyeccion Cuotas'!$J203,"") ->  | M203: =+IFERROR((M202-'Proyeccion Cuotas'!$I203),"") -> 
E204: =IF('Proyeccion Cuotas'!$D204="","",IF(F203=12,E203+1,E203)) ->  | F204: =IF('Proyeccion Cuotas'!$D204="","",IF(F203=12,1,F203+1)) ->  | G204: =+IF('Proyeccion Cuotas'!$D204="","",VLOOKUP('Proyeccion Cuotas'!$F204,$A$16:$B$27,2,FALSE)) ->  | H204: =IF('Proyeccion Cuotas'!$D204="","",CONCATENATE('Proyeccion Cuotas'!$G204,"/",'Proyeccion Cuotas'!$F204,"/",'Proyeccion Cuotas'!$E204)) ->  | I204: =IFERROR(IF('Proyeccion Cuotas'!$D204="","",IF(OR('Proyeccion Cuotas'!$F204=7,'Proyeccion Cuotas'!$F204=12),($B$45+(($F$1-$B$47)/$F$3)),(($F$1-$B$47)/$F$3))),0) ->  | J204: =IFERROR(IF('Proyeccion Cuotas'!$D204="","",(M203*$F$5*'Proyeccion Cuotas'!$K204/365)),"") ->  | K204: =+IF('Proyeccion Cuotas'!$D204="","",'Proyeccion Cuotas'!$H204-H203) ->  | L204: =IFERROR('Proyeccion Cuotas'!$I204+'Proyeccion Cuotas'!$J204,"") ->  | M204: =+IFERROR((M203-'Proyeccion Cuotas'!$I204),"") -> 
E205: =IF('Proyeccion Cuotas'!$D205="","",IF(F204=12,E204+1,E204)) ->  | F205: =IF('Proyeccion Cuotas'!$D205="","",IF(F204=12,1,F204+1)) ->  | G205: =+IF('Proyeccion Cuotas'!$D205="","",VLOOKUP('Proyeccion Cuotas'!$F205,$A$16:$B$27,2,FALSE)) ->  | H205: =IF('Proyeccion Cuotas'!$D205="","",CONCATENATE('Proyeccion Cuotas'!$G205,"/",'Proyeccion Cuotas'!$F205,"/",'Proyeccion Cuotas'!$E205)) ->  | I205: =IFERROR(IF('Proyeccion Cuotas'!$D205="","",IF(OR('Proyeccion Cuotas'!$F205=7,'Proyeccion Cuotas'!$F205=12),($B$45+(($F$1-$B$47)/$F$3)),(($F$1-$B$47)/$F$3))),0) ->  | J205: =IFERROR(IF('Proyeccion Cuotas'!$D205="","",(M204*$F$5*'Proyeccion Cuotas'!$K205/365)),"") ->  | K205: =+IF('Proyeccion Cuotas'!$D205="","",'Proyeccion Cuotas'!$H205-H204) ->  | L205: =IFERROR('Proyeccion Cuotas'!$I205+'Proyeccion Cuotas'!$J205,"") ->  | M205: =+IFERROR((M204-'Proyeccion Cuotas'!$I205),"") -> 
E206: =IF('Proyeccion Cuotas'!$D206="","",IF(F205=12,E205+1,E205)) ->  | F206: =IF('Proyeccion Cuotas'!$D206="","",IF(F205=12,1,F205+1)) ->  | G206: =+IF('Proyeccion Cuotas'!$D206="","",VLOOKUP('Proyeccion Cuotas'!$F206,$A$16:$B$27,2,FALSE)) ->  | H206: =IF('Proyeccion Cuotas'!$D206="","",CONCATENATE('Proyeccion Cuotas'!$G206,"/",'Proyeccion Cuotas'!$F206,"/",'Proyeccion Cuotas'!$E206)) ->  | I206: =IFERROR(IF('Proyeccion Cuotas'!$D206="","",IF(OR('Proyeccion Cuotas'!$F206=7,'Proyeccion Cuotas'!$F206=12),($B$45+(($F$1-$B$47)/$F$3)),(($F$1-$B$47)/$F$3))),0) ->  | J206: =IFERROR(IF('Proyeccion Cuotas'!$D206="","",(M205*$F$5*'Proyeccion Cuotas'!$K206/365)),"") ->  | K206: =+IF('Proyeccion Cuotas'!$D206="","",'Proyeccion Cuotas'!$H206-H205) ->  | L206: =IFERROR('Proyeccion Cuotas'!$I206+'Proyeccion Cuotas'!$J206,"") ->  | M206: =+IFERROR((M205-'Proyeccion Cuotas'!$I206),"") -> 
... 110 more rows
